{"text_format":"1","workbook":"xlsx","n_sheets":9,"sheets":["Segregation Density Profile_1","Segregation Density Profile_2","Segregation Density Profile_3","Segregation Density Profile_4","Summary","RX","Revision","Specs","spcyr"],"not_rendered":{"charts":0,"images":1,"macros":1,"external_links":0,"defined_names":316,"comments":1,"pivot_tables":0},"unopened":[],"bounds":{"document_bytes":16777216,"sheet_cells":100000,"rows_first":2000,"rows_last":500,"rows_between":2000,"halvings":0,"cell_chars":16384,"cell_head_chars":4096},"cells_cut":0,"cells_raw":0,"read":"whole","date_system":"1900"}

{"sheet":"Segregation Density Profile_1","index":0,"n_rows":62,"n_cols":11,"rows_kept":62,"cut":false,"hidden":false,"merged":[[12,7,12,8],[14,3,14,8],[15,3,15,4],[15,7,15,8],[12,3,12,4],[13,3,13,8],[9,7,9,8],[10,7,10,8],[11,3,11,4],[11,7,11,8],[10,3,10,4],[9,3,9,4],[6,7,6,8],[7,3,7,4],[7,7,7,8],[8,7,8,8],[6,3,6,4],[8,3,8,4],[48,1,49,8],[51,1,51,8],[50,1,50,8],[44,1,44,2],[24,7,25,7],[43,1,43,2],[42,1,42,3],[24,1,25,1],[38,1,38,2],[61,1,61,3],[57,6,57,8],[53,2,53,4],[52,2,52,4],[57,1,57,3],[55,2,55,4],[19,1,19,2],[24,2,24,6],[40,1,40,2],[39,1,39,2],[22,2,22,7],[21,2,21,7]]}
[null,"TxDOT Manuals >"]
[null,"TEXAS DEPARTMENT OF TRANSPORTATION"]
[null,null,null,null,null,null,null,null,null,null,246]
[null,"SEGREGATION PROFILE_1",null,null,null,null,null,null,null,null,2]
[null,"TEX-207-F, PART V"]
[null,null,null,null,null,null,null,null,{"$f":"\"Segregation Profile :: File Version: \" & TEXT(MID(sn,SEARCH(\"::\",sn,1)+2,20),\"mm/dd/yy hh:mm:ss\")","v":"Segregation Profile :: File Version: 10/09/24 14:50:36"},null,"tx207v-4.xlsm::45574.618472"]
[null,null,"SAMPLE ID:",null,null,null,"SAMPLED DATE:"]
[null,null,"TEST NUMBER:",null,null,null,"LETTING DATE:"]
[null,null,"SAMPLE STATUS:",null,null,null,"CONTROLLING CSJ:"]
[null,null,"COUNTY:",null,null,null,"SPEC YEAR:"]
[null,null,"SAMPLED BY:",null,null,null,"SPEC ITEM:"]
[null,null,"SAMPLE LOCATION:",null,null,null,"SPECIAL PROVISION:"]
[null,null,"MATERIAL CODE:",null,null,null,"MIX TYPE:"]
[null,null,"MATERIAL NAME:"]
[null,null,"PRODUCER:"]
[null,null,"AREA ENGINEER:",null,null,null,"PROJECT MANAGER:"]
[]
[null,null,"COURSE\\LIFT:",null,"STATION:",null,null,"DIST. FROM CL:"]
[]
[null,"TYPE OF DENSITY GAUGE:",null,null,"LOT:",null,"SUBLOT:"]
[]
[null,null,{"$f":"IF(Grade=\"\",\" ** Select 'Mix Type' Before Entering Test Results ** \",\"\")","v":" ** Select 'Mix Type' Before Entering Test Results ** "}]
[null,null,{"$f":"IF(Gauge_1<>\"non-nuclear\",IF(OR(C27=\"\",D27=\"\",E27=\"\"),\"** Three Density Readings Are Required At Each Location **\",\"\"),IF(SpecYear>=\"2004\",IF(OR(C27=\"\",D27=\"\"),\"**Two Density Readings Are Required At Each Location **\",\"\"),IF(OR(C27=\"\",D27=\"\",E27=\"\",F27=\"\",G27=\"\"),\"**Five Density Readings Are Required At Each Location **\",\"\")))","v":"** Three Density Readings Are Required At Each Location **"}]
[]
[null,"LOCATION","DENSITY READINGS",null,null,null,null,"AVERAGE"]
[null,null,1,2,3,4,5]
[null,"0'",null,null,null,null,null,{"$f":"+IF(ISERROR(AVERAGE(C27:G27)),\"\",AVERAGE(C27:G27))","v":""}]
[null,"5'",null,null,null,null,null,{"$f":"+IF(ISERROR(AVERAGE(C28:G28)),\"\",AVERAGE(C28:G28))","v":""}]
[null,"10'",null,null,null,null,null,""]
[null,"15'",null,null,null,null,null,""]
[null,"20'",null,null,null,null,null,""]
[null,"25'",null,null,null,null,null,""]
[null,"30'",null,null,null,null,null,""]
[null,"35'",null,null,null,null,null,""]
[null,"40'",null,null,null,null,null,""]
[null,"45'",null,null,null,null,null,""]
[null,"50'",null,null,null,null,null,""]
[]
[null,"AVERAGE READING:",null,{"$f":"+IF(C27=\"\",\"\",AVERAGE(H27:H37))","v":""}]
[null,"HIGH READING:",null,{"$f":"+IF(C27=\"\",\"\",MAX(H27:H37))","v":""}]
[null,"LOW READING:",null,{"$f":"+IF(C27=\"\",\"\",MIN(H27:H37))","v":""}]
[]
[null,"MAX ALLOWABLE DENSITY RANGE"]
[null,"HIGHEST TO LOWEST:",null,{"$f":"+IF(D40=\"\",\"\",D40-D41)","v":""},{"$f":"IF($D$44=\"\",\"\",IF(D44>(VLOOKUP(Grade,Data,2,TRUE)),\"<<Exceeds the acceptable criteria\",\"\"))","v":""}]
[null,"AVERAGE TO LOWEST:",null,{"$f":"+IF(D39=\"\",\"\",D39-D41)","v":""},{"$f":"IF($D$45=\"\",\"\",IF(D45>(VLOOKUP(Grade,Data,3,TRUE)),\"<<Exceeds the acceptable criteria\",\"\"))","v":""}]
[]
[]
[null,"Remarks:",{"$f":"NOW()","v":"2024-10-09T14:50:36.340"}]
[]
[]
[]
[]
[null,"Test Method:","Tested By:",null,null,"Tested Date:"]
[null,"TX207"]
[]
[null,"TX207V"]
[null,"Test Stamp Code:",null,null,"Omit Test:","Completed Date:","Reviewed By:"]
[]
[null,"Locked By:","TxDOT:","District:","Area:"]
[]
[null,"Authorized By:",null,null,"Authorized Date:"]
[null,null,null,null,null,{"$f":"IF(OR(AuthorizedDate>40512,AuthorizedDate=\"\"),2,1)","v":2}]

{"sheet":"Segregation Density Profile_2","index":1,"n_rows":48,"n_cols":9,"rows_kept":48,"cut":false,"hidden":false,"merged":[[6,3,6,4],[7,3,7,4],[8,3,8,4],[9,3,9,4],[6,7,6,8],[7,7,7,8],[8,7,8,8],[9,7,9,8],[10,3,10,4],[11,3,11,4],[12,3,12,4],[19,1,19,2],[14,3,14,8],[15,7,15,8],[15,3,15,4],[10,7,10,8],[11,7,11,8],[44,1,44,2],[48,1,49,8],[39,1,39,2],[40,1,40,2],[42,1,42,3],[43,1,43,2],[38,1,38,2],[12,7,12,8],[13,3,13,8],[24,1,25,1],[24,2,24,6],[24,7,25,7],[20,1,20,2],[22,2,22,7]]}
[]
[null,"TEXAS DEPARTMENT OF TRANSPORTATION"]
[]
[null,"SEGREGATION PROFILE_2"]
[null,"TEX-207-F, PART V"]
[]
[null,null,"SAMPLE ID:",{"$f":"IF(sampleid=\"\",\"\",sampleid)","v":""},null,null,"SAMPLED DATE:",{"$f":"IF(SampledDate=\"\",\"\",SampledDate)","v":""}]
[null,null,"TEST NUMBER:",{"$f":"IF(TestNumber=\"\",\"\",TestNumber)","v":""},null,null,"LETTING DATE:",{"$f":"IF(LettingDate=\"\",\"\",LettingDate)","v":""}]
[null,null,"SAMPLE STATUS:",{"$f":"IF(Status=\"\",\"\",Status)","v":""},null,null,"CONTROLLING CSJ:",{"$f":"IF(CCSJ=\"\",\"\",CCSJ)","v":""}]
[null,null,"COUNTY:",{"$f":"IF(County=\"\",\"\",County)","v":""},null,null,"SPEC YEAR:",{"$f":"IF(SpecYear=\"\",\"\",SpecYear)","v":""}]
[null,null,"SAMPLED BY:",{"$f":"IF(SampledBy=\"\",\"\",SampledBy)","v":""},null,null,"SPEC ITEM:",{"$f":"IF(SpecItem=\"\",\"\",SpecItem)","v":""}]
[null,null,"SAMPLE LOCATION:",{"$f":"IF(SampleLocation=\"\",\"\",SampleLocation)","v":""},null,null,"SPECIAL PROVISION:",{"$f":"IF(SpecialProvision=\"\",\"\",SpecialProvision)","v":""}]
[null,null,"MATERIAL CODE:",{"$f":"IF(Material=\"\",\"\",Material)","v":""},null,null,"MIX TYPE:",{"$f":"IF(Grade=\"\",\"\",Grade)","v":""}]
[null,null,"MATERIAL NAME:",{"$f":"IF(matl_nm=\"\",\"\",matl_nm)","v":""}]
[null,null,"PRODUCER:",{"$f":"IF(Producer=\"\",\"\",Producer)","v":""}]
[null,null,"AREA ENGINEER:",{"$f":"IF(AreaEngineer=\"\",\"\",AreaEngineer)","v":""},null,null,"PROJECT MANAGER:",{"$f":"IF(ProjectManager=\"\",\"\",ProjectManager)","v":""}]
[]
[null,null,"COURSE\\LIFT:",{"$f":"IF(CourseLift=\"\",\"\",CourseLift)","v":""},"STATION:",{"$f":"IF(Station=\"\",\"\",Station)","v":""},null,"DIST. FROM CL:",{"$f":"IF(DistFromCL=\"\",\"\",DistFromCL)","v":""}]
[]
[null,"TYPE OF DENSITY GAUGE:",null,null,"LOT:",null,"SUBLOT:"]
[null,"TYPE OF DENSITY GAUGE:",null,{"$f":"IF(version>1,IF($D$20=\"\",\"\",$D$20),Gauge_1)","v":""},"LOT:",{"$f":"IF(version>1,IF($F$20=\"\",\"\",$F$20),Lot)","v":""}]
[]
[null,null,{"$f":"IF(Gauge_2<>\"non-nuclear\",IF(OR(C27=\"\",D27=\"\",E27=\"\"),\"** Three Density Readings Are Required At Each Location **\",\"\"),IF(SpecYear=\"2004\",IF(OR(C27=\"\",D27=\"\"),\"**Two Density Readings Are Required At Each Location **\",\"\"),IF(OR(C27=\"\",D27=\"\",E27=\"\",F27=\"\",G27=\"\"),\"**Five Density Readings Are Required At Each Location **\",\"\")))","v":"** Three Density Readings Are Required At Each Location **"}]
[]
[null,"LOCATION","DENSITY READINGS",null,null,null,null,"AVERAGE"]
[null,null,1,2,3,4,5]
[null,"0'",null,null,null,null,null,{"$f":"+IF(ISERROR(AVERAGE(C27:G27)),\"\",AVERAGE(C27:G27))","v":""}]
[null,"5'",null,null,null,null,null,{"$f":"+IF(ISERROR(AVERAGE(C28:G28)),\"\",AVERAGE(C28:G28))","v":""}]
[null,"10'",null,null,null,null,null,""]
[null,"15'",null,null,null,null,null,""]
[null,"20'",null,null,null,null,null,""]
[null,"25'",null,null,null,null,null,""]
[null,"30'",null,null,null,null,null,""]
[null,"35'",null,null,null,null,null,""]
[null,"40'",null,null,null,null,null,""]
[null,"45'",null,null,null,null,null,""]
[null,"50'",null,null,null,null,null,""]
[]
[null,"AVERAGE READING:",null,{"$f":"+IF(C27=\"\",\"\",AVERAGE(H27:H37))","v":""}]
[null,"HIGH READING:",null,{"$f":"+IF(C27=\"\",\"\",MAX(H27:H37))","v":""}]
[null,"LOW READING:",null,{"$f":"+IF(C27=\"\",\"\",MIN(H27:H37))","v":""}]
[]
[null,"MAX ALLOWABLE DENSITY RANGE"]
[null,"HIGHEST TO LOWEST:",null,{"$f":"+IF(D40=\"\",\"\",D40-D41)","v":""},{"$f":"IF($D$44=\"\",\"\",IF(D44>(VLOOKUP(Grade,Data,2,TRUE)),\"<<Exceeds the acceptable criteria\",\"\"))","v":""}]
[null,"AVERAGE TO LOWEST:",null,{"$f":"+IF(D39=\"\",\"\",D39-D41)","v":""},{"$f":"IF($D$45=\"\",\"\",IF(D45>(VLOOKUP(Grade,Data,3,TRUE)),\"<<Exceeds the acceptable criteria\",\"\"))","v":""}]
[]
[]
[null,"Remarks:"]

{"sheet":"Segregation Density Profile_3","index":2,"n_rows":48,"n_cols":9,"rows_kept":48,"cut":false,"hidden":false,"merged":[[38,1,38,2],[44,1,44,2],[48,1,49,8],[39,1,39,2],[40,1,40,2],[42,1,42,3],[43,1,43,2],[19,1,19,2],[20,1,20,2],[22,2,22,7],[24,1,25,1],[24,2,24,6],[24,7,25,7],[12,3,12,4],[12,7,12,8],[13,3,13,8],[14,3,14,8],[15,3,15,4],[15,7,15,8],[9,3,9,4],[9,7,9,8],[10,3,10,4],[10,7,10,8],[11,3,11,4],[11,7,11,8],[6,3,6,4],[6,7,6,8],[7,3,7,4],[7,7,7,8],[8,3,8,4],[8,7,8,8]]}
[]
[null,"TEXAS DEPARTMENT OF TRANSPORTATION"]
[]
[null,"SEGREGATION PROFILE_3"]
[null,"TEX-207-F, PART V"]
[]
[null,null,"SAMPLE ID:",{"$f":"IF(sampleid=\"\",\"\",sampleid)","v":""},null,null,"SAMPLED DATE:",{"$f":"IF(SampledDate=\"\",\"\",SampledDate)","v":""}]
[null,null,"TEST NUMBER:",{"$f":"IF(TestNumber=\"\",\"\",TestNumber)","v":""},null,null,"LETTING DATE:",{"$f":"IF(LettingDate=\"\",\"\",LettingDate)","v":""}]
[null,null,"SAMPLE STATUS:",{"$f":"IF(Status=\"\",\"\",Status)","v":""},null,null,"CONTROLLING CSJ:",{"$f":"IF(CCSJ=\"\",\"\",CCSJ)","v":""}]
[null,null,"COUNTY:",{"$f":"IF(County=\"\",\"\",County)","v":""},null,null,"SPEC YEAR:",{"$f":"IF(SpecYear=\"\",\"\",SpecYear)","v":""}]
[null,null,"SAMPLED BY:",{"$f":"IF(SampledBy=\"\",\"\",SampledBy)","v":""},null,null,"SPEC ITEM:",{"$f":"IF(SpecItem=\"\",\"\",SpecItem)","v":""}]
[null,null,"SAMPLE LOCATION:",{"$f":"IF(SampleLocation=\"\",\"\",SampleLocation)","v":""},null,null,"SPECIAL PROVISION:",{"$f":"IF(SpecialProvision=\"\",\"\",SpecialProvision)","v":""}]
[null,null,"MATERIAL CODE:",{"$f":"IF(Material=\"\",\"\",Material)","v":""},null,null,"MIX TYPE:",{"$f":"IF(Grade=\"\",\"\",Grade)","v":""}]
[null,null,"MATERIAL NAME:",{"$f":"IF(matl_nm=\"\",\"\",matl_nm)","v":""}]
[null,null,"PRODUCER:",{"$f":"IF(Producer=\"\",\"\",Producer)","v":""}]
[null,null,"AREA ENGINEER:",{"$f":"IF(AreaEngineer=\"\",\"\",AreaEngineer)","v":""},null,null,"PROJECT MANAGER:",{"$f":"IF(ProjectManager=\"\",\"\",ProjectManager)","v":""}]
[]
[null,null,"COURSE\\LIFT:",{"$f":"IF(CourseLift=\"\",\"\",CourseLift)","v":""},"STATION:",{"$f":"IF(Station=\"\",\"\",Station)","v":""},null,"DIST. FROM CL:",{"$f":"IF(DistFromCL=\"\",\"\",DistFromCL)","v":""}]
[]
[null,"TYPE OF DENSITY GAUGE:",null,null,"LOT:",null,"SUBLOT:"]
[null,"TYPE OF DENSITY GAUGE:",null,{"$f":"IF(version>1,IF($D$20=\"\",\"\",$D$20),Gauge_1)","v":""},"LOT:",{"$f":"IF(version>1,IF($F$20=\"\",\"\",$F$20),Lot)","v":""}]
[]
[null,null,{"$f":"IF(Gauge_3<>\"non-nuclear\",IF(OR(C27=\"\",D27=\"\",E27=\"\"),\"** Three Density Readings Are Required At Each Location **\",\"\"),IF(SpecYear=\"2004\",IF(OR(C27=\"\",D27=\"\"),\"**Two Density Readings Are Required At Each Location **\",\"\"),IF(OR(C27=\"\",D27=\"\",E27=\"\",F27=\"\",G27=\"\"),\"**Five Density Readings Are Required At Each Location **\",\"\")))","v":"** Three Density Readings Are Required At Each Location **"}]
[]
[null,"LOCATION","DENSITY READINGS",null,null,null,null,"AVERAGE"]
[null,null,1,2,3,4,5]
[null,"0'",null,null,null,null,null,{"$f":"+IF(ISERROR(AVERAGE(C27:G27)),\"\",AVERAGE(C27:G27))","v":""}]
[null,"5'",null,null,null,null,null,{"$f":"+IF(ISERROR(AVERAGE(C28:G28)),\"\",AVERAGE(C28:G28))","v":""}]
[null,"10'",null,null,null,null,null,""]
[null,"15'",null,null,null,null,null,""]
[null,"20'",null,null,null,null,null,""]
[null,"25'",null,null,null,null,null,""]
[null,"30'",null,null,null,null,null,""]
[null,"35'",null,null,null,null,null,""]
[null,"40'",null,null,null,null,null,""]
[null,"45'",null,null,null,null,null,""]
[null,"50'",null,null,null,null,null,""]
[]
[null,"AVERAGE READING:",null,{"$f":"+IF(C27=\"\",\"\",AVERAGE(H27:H37))","v":""}]
[null,"HIGH READING:",null,{"$f":"+IF(C27=\"\",\"\",MAX(H27:H37))","v":""}]
[null,"LOW READING:",null,{"$f":"+IF(C27=\"\",\"\",MIN(H27:H37))","v":""}]
[]
[null,"MAX ALLOWABLE DENSITY RANGE"]
[null,"HIGHEST TO LOWEST:",null,{"$f":"+IF(D40=\"\",\"\",D40-D41)","v":""},{"$f":"IF($D$44=\"\",\"\",IF(D44>(VLOOKUP(Grade,Data,2,TRUE)),\"<<Exceeds the acceptable criteria\",\"\"))","v":""}]
[null,"AVERAGE TO LOWEST:",null,{"$f":"+IF(D39=\"\",\"\",D39-D41)","v":""},{"$f":"IF($D$45=\"\",\"\",IF(D45>(VLOOKUP(Grade,Data,3,TRUE)),\"<<Exceeds the acceptable criteria\",\"\"))","v":""}]
[]
[]
[null,"Remarks:"]

{"sheet":"Segregation Density Profile_4","index":3,"n_rows":48,"n_cols":9,"rows_kept":48,"cut":false,"hidden":false,"merged":[[38,1,38,2],[44,1,44,2],[48,1,49,8],[39,1,39,2],[40,1,40,2],[42,1,42,3],[43,1,43,2],[19,1,19,2],[20,1,20,2],[22,2,22,7],[24,1,25,1],[24,2,24,6],[24,7,25,7],[12,3,12,4],[12,7,12,8],[13,3,13,8],[14,3,14,8],[15,3,15,4],[15,7,15,8],[9,3,9,4],[9,7,9,8],[10,3,10,4],[10,7,10,8],[11,3,11,4],[11,7,11,8],[6,3,6,4],[6,7,6,8],[7,3,7,4],[7,7,7,8],[8,3,8,4],[8,7,8,8]]}
[]
[null,"TEXAS DEPARTMENT OF TRANSPORTATION"]
[]
[null,"SEGREGATION PROFILE_4"]
[null,"TEX-207-F, PART V"]
[]
[null,null,"SAMPLE ID:",{"$f":"IF(sampleid=\"\",\"\",sampleid)","v":""},null,null,"SAMPLED DATE:",{"$f":"IF(SampledDate=\"\",\"\",SampledDate)","v":""}]
[null,null,"TEST NUMBER:",{"$f":"IF(TestNumber=\"\",\"\",TestNumber)","v":""},null,null,"LETTING DATE:",{"$f":"IF(LettingDate=\"\",\"\",LettingDate)","v":""}]
[null,null,"SAMPLE STATUS:",{"$f":"IF(Status=\"\",\"\",Status)","v":""},null,null,"CONTROLLING CSJ:",{"$f":"IF(CCSJ=\"\",\"\",CCSJ)","v":""}]
[null,null,"COUNTY:",{"$f":"IF(County=\"\",\"\",County)","v":""},null,null,"SPEC YEAR:",{"$f":"IF(SpecYear=\"\",\"\",SpecYear)","v":""}]
[null,null,"SAMPLED BY:",{"$f":"IF(SampledBy=\"\",\"\",SampledBy)","v":""},null,null,"SPEC ITEM:",{"$f":"IF(SpecItem=\"\",\"\",SpecItem)","v":""}]
[null,null,"SAMPLE LOCATION:",{"$f":"IF(SampleLocation=\"\",\"\",SampleLocation)","v":""},null,null,"SPECIAL PROVISION:",{"$f":"IF(SpecialProvision=\"\",\"\",SpecialProvision)","v":""}]
[null,null,"MATERIAL CODE:",{"$f":"IF(Material=\"\",\"\",Material)","v":""},null,null,"MIX TYPE:",{"$f":"IF(Grade=\"\",\"\",Grade)","v":""}]
[null,null,"MATERIAL NAME:",{"$f":"IF(matl_nm=\"\",\"\",matl_nm)","v":""}]
[null,null,"PRODUCER:",{"$f":"IF(Producer=\"\",\"\",Producer)","v":""}]
[null,null,"AREA ENGINEER:",{"$f":"IF(AreaEngineer=\"\",\"\",AreaEngineer)","v":""},null,null,"PROJECT MANAGER:",{"$f":"IF(ProjectManager=\"\",\"\",ProjectManager)","v":""}]
[]
[null,null,"COURSE\\LIFT:",{"$f":"IF(CourseLift=\"\",\"\",CourseLift)","v":""},"STATION:",{"$f":"IF(Station=\"\",\"\",Station)","v":""},null,"DIST. FROM CL:",{"$f":"IF(DistFromCL=\"\",\"\",DistFromCL)","v":""}]
[]
[null,"TYPE OF DENSITY GAUGE:",null,null,"LOT:",null,"SUBLOT:"]
[null,"TYPE OF DENSITY GAUGE:",null,{"$f":"IF(version>1,IF($D$20=\"\",\"\",$D$20),Gauge_1)","v":""},"LOT:",{"$f":"IF(version>1,IF($F$20=\"\",\"\",$F$20),Lot)","v":""}]
[]
[null,null,{"$f":"IF(Gauge_4<>\"non-nuclear\",IF(OR(C27=\"\",D27=\"\",E27=\"\"),\"** Three Density Readings Are Required At Each Location **\",\"\"),IF(SpecYear=\"2004\",IF(OR(C27=\"\",D27=\"\"),\"**Two Density Readings Are Required At Each Location **\",\"\"),IF(OR(C27=\"\",D27=\"\",E27=\"\",F27=\"\",G27=\"\"),\"**Five Density Readings Are Required At Each Location **\",\"\")))","v":"** Three Density Readings Are Required At Each Location **"}]
[]
[null,"LOCATION","DENSITY READINGS",null,null,null,null,"AVERAGE"]
[null,null,1,2,3,4,5]
[null,"0'",null,null,null,null,null,{"$f":"+IF(ISERROR(AVERAGE(C27:G27)),\"\",AVERAGE(C27:G27))","v":""}]
[null,"5'",null,null,null,null,null,{"$f":"+IF(ISERROR(AVERAGE(C28:G28)),\"\",AVERAGE(C28:G28))","v":""}]
[null,"10'",null,null,null,null,null,""]
[null,"15'",null,null,null,null,null,""]
[null,"20'",null,null,null,null,null,""]
[null,"25'",null,null,null,null,null,""]
[null,"30'",null,null,null,null,null,""]
[null,"35'",null,null,null,null,null,""]
[null,"40'",null,null,null,null,null,""]
[null,"45'",null,null,null,null,null,""]
[null,"50'",null,null,null,null,null,""]
[]
[null,"AVERAGE READING:",null,{"$f":"+IF(C27=\"\",\"\",AVERAGE(H27:H37))","v":""}]
[null,"HIGH READING:",null,{"$f":"+IF(C27=\"\",\"\",MAX(H27:H37))","v":""}]
[null,"LOW READING:",null,{"$f":"+IF(C27=\"\",\"\",MIN(H27:H37))","v":""}]
[]
[null,"MAX ALLOWABLE DENSITY RANGE"]
[null,"HIGHEST TO LOWEST:",null,{"$f":"+IF(D40=\"\",\"\",D40-D41)","v":""},{"$f":"IF($D$44=\"\",\"\",IF(D44>(VLOOKUP(Grade,Data,2,TRUE)),\"<<Exceeds the acceptable criteria\",\"\"))","v":""}]
[null,"AVERAGE TO LOWEST:",null,{"$f":"+IF(D39=\"\",\"\",D39-D41)","v":""},{"$f":"IF($D$45=\"\",\"\",IF(D45>(VLOOKUP(Grade,Data,3,TRUE)),\"<<Exceeds the acceptable criteria\",\"\"))","v":""}]
[]
[]
[null,"Remarks:"]

{"sheet":"Summary","index":4,"n_rows":41,"n_cols":9,"rows_kept":41,"cut":false,"hidden":false,"merged":[[21,2,21,3],[22,2,22,3],[39,2,39,3],[23,2,23,7],[40,2,40,3],[35,2,35,3],[36,2,36,3],[37,2,37,3],[38,2,38,7],[20,2,20,3],[15,3,15,4],[15,7,15,8],[10,3,10,4],[12,3,12,4],[12,7,12,8],[13,3,13,8],[10,7,10,8],[11,3,11,4],[11,7,11,8],[14,3,14,8],[8,3,8,4],[8,7,8,8],[9,3,9,4],[9,7,9,8],[6,3,6,4],[6,7,6,8],[7,3,7,4],[7,7,7,8]]}
[]
[null,"TEXAS DEPARTMENT OF TRANSPORTATION"]
[]
[null,"TEST SUMMARY"]
[null,"TEX-207-F, PART V"]
[]
[null,null,"SAMPLE ID:",{"$f":"IF(sampleid=\"\",\"\",sampleid)","v":""},null,null,"SAMPLED DATE:",{"$f":"IF(SampledDate=\"\",\"\",SampledDate)","v":""}]
[null,null,"TEST NUMBER:",{"$f":"IF(TestNumber=\"\",\"\",TestNumber)","v":""},null,null,"LETTING DATE:",{"$f":"IF(LettingDate=\"\",\"\",LettingDate)","v":""}]
[null,null,"SAMPLE STATUS:",{"$f":"IF(Status=\"\",\"\",Status)","v":""},null,null,"CONTROLLING CSJ:",{"$f":"IF(CCSJ=\"\",\"\",CCSJ)","v":""}]
[null,null,"COUNTY:",{"$f":"IF(County=\"\",\"\",County)","v":""},null,null,"SPEC YEAR:",{"$f":"IF(SpecYear=\"\",\"\",SpecYear)","v":""}]
[null,null,"SAMPLED BY:",{"$f":"IF(SampledBy=\"\",\"\",SampledBy)","v":""},null,null,"SPEC ITEM:",{"$f":"IF(SpecItem=\"\",\"\",SpecItem)","v":""}]
[null,null,"SAMPLE LOCATION:",{"$f":"IF(SampleLocation=\"\",\"\",SampleLocation)","v":""},null,null,"SPECIAL PROVISION:",{"$f":"IF(SpecialProvision=\"\",\"\",SpecialProvision)","v":""}]
[null,null,"MATERIAL CODE:",{"$f":"IF(Material=\"\",\"\",Material)","v":""},null,null,"MIX TYPE:",{"$f":"IF(Grade=\"\",\"\",Grade)","v":""}]
[null,null,"MATERIAL NAME:",{"$f":"IF(matl_nm=\"\",\"\",matl_nm)","v":""}]
[null,null,"PRODUCER:",{"$f":"IF(Producer=\"\",\"\",Producer)","v":""}]
[null,null,"AREA ENGINEER:",{"$f":"IF(AreaEngineer=\"\",\"\",AreaEngineer)","v":""},null,null,"PROJECT MANAGER:",{"$f":"IF(ProjectManager=\"\",\"\",ProjectManager)","v":""}]
[]
[null,null,"COURSE\\LIFT:",{"$f":"IF(CourseLift=\"\",\"\",CourseLift)","v":""},"STATION:",{"$f":"IF(Station=\"\",\"\",Station)","v":""},null,"DIST. FROM CL:",{"$f":"IF(DistFromCL=\"\",\"\",DistFromCL)","v":""}]
[]
[]
[null,null,"LOT:",null,{"$f":"IF(Lot=\"\",\"\",Lot)","v":""},{"$f":"IF(Lot_2=\"\",\"\",Lot_2)","v":""},{"$f":"IF(Lot_3=\"\",\"\",Lot_3)","v":""},{"$f":"IF(Lot_4=\"\",\"\",Lot_4)","v":""}]
[null,null,"SUBLOT:",null,{"$f":"IF(Sublot_1=\"\",\"\",Sublot_1)","v":""},{"$f":"IF(Sublot_2=\"\",\"\",Sublot_2)","v":""},{"$f":"IF(Sublot_3=\"\",\"\",Sublot_3)","v":""},{"$f":"IF(Sublot_4=\"\",\"\",Sublot_4)","v":""}]
[null,null,"TYPE OF DENSITY GAUGE:",null,{"$f":"IF(Gauge_1=\"\",\"\",Gauge_1)","v":""},{"$f":"IF(Gauge_2=\"\",\"\",Gauge_2)","v":""},{"$f":"IF(Gauge_3=\"\",\"\",Gauge_3)","v":""},{"$f":"IF(Gauge_4=\"\",\"\",Gauge_4)","v":""}]
[null,null,"AVERAGE DENSITY READINGS"]
[null,null,null,"0'",{"$f":"IF('Segregation Density Profile_1'!H27=\"\",\"\",'Segregation Density Profile_1'!H27)","v":""},{"$f":"IF('Segregation Density Profile_2'!H27=\"\",\"\",'Segregation Density Profile_2'!H27)","v":""},{"$f":"IF('Segregation Density Profile_3'!H27=\"\",\"\",'Segregation Density Profile_3'!H27)","v":""},{"$f":"IF('Segregation Density Profile_4'!H27=\"\",\"\",'Segregation Density Profile_4'!H27)","v":""}]
[null,null,null,"5'",{"$f":"IF('Segregation Density Profile_1'!H28=\"\",\"\",'Segregation Density Profile_1'!H28)","v":""},{"$f":"IF('Segregation Density Profile_2'!H28=\"\",\"\",'Segregation Density Profile_2'!H28)","v":""},{"$f":"IF('Segregation Density Profile_3'!H28=\"\",\"\",'Segregation Density Profile_3'!H28)","v":""},{"$f":"IF('Segregation Density Profile_4'!H28=\"\",\"\",'Segregation Density Profile_4'!H28)","v":""}]
[null,null,null,"10'",{"$f":"IF('Segregation Density Profile_1'!H29=\"\",\"\",'Segregation Density Profile_1'!H29)","v":""},{"$f":"IF('Segregation Density Profile_2'!H29=\"\",\"\",'Segregation Density Profile_2'!H29)","v":""},{"$f":"IF('Segregation Density Profile_3'!H29=\"\",\"\",'Segregation Density Profile_3'!H29)","v":""},{"$f":"IF('Segregation Density Profile_4'!H29=\"\",\"\",'Segregation Density Profile_4'!H29)","v":""}]
[null,null,null,"15'",{"$f":"IF('Segregation Density Profile_1'!H30=\"\",\"\",'Segregation Density Profile_1'!H30)","v":""},{"$f":"IF('Segregation Density Profile_2'!H30=\"\",\"\",'Segregation Density Profile_2'!H30)","v":""},{"$f":"IF('Segregation Density Profile_3'!H30=\"\",\"\",'Segregation Density Profile_3'!H30)","v":""},{"$f":"IF('Segregation Density Profile_4'!H30=\"\",\"\",'Segregation Density Profile_4'!H30)","v":""}]
[null,null,null,"20'",{"$f":"IF('Segregation Density Profile_1'!H31=\"\",\"\",'Segregation Density Profile_1'!H31)","v":""},{"$f":"IF('Segregation Density Profile_2'!H31=\"\",\"\",'Segregation Density Profile_2'!H31)","v":""},{"$f":"IF('Segregation Density Profile_3'!H31=\"\",\"\",'Segregation Density Profile_3'!H31)","v":""},{"$f":"IF('Segregation Density Profile_4'!H31=\"\",\"\",'Segregation Density Profile_4'!H31)","v":""}]
[null,null,null,"25'",{"$f":"IF('Segregation Density Profile_1'!H32=\"\",\"\",'Segregation Density Profile_1'!H32)","v":""},{"$f":"IF('Segregation Density Profile_2'!H32=\"\",\"\",'Segregation Density Profile_2'!H32)","v":""},{"$f":"IF('Segregation Density Profile_3'!H32=\"\",\"\",'Segregation Density Profile_3'!H32)","v":""},{"$f":"IF('Segregation Density Profile_4'!H32=\"\",\"\",'Segregation Density Profile_4'!H32)","v":""}]
[null,null,null,"30'",{"$f":"IF('Segregation Density Profile_1'!H33=\"\",\"\",'Segregation Density Profile_1'!H33)","v":""},{"$f":"IF('Segregation Density Profile_2'!H33=\"\",\"\",'Segregation Density Profile_2'!H33)","v":""},{"$f":"IF('Segregation Density Profile_3'!H33=\"\",\"\",'Segregation Density Profile_3'!H33)","v":""},{"$f":"IF('Segregation Density Profile_4'!H33=\"\",\"\",'Segregation Density Profile_4'!H33)","v":""}]
[null,null,null,"35'",{"$f":"IF('Segregation Density Profile_1'!H34=\"\",\"\",'Segregation Density Profile_1'!H34)","v":""},{"$f":"IF('Segregation Density Profile_2'!H34=\"\",\"\",'Segregation Density Profile_2'!H34)","v":""},{"$f":"IF('Segregation Density Profile_3'!H34=\"\",\"\",'Segregation Density Profile_3'!H34)","v":""},{"$f":"IF('Segregation Density Profile_4'!H34=\"\",\"\",'Segregation Density Profile_4'!H34)","v":""}]
[null,null,null,"40'",{"$f":"IF('Segregation Density Profile_1'!H35=\"\",\"\",'Segregation Density Profile_1'!H35)","v":""},{"$f":"IF('Segregation Density Profile_2'!H35=\"\",\"\",'Segregation Density Profile_2'!H35)","v":""},{"$f":"IF('Segregation Density Profile_3'!H35=\"\",\"\",'Segregation Density Profile_3'!H35)","v":""},{"$f":"IF('Segregation Density Profile_4'!H35=\"\",\"\",'Segregation Density Profile_4'!H35)","v":""}]
[null,null,null,"45'",{"$f":"IF('Segregation Density Profile_1'!H36=\"\",\"\",'Segregation Density Profile_1'!H36)","v":""},{"$f":"IF('Segregation Density Profile_2'!H36=\"\",\"\",'Segregation Density Profile_2'!H36)","v":""},{"$f":"IF('Segregation Density Profile_3'!H36=\"\",\"\",'Segregation Density Profile_3'!H36)","v":""},{"$f":"IF('Segregation Density Profile_4'!H36=\"\",\"\",'Segregation Density Profile_4'!H36)","v":""}]
[null,null,null,"50'",{"$f":"IF('Segregation Density Profile_1'!H37=\"\",\"\",'Segregation Density Profile_1'!H37)","v":""},{"$f":"IF('Segregation Density Profile_2'!H37=\"\",\"\",'Segregation Density Profile_2'!H37)","v":""},{"$f":"IF('Segregation Density Profile_3'!H37=\"\",\"\",'Segregation Density Profile_3'!H37)","v":""},{"$f":"IF('Segregation Density Profile_4'!H37=\"\",\"\",'Segregation Density Profile_4'!H37)","v":""}]
[null,null,"SUBLOT AVERAGE READING:",null,{"$f":"IF('Segregation Density Profile_1'!D39=\"\",\"\",'Segregation Density Profile_1'!D39)","v":""},{"$f":"IF('Segregation Density Profile_2'!D39=\"\",\"\",'Segregation Density Profile_2'!D39)","v":""},{"$f":"IF('Segregation Density Profile_3'!D39=\"\",\"\",'Segregation Density Profile_3'!D39)","v":""},{"$f":"IF('Segregation Density Profile_4'!D39=\"\",\"\",'Segregation Density Profile_4'!D39)","v":""}]
[null,null,"HIGH READING:",null,{"$f":"IF('Segregation Density Profile_1'!D40=\"\",\"\",'Segregation Density Profile_1'!D40)","v":""},{"$f":"IF('Segregation Density Profile_2'!D40=\"\",\"\",'Segregation Density Profile_2'!D40)","v":""},{"$f":"IF('Segregation Density Profile_3'!D40=\"\",\"\",'Segregation Density Profile_3'!D40)","v":""},{"$f":"IF('Segregation Density Profile_4'!D40=\"\",\"\",'Segregation Density Profile_4'!D40)","v":""}]
[null,null,"LOW READING:",null,{"$f":"IF('Segregation Density Profile_1'!D41=\"\",\"\",'Segregation Density Profile_1'!D41)","v":""},{"$f":"IF('Segregation Density Profile_2'!D41=\"\",\"\",'Segregation Density Profile_2'!D41)","v":""},{"$f":"IF('Segregation Density Profile_3'!D41=\"\",\"\",'Segregation Density Profile_3'!D41)","v":""},{"$f":"IF('Segregation Density Profile_4'!D41=\"\",\"\",'Segregation Density Profile_4'!D41)","v":""}]
[null,null,"MAXIMUM ALLOWABLE DENSITY RANGE"]
[null,null,"HIGHEST TO LOWEST:",null,{"$f":"IF('Segregation Density Profile_1'!D44=\"\",\"\",'Segregation Density Profile_1'!D44)","v":""},{"$f":"IF('Segregation Density Profile_2'!D44=\"\",\"\",'Segregation Density Profile_2'!D44)","v":""},{"$f":"IF('Segregation Density Profile_3'!D44=\"\",\"\",'Segregation Density Profile_3'!D44)","v":""},{"$f":"IF('Segregation Density Profile_4'!D44=\"\",\"\",'Segregation Density Profile_4'!D44)","v":""},{"$f":"IF(AND('Segregation Density Profile_1'!E44=\"\",'Segregation Density Profile_2'!E44=\"\",'Segregation Density Profile_3'!E44=\"\",'Segregation Density Profile_4'!E44=\"\"),\"\",\"<<Exceeds the acceptable criteria\")","v":""}]
[null,null,"AVERAGE TO LOWEST:",null,{"$f":"IF('Segregation Density Profile_1'!D45=\"\",\"\",'Segregation Density Profile_1'!D45)","v":""},{"$f":"IF('Segregation Density Profile_2'!D45=\"\",\"\",'Segregation Density Profile_2'!D45)","v":""},{"$f":"IF('Segregation Density Profile_3'!D45=\"\",\"\",'Segregation Density Profile_3'!D45)","v":""},{"$f":"IF('Segregation Density Profile_4'!D45=\"\",\"\",'Segregation Density Profile_4'!D45)","v":""},{"$f":"IF(AND('Segregation Density Profile_1'!E45=\"\",'Segregation Density Profile_2'!E45=\"\",'Segregation Density Profile_3'!E45=\"\",'Segregation Density Profile_4'!E45=\"\"),\"\",\"<<Exceeds the acceptable criteria\")","v":""}]

{"sheet":"RX","index":5,"n_rows":310,"n_cols":10,"rows_kept":310,"cut":false,"hidden":true,"merged":[]}
[309]
["Fld_nbr","Value","Desc_1","Desc_2","Desc_3","Desc_4","Desc_5","Desc_6","Desc_7","Desc_8"]
[1,{"$f":"IF('Segregation Density Profile_1'!$B$49=\"\",\"\",'Segregation Density Profile_1'!$B$49)","v":""},{"$f":"'Segregation Density Profile_1'!$B$48","v":"Remarks:"},{"$f":"IF('Segregation Density Profile_1'!$B$4=\"\",\"\",'Segregation Density Profile_1'!$B$4)","v":"SEGREGATION PROFILE_1"}]
[2,{"$f":"IF('Segregation Density Profile_2'!$B$49=\"\",\"\",'Segregation Density Profile_2'!$B$49)","v":""},{"$f":"'Segregation Density Profile_2'!$B$48","v":"Remarks:"},{"$f":"IF('Segregation Density Profile_2'!$B$4=\"\",\"\",'Segregation Density Profile_2'!$B$4)","v":"SEGREGATION PROFILE_2"}]
[3,{"$f":"IF('Segregation Density Profile_3'!$B$49=\"\",\"\",'Segregation Density Profile_3'!$B$49)","v":""},{"$f":"'Segregation Density Profile_3'!$B$48","v":"Remarks:"},{"$f":"IF('Segregation Density Profile_3'!$B$4=\"\",\"\",'Segregation Density Profile_3'!$B$4)","v":"SEGREGATION PROFILE_3"}]
[4,{"$f":"IF('Segregation Density Profile_4'!$B$49=\"\",\"\",'Segregation Density Profile_4'!$B$49)","v":""},{"$f":"'Segregation Density Profile_4'!$B$48","v":"Remarks:"},{"$f":"IF('Segregation Density Profile_4'!$B$4=\"\",\"\",'Segregation Density Profile_4'!$B$4)","v":"SEGREGATION PROFILE_4"}]
[5,{"$f":"IF('Segregation Density Profile_1'!$D$18=\"\",\"\",'Segregation Density Profile_1'!$D$18)","v":""},{"$f":"IF('Segregation Density Profile_1'!$C$18=\"\",\"\",'Segregation Density Profile_1'!$C$18)","v":"COURSE\\LIFT:"}]
[6,{"$f":"IF('Segregation Density Profile_1'!$C$54=\"\",\"\",'Segregation Density Profile_1'!$C$54)","v":""},"Tested By ",{"$f":"IF('Segregation Density Profile_1'!$B$54=\"\",\"\",'Segregation Density Profile_1'!$B$54)","v":"TX207"}]
[7,{"$f":"IF('Segregation Density Profile_1'!$F$54=\"\",\"\",'Segregation Density Profile_1'!$F$54)","v":""},"Tested Date ",{"$f":"IF('Segregation Density Profile_1'!$B$54=\"\",\"\",'Segregation Density Profile_1'!$B$54)","v":"TX207"}]
[8,{"$f":"IF('Segregation Density Profile_1'!$D$20=\"\",\"\",'Segregation Density Profile_1'!$D$20)","v":""},{"$f":"IF('Segregation Density Profile_1'!$B$5=\"\",\"\",'Segregation Density Profile_1'!$B$5)","v":"TEX-207-F, PART V"},{"$f":"IF('Segregation Density Profile_1'!$B$4=\"\",\"\",'Segregation Density Profile_1'!$B$4)","v":"SEGREGATION PROFILE_1"},{"$f":"IF('Segregation Density Profile_1'!$B$20=\"\",\"\",'Segregation Density Profile_1'!$B$20)","v":"TYPE OF DENSITY GAUGE:"}]
[9,{"$f":"IF('Segregation Density Profile_1'!$C$27=\"\",\"\",'Segregation Density Profile_1'!$C$27)","v":""},{"$f":"IF('Segregation Density Profile_1'!$B$5=\"\",\"\",'Segregation Density Profile_1'!$B$5)","v":"TEX-207-F, PART V"},{"$f":"IF('Segregation Density Profile_1'!$B$4=\"\",\"\",'Segregation Density Profile_1'!$B$4)","v":"SEGREGATION PROFILE_1"},{"$f":"IF('Segregation Density Profile_1'!$B$25=\"\",\"\",'Segregation Density Profile_1'!$B$25)","v":"LOCATION"},{"$f":"IF('Segregation Density Profile_1'!$B$27=\"\",\"\",'Segregation Density Profile_1'!$B$27)","v":"0'"},{"$f":"IF('Segregation Density Profile_1'!$C$25=\"\",\"\",'Segregation Density Profile_1'!$C$25)","v":"DENSITY READINGS"},{"$f":"IF('Segregation Density Profile_1'!$C$26=\"\",\"\",'Segregation Density Profile_1'!$C$26)","v":1}]
[10,{"$f":"IF('Segregation Density Profile_1'!$D$27=\"\",\"\",'Segregation Density Profile_1'!$D$27)","v":""},{"$f":"IF('Segregation Density Profile_1'!$B$5=\"\",\"\",'Segregation Density Profile_1'!$B$5)","v":"TEX-207-F, PART V"},{"$f":"IF('Segregation Density Profile_1'!$B$4=\"\",\"\",'Segregation Density Profile_1'!$B$4)","v":"SEGREGATION PROFILE_1"},{"$f":"IF('Segregation Density Profile_1'!$B$25=\"\",\"\",'Segregation Density Profile_1'!$B$25)","v":"LOCATION"},{"$f":"IF('Segregation Density Profile_1'!$B$27=\"\",\"\",'Segregation Density Profile_1'!$B$27)","v":"0'"},{"$f":"IF('Segregation Density Profile_1'!$C$25=\"\",\"\",'Segregation Density Profile_1'!$C$25)","v":"DENSITY READINGS"},{"$f":"IF('Segregation Density Profile_1'!$D$26=\"\",\"\",'Segregation Density Profile_1'!$D$26)","v":2}]
[11,{"$f":"IF('Segregation Density Profile_1'!$E$27=\"\",\"\",'Segregation Density Profile_1'!$E$27)","v":""},{"$f":"IF('Segregation Density Profile_1'!$B$5=\"\",\"\",'Segregation Density Profile_1'!$B$5)","v":"TEX-207-F, PART V"},{"$f":"IF('Segregation Density Profile_1'!$B$4=\"\",\"\",'Segregation Density Profile_1'!$B$4)","v":"SEGREGATION PROFILE_1"},{"$f":"IF('Segregation Density Profile_1'!$B$25=\"\",\"\",'Segregation Density Profile_1'!$B$25)","v":"LOCATION"},{"$f":"IF('Segregation Density Profile_1'!$B$27=\"\",\"\",'Segregation Density Profile_1'!$B$27)","v":"0'"},{"$f":"IF('Segregation Density Profile_1'!$C$25=\"\",\"\",'Segregation Density Profile_1'!$C$25)","v":"DENSITY READINGS"},{"$f":"IF('Segregation Density Profile_1'!$E$26=\"\",\"\",'Segregation Density Profile_1'!$E$26)","v":3}]
[12,{"$f":"IF('Segregation Density Profile_1'!$F$27=\"\",\"\",'Segregation Density Profile_1'!$F$27)","v":""},{"$f":"IF('Segregation Density Profile_1'!$B$5=\"\",\"\",'Segregation Density Profile_1'!$B$5)","v":"TEX-207-F, PART V"},{"$f":"IF('Segregation Density Profile_1'!$B$4=\"\",\"\",'Segregation Density Profile_1'!$B$4)","v":"SEGREGATION PROFILE_1"},{"$f":"IF('Segregation Density Profile_1'!$B$25=\"\",\"\",'Segregation Density Profile_1'!$B$25)","v":"LOCATION"},{"$f":"IF('Segregation Density Profile_1'!$B$27=\"\",\"\",'Segregation Density Profile_1'!$B$27)","v":"0'"},{"$f":"IF('Segregation Density Profile_1'!$C$25=\"\",\"\",'Segregation Density Profile_1'!$C$25)","v":"DENSITY READINGS"},{"$f":"IF('Segregation Density Profile_1'!$F$26=\"\",\"\",'Segregation Density Profile_1'!$F$26)","v":4}]
[13,{"$f":"IF('Segregation Density Profile_1'!$G$27=\"\",\"\",'Segregation Density Profile_1'!$G$27)","v":""},{"$f":"IF('Segregation Density Profile_1'!$B$5=\"\",\"\",'Segregation Density Profile_1'!$B$5)","v":"TEX-207-F, PART V"},{"$f":"IF('Segregation Density Profile_1'!$B$4=\"\",\"\",'Segregation Density Profile_1'!$B$4)","v":"SEGREGATION PROFILE_1"},{"$f":"IF('Segregation Density Profile_1'!$B$25=\"\",\"\",'Segregation Density Profile_1'!$B$25)","v":"LOCATION"},{"$f":"IF('Segregation Density Profile_1'!$B$27=\"\",\"\",'Segregation Density Profile_1'!$B$27)","v":"0'"},{"$f":"IF('Segregation Density Profile_1'!$C$25=\"\",\"\",'Segregation Density Profile_1'!$C$25)","v":"DENSITY READINGS"},{"$f":"IF('Segregation Density Profile_1'!$G$26=\"\",\"\",'Segregation Density Profile_1'!$G$26)","v":5}]
[14,{"$f":"IF('Segregation Density Profile_1'!$H$27=\"\",\"\",'Segregation Density Profile_1'!$H$27)","v":""},{"$f":"IF('Segregation Density Profile_1'!$B$5=\"\",\"\",'Segregation Density Profile_1'!$B$5)","v":"TEX-207-F, PART V"},{"$f":"IF('Segregation Density Profile_1'!$B$4=\"\",\"\",'Segregation Density Profile_1'!$B$4)","v":"SEGREGATION PROFILE_1"},{"$f":"IF('Segregation Density Profile_1'!$B$25=\"\",\"\",'Segregation Density Profile_1'!$B$25)","v":"LOCATION"},{"$f":"IF('Segregation Density Profile_1'!$B$27=\"\",\"\",'Segregation Density Profile_1'!$B$27)","v":"0'"},{"$f":"IF('Segregation Density Profile_1'!$H$25=\"\",\"\",'Segregation Density Profile_1'!$H$25)","v":"AVERAGE"}]
[15,{"$f":"IF('Segregation Density Profile_1'!$C$28=\"\",\"\",'Segregation Density Profile_1'!$C$28)","v":""},{"$f":"IF('Segregation Density Profile_1'!$B$5=\"\",\"\",'Segregation Density Profile_1'!$B$5)","v":"TEX-207-F, PART V"},{"$f":"IF('Segregation Density Profile_1'!$B$4=\"\",\"\",'Segregation Density Profile_1'!$B$4)","v":"SEGREGATION PROFILE_1"},{"$f":"IF('Segregation Density Profile_1'!$B$25=\"\",\"\",'Segregation Density Profile_1'!$B$25)","v":"LOCATION"},{"$f":"IF('Segregation Density Profile_1'!$B$28=\"\",\"\",'Segregation Density Profile_1'!$B$28)","v":"5'"},{"$f":"IF('Segregation Density Profile_1'!$C$25=\"\",\"\",'Segregation Density Profile_1'!$C$25)","v":"DENSITY READINGS"},{"$f":"IF('Segregation Density Profile_1'!$C$26=\"\",\"\",'Segregation Density Profile_1'!$C$26)","v":1}]
[16,{"$f":"IF('Segregation Density Profile_1'!$D$28=\"\",\"\",'Segregation Density Profile_1'!$D$28)","v":""},{"$f":"IF('Segregation Density Profile_1'!$B$5=\"\",\"\",'Segregation Density Profile_1'!$B$5)","v":"TEX-207-F, PART V"},{"$f":"IF('Segregation Density Profile_1'!$B$4=\"\",\"\",'Segregation Density Profile_1'!$B$4)","v":"SEGREGATION PROFILE_1"},{"$f":"IF('Segregation Density Profile_1'!$B$25=\"\",\"\",'Segregation Density Profile_1'!$B$25)","v":"LOCATION"},{"$f":"IF('Segregation Density Profile_1'!$B$28=\"\",\"\",'Segregation Density Profile_1'!$B$28)","v":"5'"},{"$f":"IF('Segregation Density Profile_1'!$C$25=\"\",\"\",'Segregation Density Profile_1'!$C$25)","v":"DENSITY READINGS"},{"$f":"IF('Segregation Density Profile_1'!$D$26=\"\",\"\",'Segregation Density Profile_1'!$D$26)","v":2}]
[17,{"$f":"IF('Segregation Density Profile_1'!$E$28=\"\",\"\",'Segregation Density Profile_1'!$E$28)","v":""},{"$f":"IF('Segregation Density Profile_1'!$B$5=\"\",\"\",'Segregation Density Profile_1'!$B$5)","v":"TEX-207-F, PART V"},{"$f":"IF('Segregation Density Profile_1'!$B$4=\"\",\"\",'Segregation Density Profile_1'!$B$4)","v":"SEGREGATION PROFILE_1"},{"$f":"IF('Segregation Density Profile_1'!$B$25=\"\",\"\",'Segregation Density Profile_1'!$B$25)","v":"LOCATION"},{"$f":"IF('Segregation Density Profile_1'!$B$28=\"\",\"\",'Segregation Density Profile_1'!$B$28)","v":"5'"},{"$f":"IF('Segregation Density Profile_1'!$C$25=\"\",\"\",'Segregation Density Profile_1'!$C$25)","v":"DENSITY READINGS"},{"$f":"IF('Segregation Density Profile_1'!$E$26=\"\",\"\",'Segregation Density Profile_1'!$E$26)","v":3}]
[18,{"$f":"IF('Segregation Density Profile_1'!$F$28=\"\",\"\",'Segregation Density Profile_1'!$F$28)","v":""},{"$f":"IF('Segregation Density Profile_1'!$B$5=\"\",\"\",'Segregation Density Profile_1'!$B$5)","v":"TEX-207-F, PART V"},{"$f":"IF('Segregation Density Profile_1'!$B$4=\"\",\"\",'Segregation Density Profile_1'!$B$4)","v":"SEGREGATION PROFILE_1"},{"$f":"IF('Segregation Density Profile_1'!$B$25=\"\",\"\",'Segregation Density Profile_1'!$B$25)","v":"LOCATION"},{"$f":"IF('Segregation Density Profile_1'!$B$28=\"\",\"\",'Segregation Density Profile_1'!$B$28)","v":"5'"},{"$f":"IF('Segregation Density Profile_1'!$C$25=\"\",\"\",'Segregation Density Profile_1'!$C$25)","v":"DENSITY READINGS"},{"$f":"IF('Segregation Density Profile_1'!$F$26=\"\",\"\",'Segregation Density Profile_1'!$F$26)","v":4}]
[19,{"$f":"IF('Segregation Density Profile_1'!$G$28=\"\",\"\",'Segregation Density Profile_1'!$G$28)","v":""},{"$f":"IF('Segregation Density Profile_1'!$B$5=\"\",\"\",'Segregation Density Profile_1'!$B$5)","v":"TEX-207-F, PART V"},{"$f":"IF('Segregation Density Profile_1'!$B$4=\"\",\"\",'Segregation Density Profile_1'!$B$4)","v":"SEGREGATION PROFILE_1"},{"$f":"IF('Segregation Density Profile_1'!$B$25=\"\",\"\",'Segregation Density Profile_1'!$B$25)","v":"LOCATION"},{"$f":"IF('Segregation Density Profile_1'!$B$28=\"\",\"\",'Segregation Density Profile_1'!$B$28)","v":"5'"},{"$f":"IF('Segregation Density Profile_1'!$C$25=\"\",\"\",'Segregation Density Profile_1'!$C$25)","v":"DENSITY READINGS"},{"$f":"IF('Segregation Density Profile_1'!$G$26=\"\",\"\",'Segregation Density Profile_1'!$G$26)","v":5}]
[20,{"$f":"IF('Segregation Density Profile_1'!$H$28=\"\",\"\",'Segregation Density Profile_1'!$H$28)","v":""},{"$f":"IF('Segregation Density Profile_1'!$B$5=\"\",\"\",'Segregation Density Profile_1'!$B$5)","v":"TEX-207-F, PART V"},{"$f":"IF('Segregation Density Profile_1'!$B$4=\"\",\"\",'Segregation Density Profile_1'!$B$4)","v":"SEGREGATION PROFILE_1"},{"$f":"IF('Segregation Density Profile_1'!$B$25=\"\",\"\",'Segregation Density Profile_1'!$B$25)","v":"LOCATION"},{"$f":"IF('Segregation Density Profile_1'!$B$28=\"\",\"\",'Segregation Density Profile_1'!$B$28)","v":"5'"},{"$f":"IF('Segregation Density Profile_1'!$H$25=\"\",\"\",'Segregation Density Profile_1'!$H$25)","v":"AVERAGE"}]
[21,{"$f":"IF('Segregation Density Profile_1'!$C$29=\"\",\"\",'Segregation Density Profile_1'!$C$29)","v":""},{"$f":"IF('Segregation Density Profile_1'!$B$5=\"\",\"\",'Segregation Density Profile_1'!$B$5)","v":"TEX-207-F, PART V"},{"$f":"IF('Segregation Density Profile_1'!$B$4=\"\",\"\",'Segregation Density Profile_1'!$B$4)","v":"SEGREGATION PROFILE_1"},{"$f":"IF('Segregation Density Profile_1'!$B$25=\"\",\"\",'Segregation Density Profile_1'!$B$25)","v":"LOCATION"},{"$f":"IF('Segregation Density Profile_1'!$B$29=\"\",\"\",'Segregation Density Profile_1'!$B$29)","v":"10'"},{"$f":"IF('Segregation Density Profile_1'!$C$25=\"\",\"\",'Segregation Density Profile_1'!$C$25)","v":"DENSITY READINGS"},{"$f":"IF('Segregation Density Profile_1'!$C$26=\"\",\"\",'Segregation Density Profile_1'!$C$26)","v":1}]
[22,{"$f":"IF('Segregation Density Profile_1'!$D$29=\"\",\"\",'Segregation Density Profile_1'!$D$29)","v":""},{"$f":"IF('Segregation Density Profile_1'!$B$5=\"\",\"\",'Segregation Density Profile_1'!$B$5)","v":"TEX-207-F, PART V"},{"$f":"IF('Segregation Density Profile_1'!$B$4=\"\",\"\",'Segregation Density Profile_1'!$B$4)","v":"SEGREGATION PROFILE_1"},{"$f":"IF('Segregation Density Profile_1'!$B$25=\"\",\"\",'Segregation Density Profile_1'!$B$25)","v":"LOCATION"},{"$f":"IF('Segregation Density Profile_1'!$B$29=\"\",\"\",'Segregation Density Profile_1'!$B$29)","v":"10'"},{"$f":"IF('Segregation Density Profile_1'!$C$25=\"\",\"\",'Segregation Density Profile_1'!$C$25)","v":"DENSITY READINGS"},{"$f":"IF('Segregation Density Profile_1'!$D$26=\"\",\"\",'Segregation Density Profile_1'!$D$26)","v":2}]
[23,{"$f":"IF('Segregation Density Profile_1'!$E$29=\"\",\"\",'Segregation Density Profile_1'!$E$29)","v":""},{"$f":"IF('Segregation Density Profile_1'!$B$5=\"\",\"\",'Segregation Density Profile_1'!$B$5)","v":"TEX-207-F, PART V"},{"$f":"IF('Segregation Density Profile_1'!$B$4=\"\",\"\",'Segregation Density Profile_1'!$B$4)","v":"SEGREGATION PROFILE_1"},{"$f":"IF('Segregation Density Profile_1'!$B$25=\"\",\"\",'Segregation Density Profile_1'!$B$25)","v":"LOCATION"},{"$f":"IF('Segregation Density Profile_1'!$B$29=\"\",\"\",'Segregation Density Profile_1'!$B$29)","v":"10'"},{"$f":"IF('Segregation Density Profile_1'!$C$25=\"\",\"\",'Segregation Density Profile_1'!$C$25)","v":"DENSITY READINGS"},{"$f":"IF('Segregation Density Profile_1'!$E$26=\"\",\"\",'Segregation Density Profile_1'!$E$26)","v":3}]
[24,{"$f":"IF('Segregation Density Profile_1'!$F$29=\"\",\"\",'Segregation Density Profile_1'!$F$29)","v":""},{"$f":"IF('Segregation Density Profile_1'!$B$5=\"\",\"\",'Segregation Density Profile_1'!$B$5)","v":"TEX-207-F, PART V"},{"$f":"IF('Segregation Density Profile_1'!$B$4=\"\",\"\",'Segregation Density Profile_1'!$B$4)","v":"SEGREGATION PROFILE_1"},{"$f":"IF('Segregation Density Profile_1'!$B$25=\"\",\"\",'Segregation Density Profile_1'!$B$25)","v":"LOCATION"},{"$f":"IF('Segregation Density Profile_1'!$B$29=\"\",\"\",'Segregation Density Profile_1'!$B$29)","v":"10'"},{"$f":"IF('Segregation Density Profile_1'!$C$25=\"\",\"\",'Segregation Density Profile_1'!$C$25)","v":"DENSITY READINGS"},{"$f":"IF('Segregation Density Profile_1'!$F$26=\"\",\"\",'Segregation Density Profile_1'!$F$26)","v":4}]
[25,{"$f":"IF('Segregation Density Profile_1'!$G$29=\"\",\"\",'Segregation Density Profile_1'!$G$29)","v":""},{"$f":"IF('Segregation Density Profile_1'!$B$5=\"\",\"\",'Segregation Density Profile_1'!$B$5)","v":"TEX-207-F, PART V"},{"$f":"IF('Segregation Density Profile_1'!$B$4=\"\",\"\",'Segregation Density Profile_1'!$B$4)","v":"SEGREGATION PROFILE_1"},{"$f":"IF('Segregation Density Profile_1'!$B$25=\"\",\"\",'Segregation Density Profile_1'!$B$25)","v":"LOCATION"},{"$f":"IF('Segregation Density Profile_1'!$B$29=\"\",\"\",'Segregation Density Profile_1'!$B$29)","v":"10'"},{"$f":"IF('Segregation Density Profile_1'!$C$25=\"\",\"\",'Segregation Density Profile_1'!$C$25)","v":"DENSITY READINGS"},{"$f":"IF('Segregation Density Profile_1'!$G$26=\"\",\"\",'Segregation Density Profile_1'!$G$26)","v":5}]
[26,{"$f":"IF('Segregation Density Profile_1'!$H$29=\"\",\"\",'Segregation Density Profile_1'!$H$29)","v":""},{"$f":"IF('Segregation Density Profile_1'!$B$5=\"\",\"\",'Segregation Density Profile_1'!$B$5)","v":"TEX-207-F, PART V"},{"$f":"IF('Segregation Density Profile_1'!$B$4=\"\",\"\",'Segregation Density Profile_1'!$B$4)","v":"SEGREGATION PROFILE_1"},{"$f":"IF('Segregation Density Profile_1'!$B$25=\"\",\"\",'Segregation Density Profile_1'!$B$25)","v":"LOCATION"},{"$f":"IF('Segregation Density Profile_1'!$B$29=\"\",\"\",'Segregation Density Profile_1'!$B$29)","v":"10'"},{"$f":"IF('Segregation Density Profile_1'!$H$25=\"\",\"\",'Segregation Density Profile_1'!$H$25)","v":"AVERAGE"}]
[27,{"$f":"IF('Segregation Density Profile_1'!$C$30=\"\",\"\",'Segregation Density Profile_1'!$C$30)","v":""},{"$f":"IF('Segregation Density Profile_1'!$B$5=\"\",\"\",'Segregation Density Profile_1'!$B$5)","v":"TEX-207-F, PART V"},{"$f":"IF('Segregation Density Profile_1'!$B$4=\"\",\"\",'Segregation Density Profile_1'!$B$4)","v":"SEGREGATION PROFILE_1"},{"$f":"IF('Segregation Density Profile_1'!$B$25=\"\",\"\",'Segregation Density Profile_1'!$B$25)","v":"LOCATION"},{"$f":"IF('Segregation Density Profile_1'!$B$30=\"\",\"\",'Segregation Density Profile_1'!$B$30)","v":"15'"},{"$f":"IF('Segregation Density Profile_1'!$C$25=\"\",\"\",'Segregation Density Profile_1'!$C$25)","v":"DENSITY READINGS"},{"$f":"IF('Segregation Density Profile_1'!$C$26=\"\",\"\",'Segregation Density Profile_1'!$C$26)","v":1}]
[28,{"$f":"IF('Segregation Density Profile_1'!$D$30=\"\",\"\",'Segregation Density Profile_1'!$D$30)","v":""},{"$f":"IF('Segregation Density Profile_1'!$B$5=\"\",\"\",'Segregation Density Profile_1'!$B$5)","v":"TEX-207-F, PART V"},{"$f":"IF('Segregation Density Profile_1'!$B$4=\"\",\"\",'Segregation Density Profile_1'!$B$4)","v":"SEGREGATION PROFILE_1"},{"$f":"IF('Segregation Density Profile_1'!$B$25=\"\",\"\",'Segregation Density Profile_1'!$B$25)","v":"LOCATION"},{"$f":"IF('Segregation Density Profile_1'!$B$30=\"\",\"\",'Segregation Density Profile_1'!$B$30)","v":"15'"},{"$f":"IF('Segregation Density Profile_1'!$C$25=\"\",\"\",'Segregation Density Profile_1'!$C$25)","v":"DENSITY READINGS"},{"$f":"IF('Segregation Density Profile_1'!$D$26=\"\",\"\",'Segregation Density Profile_1'!$D$26)","v":2}]
[29,{"$f":"IF('Segregation Density Profile_1'!$E$30=\"\",\"\",'Segregation Density Profile_1'!$E$30)","v":""},{"$f":"IF('Segregation Density Profile_1'!$B$5=\"\",\"\",'Segregation Density Profile_1'!$B$5)","v":"TEX-207-F, PART V"},{"$f":"IF('Segregation Density Profile_1'!$B$4=\"\",\"\",'Segregation Density Profile_1'!$B$4)","v":"SEGREGATION PROFILE_1"},{"$f":"IF('Segregation Density Profile_1'!$B$25=\"\",\"\",'Segregation Density Profile_1'!$B$25)","v":"LOCATION"},{"$f":"IF('Segregation Density Profile_1'!$B$30=\"\",\"\",'Segregation Density Profile_1'!$B$30)","v":"15'"},{"$f":"IF('Segregation Density Profile_1'!$C$25=\"\",\"\",'Segregation Density Profile_1'!$C$25)","v":"DENSITY READINGS"},{"$f":"IF('Segregation Density Profile_1'!$E$26=\"\",\"\",'Segregation Density Profile_1'!$E$26)","v":3}]
[30,{"$f":"IF('Segregation Density Profile_1'!$F$30=\"\",\"\",'Segregation Density Profile_1'!$F$30)","v":""},{"$f":"IF('Segregation Density Profile_1'!$B$5=\"\",\"\",'Segregation Density Profile_1'!$B$5)","v":"TEX-207-F, PART V"},{"$f":"IF('Segregation Density Profile_1'!$B$4=\"\",\"\",'Segregation Density Profile_1'!$B$4)","v":"SEGREGATION PROFILE_1"},{"$f":"IF('Segregation Density Profile_1'!$B$25=\"\",\"\",'Segregation Density Profile_1'!$B$25)","v":"LOCATION"},{"$f":"IF('Segregation Density Profile_1'!$B$30=\"\",\"\",'Segregation Density Profile_1'!$B$30)","v":"15'"},{"$f":"IF('Segregation Density Profile_1'!$C$25=\"\",\"\",'Segregation Density Profile_1'!$C$25)","v":"DENSITY READINGS"},{"$f":"IF('Segregation Density Profile_1'!$F$26=\"\",\"\",'Segregation Density Profile_1'!$F$26)","v":4}]
[31,{"$f":"IF('Segregation Density Profile_1'!$G$30=\"\",\"\",'Segregation Density Profile_1'!$G$30)","v":""},{"$f":"IF('Segregation Density Profile_1'!$B$5=\"\",\"\",'Segregation Density Profile_1'!$B$5)","v":"TEX-207-F, PART V"},{"$f":"IF('Segregation Density Profile_1'!$B$4=\"\",\"\",'Segregation Density Profile_1'!$B$4)","v":"SEGREGATION PROFILE_1"},{"$f":"IF('Segregation Density Profile_1'!$B$25=\"\",\"\",'Segregation Density Profile_1'!$B$25)","v":"LOCATION"},{"$f":"IF('Segregation Density Profile_1'!$B$30=\"\",\"\",'Segregation Density Profile_1'!$B$30)","v":"15'"},{"$f":"IF('Segregation Density Profile_1'!$C$25=\"\",\"\",'Segregation Density Profile_1'!$C$25)","v":"DENSITY READINGS"},{"$f":"IF('Segregation Density Profile_1'!$G$26=\"\",\"\",'Segregation Density Profile_1'!$G$26)","v":5}]
[32,{"$f":"IF('Segregation Density Profile_1'!$H$30=\"\",\"\",'Segregation Density Profile_1'!$H$30)","v":""},{"$f":"IF('Segregation Density Profile_1'!$B$5=\"\",\"\",'Segregation Density Profile_1'!$B$5)","v":"TEX-207-F, PART V"},{"$f":"IF('Segregation Density Profile_1'!$B$4=\"\",\"\",'Segregation Density Profile_1'!$B$4)","v":"SEGREGATION PROFILE_1"},{"$f":"IF('Segregation Density Profile_1'!$B$25=\"\",\"\",'Segregation Density Profile_1'!$B$25)","v":"LOCATION"},{"$f":"IF('Segregation Density Profile_1'!$B$30=\"\",\"\",'Segregation Density Profile_1'!$B$30)","v":"15'"},{"$f":"IF('Segregation Density Profile_1'!$H$25=\"\",\"\",'Segregation Density Profile_1'!$H$25)","v":"AVERAGE"}]
[33,{"$f":"IF('Segregation Density Profile_1'!$C$31=\"\",\"\",'Segregation Density Profile_1'!$C$31)","v":""},{"$f":"IF('Segregation Density Profile_1'!$B$5=\"\",\"\",'Segregation Density Profile_1'!$B$5)","v":"TEX-207-F, PART V"},{"$f":"IF('Segregation Density Profile_1'!$B$4=\"\",\"\",'Segregation Density Profile_1'!$B$4)","v":"SEGREGATION PROFILE_1"},{"$f":"IF('Segregation Density Profile_1'!$B$25=\"\",\"\",'Segregation Density Profile_1'!$B$25)","v":"LOCATION"},{"$f":"IF('Segregation Density Profile_1'!$B$31=\"\",\"\",'Segregation Density Profile_1'!$B$31)","v":"20'"},{"$f":"IF('Segregation Density Profile_1'!$C$25=\"\",\"\",'Segregation Density Profile_1'!$C$25)","v":"DENSITY READINGS"},{"$f":"IF('Segregation Density Profile_1'!$C$26=\"\",\"\",'Segregation Density Profile_1'!$C$26)","v":1}]
[34,{"$f":"IF('Segregation Density Profile_1'!$D$31=\"\",\"\",'Segregation Density Profile_1'!$D$31)","v":""},{"$f":"IF('Segregation Density Profile_1'!$B$5=\"\",\"\",'Segregation Density Profile_1'!$B$5)","v":"TEX-207-F, PART V"},{"$f":"IF('Segregation Density Profile_1'!$B$4=\"\",\"\",'Segregation Density Profile_1'!$B$4)","v":"SEGREGATION PROFILE_1"},{"$f":"IF('Segregation Density Profile_1'!$B$25=\"\",\"\",'Segregation Density Profile_1'!$B$25)","v":"LOCATION"},{"$f":"IF('Segregation Density Profile_1'!$B$31=\"\",\"\",'Segregation Density Profile_1'!$B$31)","v":"20'"},{"$f":"IF('Segregation Density Profile_1'!$C$25=\"\",\"\",'Segregation Density Profile_1'!$C$25)","v":"DENSITY READINGS"},{"$f":"IF('Segregation Density Profile_1'!$D$26=\"\",\"\",'Segregation Density Profile_1'!$D$26)","v":2}]
[35,{"$f":"IF('Segregation Density Profile_1'!$E$31=\"\",\"\",'Segregation Density Profile_1'!$E$31)","v":""},{"$f":"IF('Segregation Density Profile_1'!$B$5=\"\",\"\",'Segregation Density Profile_1'!$B$5)","v":"TEX-207-F, PART V"},{"$f":"IF('Segregation Density Profile_1'!$B$4=\"\",\"\",'Segregation Density Profile_1'!$B$4)","v":"SEGREGATION PROFILE_1"},{"$f":"IF('Segregation Density Profile_1'!$B$25=\"\",\"\",'Segregation Density Profile_1'!$B$25)","v":"LOCATION"},{"$f":"IF('Segregation Density Profile_1'!$B$31=\"\",\"\",'Segregation Density Profile_1'!$B$31)","v":"20'"},{"$f":"IF('Segregation Density Profile_1'!$C$25=\"\",\"\",'Segregation Density Profile_1'!$C$25)","v":"DENSITY READINGS"},{"$f":"IF('Segregation Density Profile_1'!$E$26=\"\",\"\",'Segregation Density Profile_1'!$E$26)","v":3}]
[36,{"$f":"IF('Segregation Density Profile_1'!$F$31=\"\",\"\",'Segregation Density Profile_1'!$F$31)","v":""},{"$f":"IF('Segregation Density Profile_1'!$B$5=\"\",\"\",'Segregation Density Profile_1'!$B$5)","v":"TEX-207-F, PART V"},{"$f":"IF('Segregation Density Profile_1'!$B$4=\"\",\"\",'Segregation Density Profile_1'!$B$4)","v":"SEGREGATION PROFILE_1"},{"$f":"IF('Segregation Density Profile_1'!$B$25=\"\",\"\",'Segregation Density Profile_1'!$B$25)","v":"LOCATION"},{"$f":"IF('Segregation Density Profile_1'!$B$31=\"\",\"\",'Segregation Density Profile_1'!$B$31)","v":"20'"},{"$f":"IF('Segregation Density Profile_1'!$C$25=\"\",\"\",'Segregation Density Profile_1'!$C$25)","v":"DENSITY READINGS"},{"$f":"IF('Segregation Density Profile_1'!$F$26=\"\",\"\",'Segregation Density Profile_1'!$F$26)","v":4}]
[37,{"$f":"IF('Segregation Density Profile_1'!$G$31=\"\",\"\",'Segregation Density Profile_1'!$G$31)","v":""},{"$f":"IF('Segregation Density Profile_1'!$B$5=\"\",\"\",'Segregation Density Profile_1'!$B$5)","v":"TEX-207-F, PART V"},{"$f":"IF('Segregation Density Profile_1'!$B$4=\"\",\"\",'Segregation Density Profile_1'!$B$4)","v":"SEGREGATION PROFILE_1"},{"$f":"IF('Segregation Density Profile_1'!$B$25=\"\",\"\",'Segregation Density Profile_1'!$B$25)","v":"LOCATION"},{"$f":"IF('Segregation Density Profile_1'!$B$31=\"\",\"\",'Segregation Density Profile_1'!$B$31)","v":"20'"},{"$f":"IF('Segregation Density Profile_1'!$C$25=\"\",\"\",'Segregation Density Profile_1'!$C$25)","v":"DENSITY READINGS"},{"$f":"IF('Segregation Density Profile_1'!$G$26=\"\",\"\",'Segregation Density Profile_1'!$G$26)","v":5}]
[38,{"$f":"IF('Segregation Density Profile_1'!$H$31=\"\",\"\",'Segregation Density Profile_1'!$H$31)","v":""},{"$f":"IF('Segregation Density Profile_1'!$B$5=\"\",\"\",'Segregation Density Profile_1'!$B$5)","v":"TEX-207-F, PART V"},{"$f":"IF('Segregation Density Profile_1'!$B$4=\"\",\"\",'Segregation Density Profile_1'!$B$4)","v":"SEGREGATION PROFILE_1"},{"$f":"IF('Segregation Density Profile_1'!$B$25=\"\",\"\",'Segregation Density Profile_1'!$B$25)","v":"LOCATION"},{"$f":"IF('Segregation Density Profile_1'!$B$31=\"\",\"\",'Segregation Density Profile_1'!$B$31)","v":"20'"},{"$f":"IF('Segregation Density Profile_1'!$H$25=\"\",\"\",'Segregation Density Profile_1'!$H$25)","v":"AVERAGE"}]
[39,{"$f":"IF('Segregation Density Profile_1'!$C$32=\"\",\"\",'Segregation Density Profile_1'!$C$32)","v":""},{"$f":"IF('Segregation Density Profile_1'!$B$5=\"\",\"\",'Segregation Density Profile_1'!$B$5)","v":"TEX-207-F, PART V"},{"$f":"IF('Segregation Density Profile_1'!$B$4=\"\",\"\",'Segregation Density Profile_1'!$B$4)","v":"SEGREGATION PROFILE_1"},{"$f":"IF('Segregation Density Profile_1'!$B$25=\"\",\"\",'Segregation Density Profile_1'!$B$25)","v":"LOCATION"},{"$f":"IF('Segregation Density Profile_1'!$B$32=\"\",\"\",'Segregation Density Profile_1'!$B$32)","v":"25'"},{"$f":"IF('Segregation Density Profile_1'!$C$25=\"\",\"\",'Segregation Density Profile_1'!$C$25)","v":"DENSITY READINGS"},{"$f":"IF('Segregation Density Profile_1'!$C$26=\"\",\"\",'Segregation Density Profile_1'!$C$26)","v":1}]
[40,{"$f":"IF('Segregation Density Profile_1'!$D$32=\"\",\"\",'Segregation Density Profile_1'!$D$32)","v":""},{"$f":"IF('Segregation Density Profile_1'!$B$5=\"\",\"\",'Segregation Density Profile_1'!$B$5)","v":"TEX-207-F, PART V"},{"$f":"IF('Segregation Density Profile_1'!$B$4=\"\",\"\",'Segregation Density Profile_1'!$B$4)","v":"SEGREGATION PROFILE_1"},{"$f":"IF('Segregation Density Profile_1'!$B$25=\"\",\"\",'Segregation Density Profile_1'!$B$25)","v":"LOCATION"},{"$f":"IF('Segregation Density Profile_1'!$B$32=\"\",\"\",'Segregation Density Profile_1'!$B$32)","v":"25'"},{"$f":"IF('Segregation Density Profile_1'!$C$25=\"\",\"\",'Segregation Density Profile_1'!$C$25)","v":"DENSITY READINGS"},{"$f":"IF('Segregation Density Profile_1'!$D$26=\"\",\"\",'Segregation Density Profile_1'!$D$26)","v":2}]
[41,{"$f":"IF('Segregation Density Profile_1'!$E$32=\"\",\"\",'Segregation Density Profile_1'!$E$32)","v":""},{"$f":"IF('Segregation Density Profile_1'!$B$5=\"\",\"\",'Segregation Density Profile_1'!$B$5)","v":"TEX-207-F, PART V"},{"$f":"IF('Segregation Density Profile_1'!$B$4=\"\",\"\",'Segregation Density Profile_1'!$B$4)","v":"SEGREGATION PROFILE_1"},{"$f":"IF('Segregation Density Profile_1'!$B$25=\"\",\"\",'Segregation Density Profile_1'!$B$25)","v":"LOCATION"},{"$f":"IF('Segregation Density Profile_1'!$B$32=\"\",\"\",'Segregation Density Profile_1'!$B$32)","v":"25'"},{"$f":"IF('Segregation Density Profile_1'!$C$25=\"\",\"\",'Segregation Density Profile_1'!$C$25)","v":"DENSITY READINGS"},{"$f":"IF('Segregation Density Profile_1'!$E$26=\"\",\"\",'Segregation Density Profile_1'!$E$26)","v":3}]
[42,{"$f":"IF('Segregation Density Profile_1'!$F$32=\"\",\"\",'Segregation Density Profile_1'!$F$32)","v":""},{"$f":"IF('Segregation Density Profile_1'!$B$5=\"\",\"\",'Segregation Density Profile_1'!$B$5)","v":"TEX-207-F, PART V"},{"$f":"IF('Segregation Density Profile_1'!$B$4=\"\",\"\",'Segregation Density Profile_1'!$B$4)","v":"SEGREGATION PROFILE_1"},{"$f":"IF('Segregation Density Profile_1'!$B$25=\"\",\"\",'Segregation Density Profile_1'!$B$25)","v":"LOCATION"},{"$f":"IF('Segregation Density Profile_1'!$B$32=\"\",\"\",'Segregation Density Profile_1'!$B$32)","v":"25'"},{"$f":"IF('Segregation Density Profile_1'!$C$25=\"\",\"\",'Segregation Density Profile_1'!$C$25)","v":"DENSITY READINGS"},{"$f":"IF('Segregation Density Profile_1'!$F$26=\"\",\"\",'Segregation Density Profile_1'!$F$26)","v":4}]
[43,{"$f":"IF('Segregation Density Profile_1'!$G$32=\"\",\"\",'Segregation Density Profile_1'!$G$32)","v":""},{"$f":"IF('Segregation Density Profile_1'!$B$5=\"\",\"\",'Segregation Density Profile_1'!$B$5)","v":"TEX-207-F, PART V"},{"$f":"IF('Segregation Density Profile_1'!$B$4=\"\",\"\",'Segregation Density Profile_1'!$B$4)","v":"SEGREGATION PROFILE_1"},{"$f":"IF('Segregation Density Profile_1'!$B$25=\"\",\"\",'Segregation Density Profile_1'!$B$25)","v":"LOCATION"},{"$f":"IF('Segregation Density Profile_1'!$B$32=\"\",\"\",'Segregation Density Profile_1'!$B$32)","v":"25'"},{"$f":"IF('Segregation Density Profile_1'!$C$25=\"\",\"\",'Segregation Density Profile_1'!$C$25)","v":"DENSITY READINGS"},{"$f":"IF('Segregation Density Profile_1'!$G$26=\"\",\"\",'Segregation Density Profile_1'!$G$26)","v":5}]
[44,{"$f":"IF('Segregation Density Profile_1'!$H$32=\"\",\"\",'Segregation Density Profile_1'!$H$32)","v":""},{"$f":"IF('Segregation Density Profile_1'!$B$5=\"\",\"\",'Segregation Density Profile_1'!$B$5)","v":"TEX-207-F, PART V"},{"$f":"IF('Segregation Density Profile_1'!$B$4=\"\",\"\",'Segregation Density Profile_1'!$B$4)","v":"SEGREGATION PROFILE_1"},{"$f":"IF('Segregation Density Profile_1'!$B$25=\"\",\"\",'Segregation Density Profile_1'!$B$25)","v":"LOCATION"},{"$f":"IF('Segregation Density Profile_1'!$B$32=\"\",\"\",'Segregation Density Profile_1'!$B$32)","v":"25'"},{"$f":"IF('Segregation Density Profile_1'!$H$25=\"\",\"\",'Segregation Density Profile_1'!$H$25)","v":"AVERAGE"}]
[45,{"$f":"IF('Segregation Density Profile_1'!$C$33=\"\",\"\",'Segregation Density Profile_1'!$C$33)","v":""},{"$f":"IF('Segregation Density Profile_1'!$B$5=\"\",\"\",'Segregation Density Profile_1'!$B$5)","v":"TEX-207-F, PART V"},{"$f":"IF('Segregation Density Profile_1'!$B$4=\"\",\"\",'Segregation Density Profile_1'!$B$4)","v":"SEGREGATION PROFILE_1"},{"$f":"IF('Segregation Density Profile_1'!$B$25=\"\",\"\",'Segregation Density Profile_1'!$B$25)","v":"LOCATION"},{"$f":"IF('Segregation Density Profile_1'!$B$33=\"\",\"\",'Segregation Density Profile_1'!$B$33)","v":"30'"},{"$f":"IF('Segregation Density Profile_1'!$C$25=\"\",\"\",'Segregation Density Profile_1'!$C$25)","v":"DENSITY READINGS"},{"$f":"IF('Segregation Density Profile_1'!$C$26=\"\",\"\",'Segregation Density Profile_1'!$C$26)","v":1}]
[46,{"$f":"IF('Segregation Density Profile_1'!$D$33=\"\",\"\",'Segregation Density Profile_1'!$D$33)","v":""},{"$f":"IF('Segregation Density Profile_1'!$B$5=\"\",\"\",'Segregation Density Profile_1'!$B$5)","v":"TEX-207-F, PART V"},{"$f":"IF('Segregation Density Profile_1'!$B$4=\"\",\"\",'Segregation Density Profile_1'!$B$4)","v":"SEGREGATION PROFILE_1"},{"$f":"IF('Segregation Density Profile_1'!$B$25=\"\",\"\",'Segregation Density Profile_1'!$B$25)","v":"LOCATION"},{"$f":"IF('Segregation Density Profile_1'!$B$33=\"\",\"\",'Segregation Density Profile_1'!$B$33)","v":"30'"},{"$f":"IF('Segregation Density Profile_1'!$C$25=\"\",\"\",'Segregation Density Profile_1'!$C$25)","v":"DENSITY READINGS"},{"$f":"IF('Segregation Density Profile_1'!$D$26=\"\",\"\",'Segregation Density Profile_1'!$D$26)","v":2}]
[47,{"$f":"IF('Segregation Density Profile_1'!$E$33=\"\",\"\",'Segregation Density Profile_1'!$E$33)","v":""},{"$f":"IF('Segregation Density Profile_1'!$B$5=\"\",\"\",'Segregation Density Profile_1'!$B$5)","v":"TEX-207-F, PART V"},{"$f":"IF('Segregation Density Profile_1'!$B$4=\"\",\"\",'Segregation Density Profile_1'!$B$4)","v":"SEGREGATION PROFILE_1"},{"$f":"IF('Segregation Density Profile_1'!$B$25=\"\",\"\",'Segregation Density Profile_1'!$B$25)","v":"LOCATION"},{"$f":"IF('Segregation Density Profile_1'!$B$33=\"\",\"\",'Segregation Density Profile_1'!$B$33)","v":"30'"},{"$f":"IF('Segregation Density Profile_1'!$C$25=\"\",\"\",'Segregation Density Profile_1'!$C$25)","v":"DENSITY READINGS"},{"$f":"IF('Segregation Density Profile_1'!$E$26=\"\",\"\",'Segregation Density Profile_1'!$E$26)","v":3}]
[48,{"$f":"IF('Segregation Density Profile_1'!$F$33=\"\",\"\",'Segregation Density Profile_1'!$F$33)","v":""},{"$f":"IF('Segregation Density Profile_1'!$B$5=\"\",\"\",'Segregation Density Profile_1'!$B$5)","v":"TEX-207-F, PART V"},{"$f":"IF('Segregation Density Profile_1'!$B$4=\"\",\"\",'Segregation Density Profile_1'!$B$4)","v":"SEGREGATION PROFILE_1"},{"$f":"IF('Segregation Density Profile_1'!$B$25=\"\",\"\",'Segregation Density Profile_1'!$B$25)","v":"LOCATION"},{"$f":"IF('Segregation Density Profile_1'!$B$33=\"\",\"\",'Segregation Density Profile_1'!$B$33)","v":"30'"},{"$f":"IF('Segregation Density Profile_1'!$C$25=\"\",\"\",'Segregation Density Profile_1'!$C$25)","v":"DENSITY READINGS"},{"$f":"IF('Segregation Density Profile_1'!$F$26=\"\",\"\",'Segregation Density Profile_1'!$F$26)","v":4}]
[49,{"$f":"IF('Segregation Density Profile_1'!$G$33=\"\",\"\",'Segregation Density Profile_1'!$G$33)","v":""},{"$f":"IF('Segregation Density Profile_1'!$B$5=\"\",\"\",'Segregation Density Profile_1'!$B$5)","v":"TEX-207-F, PART V"},{"$f":"IF('Segregation Density Profile_1'!$B$4=\"\",\"\",'Segregation Density Profile_1'!$B$4)","v":"SEGREGATION PROFILE_1"},{"$f":"IF('Segregation Density Profile_1'!$B$25=\"\",\"\",'Segregation Density Profile_1'!$B$25)","v":"LOCATION"},{"$f":"IF('Segregation Density Profile_1'!$B$33=\"\",\"\",'Segregation Density Profile_1'!$B$33)","v":"30'"},{"$f":"IF('Segregation Density Profile_1'!$C$25=\"\",\"\",'Segregation Density Profile_1'!$C$25)","v":"DENSITY READINGS"},{"$f":"IF('Segregation Density Profile_1'!$G$26=\"\",\"\",'Segregation Density Profile_1'!$G$26)","v":5}]
[50,{"$f":"IF('Segregation Density Profile_1'!$H$33=\"\",\"\",'Segregation Density Profile_1'!$H$33)","v":""},{"$f":"IF('Segregation Density Profile_1'!$B$5=\"\",\"\",'Segregation Density Profile_1'!$B$5)","v":"TEX-207-F, PART V"},{"$f":"IF('Segregation Density Profile_1'!$B$4=\"\",\"\",'Segregation Density Profile_1'!$B$4)","v":"SEGREGATION PROFILE_1"},{"$f":"IF('Segregation Density Profile_1'!$B$25=\"\",\"\",'Segregation Density Profile_1'!$B$25)","v":"LOCATION"},{"$f":"IF('Segregation Density Profile_1'!$B$33=\"\",\"\",'Segregation Density Profile_1'!$B$33)","v":"30'"},{"$f":"IF('Segregation Density Profile_1'!$H$25=\"\",\"\",'Segregation Density Profile_1'!$H$25)","v":"AVERAGE"}]
[51,{"$f":"IF('Segregation Density Profile_1'!$C$34=\"\",\"\",'Segregation Density Profile_1'!$C$34)","v":""},{"$f":"IF('Segregation Density Profile_1'!$B$5=\"\",\"\",'Segregation Density Profile_1'!$B$5)","v":"TEX-207-F, PART V"},{"$f":"IF('Segregation Density Profile_1'!$B$4=\"\",\"\",'Segregation Density Profile_1'!$B$4)","v":"SEGREGATION PROFILE_1"},{"$f":"IF('Segregation Density Profile_1'!$B$25=\"\",\"\",'Segregation Density Profile_1'!$B$25)","v":"LOCATION"},{"$f":"IF('Segregation Density Profile_1'!$B$34=\"\",\"\",'Segregation Density Profile_1'!$B$34)","v":"35'"},{"$f":"IF('Segregation Density Profile_1'!$C$25=\"\",\"\",'Segregation Density Profile_1'!$C$25)","v":"DENSITY READINGS"},{"$f":"IF('Segregation Density Profile_1'!$C$26=\"\",\"\",'Segregation Density Profile_1'!$C$26)","v":1}]
[52,{"$f":"IF('Segregation Density Profile_1'!$D$34=\"\",\"\",'Segregation Density Profile_1'!$D$34)","v":""},{"$f":"IF('Segregation Density Profile_1'!$B$5=\"\",\"\",'Segregation Density Profile_1'!$B$5)","v":"TEX-207-F, PART V"},{"$f":"IF('Segregation Density Profile_1'!$B$4=\"\",\"\",'Segregation Density Profile_1'!$B$4)","v":"SEGREGATION PROFILE_1"},{"$f":"IF('Segregation Density Profile_1'!$B$25=\"\",\"\",'Segregation Density Profile_1'!$B$25)","v":"LOCATION"},{"$f":"IF('Segregation Density Profile_1'!$B$34=\"\",\"\",'Segregation Density Profile_1'!$B$34)","v":"35'"},{"$f":"IF('Segregation Density Profile_1'!$C$25=\"\",\"\",'Segregation Density Profile_1'!$C$25)","v":"DENSITY READINGS"},{"$f":"IF('Segregation Density Profile_1'!$D$26=\"\",\"\",'Segregation Density Profile_1'!$D$26)","v":2}]
[53,{"$f":"IF('Segregation Density Profile_1'!$E$34=\"\",\"\",'Segregation Density Profile_1'!$E$34)","v":""},{"$f":"IF('Segregation Density Profile_1'!$B$5=\"\",\"\",'Segregation Density Profile_1'!$B$5)","v":"TEX-207-F, PART V"},{"$f":"IF('Segregation Density Profile_1'!$B$4=\"\",\"\",'Segregation Density Profile_1'!$B$4)","v":"SEGREGATION PROFILE_1"},{"$f":"IF('Segregation Density Profile_1'!$B$25=\"\",\"\",'Segregation Density Profile_1'!$B$25)","v":"LOCATION"},{"$f":"IF('Segregation Density Profile_1'!$B$34=\"\",\"\",'Segregation Density Profile_1'!$B$34)","v":"35'"},{"$f":"IF('Segregation Density Profile_1'!$C$25=\"\",\"\",'Segregation Density Profile_1'!$C$25)","v":"DENSITY READINGS"},{"$f":"IF('Segregation Density Profile_1'!$E$26=\"\",\"\",'Segregation Density Profile_1'!$E$26)","v":3}]
[54,{"$f":"IF('Segregation Density Profile_1'!$F$34=\"\",\"\",'Segregation Density Profile_1'!$F$34)","v":""},{"$f":"IF('Segregation Density Profile_1'!$B$5=\"\",\"\",'Segregation Density Profile_1'!$B$5)","v":"TEX-207-F, PART V"},{"$f":"IF('Segregation Density Profile_1'!$B$4=\"\",\"\",'Segregation Density Profile_1'!$B$4)","v":"SEGREGATION PROFILE_1"},{"$f":"IF('Segregation Density Profile_1'!$B$25=\"\",\"\",'Segregation Density Profile_1'!$B$25)","v":"LOCATION"},{"$f":"IF('Segregation Density Profile_1'!$B$34=\"\",\"\",'Segregation Density Profile_1'!$B$34)","v":"35'"},{"$f":"IF('Segregation Density Profile_1'!$C$25=\"\",\"\",'Segregation Density Profile_1'!$C$25)","v":"DENSITY READINGS"},{"$f":"IF('Segregation Density Profile_1'!$F$26=\"\",\"\",'Segregation Density Profile_1'!$F$26)","v":4}]
[55,{"$f":"IF('Segregation Density Profile_1'!$G$34=\"\",\"\",'Segregation Density Profile_1'!$G$34)","v":""},{"$f":"IF('Segregation Density Profile_1'!$B$5=\"\",\"\",'Segregation Density Profile_1'!$B$5)","v":"TEX-207-F, PART V"},{"$f":"IF('Segregation Density Profile_1'!$B$4=\"\",\"\",'Segregation Density Profile_1'!$B$4)","v":"SEGREGATION PROFILE_1"},{"$f":"IF('Segregation Density Profile_1'!$B$25=\"\",\"\",'Segregation Density Profile_1'!$B$25)","v":"LOCATION"},{"$f":"IF('Segregation Density Profile_1'!$B$34=\"\",\"\",'Segregation Density Profile_1'!$B$34)","v":"35'"},{"$f":"IF('Segregation Density Profile_1'!$C$25=\"\",\"\",'Segregation Density Profile_1'!$C$25)","v":"DENSITY READINGS"},{"$f":"IF('Segregation Density Profile_1'!$G$26=\"\",\"\",'Segregation Density Profile_1'!$G$26)","v":5}]
[56,{"$f":"IF('Segregation Density Profile_1'!$H$34=\"\",\"\",'Segregation Density Profile_1'!$H$34)","v":""},{"$f":"IF('Segregation Density Profile_1'!$B$5=\"\",\"\",'Segregation Density Profile_1'!$B$5)","v":"TEX-207-F, PART V"},{"$f":"IF('Segregation Density Profile_1'!$B$4=\"\",\"\",'Segregation Density Profile_1'!$B$4)","v":"SEGREGATION PROFILE_1"},{"$f":"IF('Segregation Density Profile_1'!$B$25=\"\",\"\",'Segregation Density Profile_1'!$B$25)","v":"LOCATION"},{"$f":"IF('Segregation Density Profile_1'!$B$34=\"\",\"\",'Segregation Density Profile_1'!$B$34)","v":"35'"},{"$f":"IF('Segregation Density Profile_1'!$H$25=\"\",\"\",'Segregation Density Profile_1'!$H$25)","v":"AVERAGE"}]
[57,{"$f":"IF('Segregation Density Profile_1'!$C$35=\"\",\"\",'Segregation Density Profile_1'!$C$35)","v":""},{"$f":"IF('Segregation Density Profile_1'!$B$5=\"\",\"\",'Segregation Density Profile_1'!$B$5)","v":"TEX-207-F, PART V"},{"$f":"IF('Segregation Density Profile_1'!$B$4=\"\",\"\",'Segregation Density Profile_1'!$B$4)","v":"SEGREGATION PROFILE_1"},{"$f":"IF('Segregation Density Profile_1'!$B$25=\"\",\"\",'Segregation Density Profile_1'!$B$25)","v":"LOCATION"},{"$f":"IF('Segregation Density Profile_1'!$B$35=\"\",\"\",'Segregation Density Profile_1'!$B$35)","v":"40'"},{"$f":"IF('Segregation Density Profile_1'!$C$25=\"\",\"\",'Segregation Density Profile_1'!$C$25)","v":"DENSITY READINGS"},{"$f":"IF('Segregation Density Profile_1'!$C$26=\"\",\"\",'Segregation Density Profile_1'!$C$26)","v":1}]
[58,{"$f":"IF('Segregation Density Profile_1'!$D$35=\"\",\"\",'Segregation Density Profile_1'!$D$35)","v":""},{"$f":"IF('Segregation Density Profile_1'!$B$5=\"\",\"\",'Segregation Density Profile_1'!$B$5)","v":"TEX-207-F, PART V"},{"$f":"IF('Segregation Density Profile_1'!$B$4=\"\",\"\",'Segregation Density Profile_1'!$B$4)","v":"SEGREGATION PROFILE_1"},{"$f":"IF('Segregation Density Profile_1'!$B$25=\"\",\"\",'Segregation Density Profile_1'!$B$25)","v":"LOCATION"},{"$f":"IF('Segregation Density Profile_1'!$B$35=\"\",\"\",'Segregation Density Profile_1'!$B$35)","v":"40'"},{"$f":"IF('Segregation Density Profile_1'!$C$25=\"\",\"\",'Segregation Density Profile_1'!$C$25)","v":"DENSITY READINGS"},{"$f":"IF('Segregation Density Profile_1'!$D$26=\"\",\"\",'Segregation Density Profile_1'!$D$26)","v":2}]
[59,{"$f":"IF('Segregation Density Profile_1'!$E$35=\"\",\"\",'Segregation Density Profile_1'!$E$35)","v":""},{"$f":"IF('Segregation Density Profile_1'!$B$5=\"\",\"\",'Segregation Density Profile_1'!$B$5)","v":"TEX-207-F, PART V"},{"$f":"IF('Segregation Density Profile_1'!$B$4=\"\",\"\",'Segregation Density Profile_1'!$B$4)","v":"SEGREGATION PROFILE_1"},{"$f":"IF('Segregation Density Profile_1'!$B$25=\"\",\"\",'Segregation Density Profile_1'!$B$25)","v":"LOCATION"},{"$f":"IF('Segregation Density Profile_1'!$B$35=\"\",\"\",'Segregation Density Profile_1'!$B$35)","v":"40'"},{"$f":"IF('Segregation Density Profile_1'!$C$25=\"\",\"\",'Segregation Density Profile_1'!$C$25)","v":"DENSITY READINGS"},{"$f":"IF('Segregation Density Profile_1'!$E$26=\"\",\"\",'Segregation Density Profile_1'!$E$26)","v":3}]
[60,{"$f":"IF('Segregation Density Profile_1'!$F$35=\"\",\"\",'Segregation Density Profile_1'!$F$35)","v":""},{"$f":"IF('Segregation Density Profile_1'!$B$5=\"\",\"\",'Segregation Density Profile_1'!$B$5)","v":"TEX-207-F, PART V"},{"$f":"IF('Segregation Density Profile_1'!$B$4=\"\",\"\",'Segregation Density Profile_1'!$B$4)","v":"SEGREGATION PROFILE_1"},{"$f":"IF('Segregation Density Profile_1'!$B$25=\"\",\"\",'Segregation Density Profile_1'!$B$25)","v":"LOCATION"},{"$f":"IF('Segregation Density Profile_1'!$B$35=\"\",\"\",'Segregation Density Profile_1'!$B$35)","v":"40'"},{"$f":"IF('Segregation Density Profile_1'!$C$25=\"\",\"\",'Segregation Density Profile_1'!$C$25)","v":"DENSITY READINGS"},{"$f":"IF('Segregation Density Profile_1'!$F$26=\"\",\"\",'Segregation Density Profile_1'!$F$26)","v":4}]
[61,{"$f":"IF('Segregation Density Profile_1'!$G$35=\"\",\"\",'Segregation Density Profile_1'!$G$35)","v":""},{"$f":"IF('Segregation Density Profile_1'!$B$5=\"\",\"\",'Segregation Density Profile_1'!$B$5)","v":"TEX-207-F, PART V"},{"$f":"IF('Segregation Density Profile_1'!$B$4=\"\",\"\",'Segregation Density Profile_1'!$B$4)","v":"SEGREGATION PROFILE_1"},{"$f":"IF('Segregation Density Profile_1'!$B$25=\"\",\"\",'Segregation Density Profile_1'!$B$25)","v":"LOCATION"},{"$f":"IF('Segregation Density Profile_1'!$B$35=\"\",\"\",'Segregation Density Profile_1'!$B$35)","v":"40'"},{"$f":"IF('Segregation Density Profile_1'!$C$25=\"\",\"\",'Segregation Density Profile_1'!$C$25)","v":"DENSITY READINGS"},{"$f":"IF('Segregation Density Profile_1'!$G$26=\"\",\"\",'Segregation Density Profile_1'!$G$26)","v":5}]
[62,{"$f":"IF('Segregation Density Profile_1'!$H$35=\"\",\"\",'Segregation Density Profile_1'!$H$35)","v":""},{"$f":"IF('Segregation Density Profile_1'!$B$5=\"\",\"\",'Segregation Density Profile_1'!$B$5)","v":"TEX-207-F, PART V"},{"$f":"IF('Segregation Density Profile_1'!$B$4=\"\",\"\",'Segregation Density Profile_1'!$B$4)","v":"SEGREGATION PROFILE_1"},{"$f":"IF('Segregation Density Profile_1'!$B$25=\"\",\"\",'Segregation Density Profile_1'!$B$25)","v":"LOCATION"},{"$f":"IF('Segregation Density Profile_1'!$B$35=\"\",\"\",'Segregation Density Profile_1'!$B$35)","v":"40'"},{"$f":"IF('Segregation Density Profile_1'!$H$25=\"\",\"\",'Segregation Density Profile_1'!$H$25)","v":"AVERAGE"}]
[63,{"$f":"IF('Segregation Density Profile_1'!$C$36=\"\",\"\",'Segregation Density Profile_1'!$C$36)","v":""},{"$f":"IF('Segregation Density Profile_1'!$B$5=\"\",\"\",'Segregation Density Profile_1'!$B$5)","v":"TEX-207-F, PART V"},{"$f":"IF('Segregation Density Profile_1'!$B$4=\"\",\"\",'Segregation Density Profile_1'!$B$4)","v":"SEGREGATION PROFILE_1"},{"$f":"IF('Segregation Density Profile_1'!$B$25=\"\",\"\",'Segregation Density Profile_1'!$B$25)","v":"LOCATION"},{"$f":"IF('Segregation Density Profile_1'!$B$36=\"\",\"\",'Segregation Density Profile_1'!$B$36)","v":"45'"},{"$f":"IF('Segregation Density Profile_1'!$C$25=\"\",\"\",'Segregation Density Profile_1'!$C$25)","v":"DENSITY READINGS"},{"$f":"IF('Segregation Density Profile_1'!$C$26=\"\",\"\",'Segregation Density Profile_1'!$C$26)","v":1}]
[64,{"$f":"IF('Segregation Density Profile_1'!$D$36=\"\",\"\",'Segregation Density Profile_1'!$D$36)","v":""},{"$f":"IF('Segregation Density Profile_1'!$B$5=\"\",\"\",'Segregation Density Profile_1'!$B$5)","v":"TEX-207-F, PART V"},{"$f":"IF('Segregation Density Profile_1'!$B$4=\"\",\"\",'Segregation Density Profile_1'!$B$4)","v":"SEGREGATION PROFILE_1"},{"$f":"IF('Segregation Density Profile_1'!$B$25=\"\",\"\",'Segregation Density Profile_1'!$B$25)","v":"LOCATION"},{"$f":"IF('Segregation Density Profile_1'!$B$36=\"\",\"\",'Segregation Density Profile_1'!$B$36)","v":"45'"},{"$f":"IF('Segregation Density Profile_1'!$C$25=\"\",\"\",'Segregation Density Profile_1'!$C$25)","v":"DENSITY READINGS"},{"$f":"IF('Segregation Density Profile_1'!$D$26=\"\",\"\",'Segregation Density Profile_1'!$D$26)","v":2}]
[65,{"$f":"IF('Segregation Density Profile_1'!$E$36=\"\",\"\",'Segregation Density Profile_1'!$E$36)","v":""},{"$f":"IF('Segregation Density Profile_1'!$B$5=\"\",\"\",'Segregation Density Profile_1'!$B$5)","v":"TEX-207-F, PART V"},{"$f":"IF('Segregation Density Profile_1'!$B$4=\"\",\"\",'Segregation Density Profile_1'!$B$4)","v":"SEGREGATION PROFILE_1"},{"$f":"IF('Segregation Density Profile_1'!$B$25=\"\",\"\",'Segregation Density Profile_1'!$B$25)","v":"LOCATION"},{"$f":"IF('Segregation Density Profile_1'!$B$36=\"\",\"\",'Segregation Density Profile_1'!$B$36)","v":"45'"},{"$f":"IF('Segregation Density Profile_1'!$C$25=\"\",\"\",'Segregation Density Profile_1'!$C$25)","v":"DENSITY READINGS"},{"$f":"IF('Segregation Density Profile_1'!$E$26=\"\",\"\",'Segregation Density Profile_1'!$E$26)","v":3}]
[66,{"$f":"IF('Segregation Density Profile_1'!$F$36=\"\",\"\",'Segregation Density Profile_1'!$F$36)","v":""},{"$f":"IF('Segregation Density Profile_1'!$B$5=\"\",\"\",'Segregation Density Profile_1'!$B$5)","v":"TEX-207-F, PART V"},{"$f":"IF('Segregation Density Profile_1'!$B$4=\"\",\"\",'Segregation Density Profile_1'!$B$4)","v":"SEGREGATION PROFILE_1"},{"$f":"IF('Segregation Density Profile_1'!$B$25=\"\",\"\",'Segregation Density Profile_1'!$B$25)","v":"LOCATION"},{"$f":"IF('Segregation Density Profile_1'!$B$36=\"\",\"\",'Segregation Density Profile_1'!$B$36)","v":"45'"},{"$f":"IF('Segregation Density Profile_1'!$C$25=\"\",\"\",'Segregation Density Profile_1'!$C$25)","v":"DENSITY READINGS"},{"$f":"IF('Segregation Density Profile_1'!$F$26=\"\",\"\",'Segregation Density Profile_1'!$F$26)","v":4}]
[67,{"$f":"IF('Segregation Density Profile_1'!$G$36=\"\",\"\",'Segregation Density Profile_1'!$G$36)","v":""},{"$f":"IF('Segregation Density Profile_1'!$B$5=\"\",\"\",'Segregation Density Profile_1'!$B$5)","v":"TEX-207-F, PART V"},{"$f":"IF('Segregation Density Profile_1'!$B$4=\"\",\"\",'Segregation Density Profile_1'!$B$4)","v":"SEGREGATION PROFILE_1"},{"$f":"IF('Segregation Density Profile_1'!$B$25=\"\",\"\",'Segregation Density Profile_1'!$B$25)","v":"LOCATION"},{"$f":"IF('Segregation Density Profile_1'!$B$36=\"\",\"\",'Segregation Density Profile_1'!$B$36)","v":"45'"},{"$f":"IF('Segregation Density Profile_1'!$C$25=\"\",\"\",'Segregation Density Profile_1'!$C$25)","v":"DENSITY READINGS"},{"$f":"IF('Segregation Density Profile_1'!$G$26=\"\",\"\",'Segregation Density Profile_1'!$G$26)","v":5}]
[68,{"$f":"IF('Segregation Density Profile_1'!$H$36=\"\",\"\",'Segregation Density Profile_1'!$H$36)","v":""},{"$f":"IF('Segregation Density Profile_1'!$B$5=\"\",\"\",'Segregation Density Profile_1'!$B$5)","v":"TEX-207-F, PART V"},{"$f":"IF('Segregation Density Profile_1'!$B$4=\"\",\"\",'Segregation Density Profile_1'!$B$4)","v":"SEGREGATION PROFILE_1"},{"$f":"IF('Segregation Density Profile_1'!$B$25=\"\",\"\",'Segregation Density Profile_1'!$B$25)","v":"LOCATION"},{"$f":"IF('Segregation Density Profile_1'!$B$36=\"\",\"\",'Segregation Density Profile_1'!$B$36)","v":"45'"},{"$f":"IF('Segregation Density Profile_1'!$H$25=\"\",\"\",'Segregation Density Profile_1'!$H$25)","v":"AVERAGE"}]
[69,{"$f":"IF('Segregation Density Profile_1'!$C$37=\"\",\"\",'Segregation Density Profile_1'!$C$37)","v":""},{"$f":"IF('Segregation Density Profile_1'!$B$5=\"\",\"\",'Segregation Density Profile_1'!$B$5)","v":"TEX-207-F, PART V"},{"$f":"IF('Segregation Density Profile_1'!$B$4=\"\",\"\",'Segregation Density Profile_1'!$B$4)","v":"SEGREGATION PROFILE_1"},{"$f":"IF('Segregation Density Profile_1'!$B$25=\"\",\"\",'Segregation Density Profile_1'!$B$25)","v":"LOCATION"},{"$f":"IF('Segregation Density Profile_1'!$B$37=\"\",\"\",'Segregation Density Profile_1'!$B$37)","v":"50'"},{"$f":"IF('Segregation Density Profile_1'!$C$25=\"\",\"\",'Segregation Density Profile_1'!$C$25)","v":"DENSITY READINGS"},{"$f":"IF('Segregation Density Profile_1'!$C$26=\"\",\"\",'Segregation Density Profile_1'!$C$26)","v":1}]
[70,{"$f":"IF('Segregation Density Profile_1'!$D$37=\"\",\"\",'Segregation Density Profile_1'!$D$37)","v":""},{"$f":"IF('Segregation Density Profile_1'!$B$5=\"\",\"\",'Segregation Density Profile_1'!$B$5)","v":"TEX-207-F, PART V"},{"$f":"IF('Segregation Density Profile_1'!$B$4=\"\",\"\",'Segregation Density Profile_1'!$B$4)","v":"SEGREGATION PROFILE_1"},{"$f":"IF('Segregation Density Profile_1'!$B$25=\"\",\"\",'Segregation Density Profile_1'!$B$25)","v":"LOCATION"},{"$f":"IF('Segregation Density Profile_1'!$B$37=\"\",\"\",'Segregation Density Profile_1'!$B$37)","v":"50'"},{"$f":"IF('Segregation Density Profile_1'!$C$25=\"\",\"\",'Segregation Density Profile_1'!$C$25)","v":"DENSITY READINGS"},{"$f":"IF('Segregation Density Profile_1'!$D$26=\"\",\"\",'Segregation Density Profile_1'!$D$26)","v":2}]
[71,{"$f":"IF('Segregation Density Profile_1'!$E$37=\"\",\"\",'Segregation Density Profile_1'!$E$37)","v":""},{"$f":"IF('Segregation Density Profile_1'!$B$5=\"\",\"\",'Segregation Density Profile_1'!$B$5)","v":"TEX-207-F, PART V"},{"$f":"IF('Segregation Density Profile_1'!$B$4=\"\",\"\",'Segregation Density Profile_1'!$B$4)","v":"SEGREGATION PROFILE_1"},{"$f":"IF('Segregation Density Profile_1'!$B$25=\"\",\"\",'Segregation Density Profile_1'!$B$25)","v":"LOCATION"},{"$f":"IF('Segregation Density Profile_1'!$B$37=\"\",\"\",'Segregation Density Profile_1'!$B$37)","v":"50'"},{"$f":"IF('Segregation Density Profile_1'!$C$25=\"\",\"\",'Segregation Density Profile_1'!$C$25)","v":"DENSITY READINGS"},{"$f":"IF('Segregation Density Profile_1'!$E$26=\"\",\"\",'Segregation Density Profile_1'!$E$26)","v":3}]
[72,{"$f":"IF('Segregation Density Profile_1'!$F$37=\"\",\"\",'Segregation Density Profile_1'!$F$37)","v":""},{"$f":"IF('Segregation Density Profile_1'!$B$5=\"\",\"\",'Segregation Density Profile_1'!$B$5)","v":"TEX-207-F, PART V"},{"$f":"IF('Segregation Density Profile_1'!$B$4=\"\",\"\",'Segregation Density Profile_1'!$B$4)","v":"SEGREGATION PROFILE_1"},{"$f":"IF('Segregation Density Profile_1'!$B$25=\"\",\"\",'Segregation Density Profile_1'!$B$25)","v":"LOCATION"},{"$f":"IF('Segregation Density Profile_1'!$B$37=\"\",\"\",'Segregation Density Profile_1'!$B$37)","v":"50'"},{"$f":"IF('Segregation Density Profile_1'!$C$25=\"\",\"\",'Segregation Density Profile_1'!$C$25)","v":"DENSITY READINGS"},{"$f":"IF('Segregation Density Profile_1'!$F$26=\"\",\"\",'Segregation Density Profile_1'!$F$26)","v":4}]
[73,{"$f":"IF('Segregation Density Profile_1'!$G$37=\"\",\"\",'Segregation Density Profile_1'!$G$37)","v":""},{"$f":"IF('Segregation Density Profile_1'!$B$5=\"\",\"\",'Segregation Density Profile_1'!$B$5)","v":"TEX-207-F, PART V"},{"$f":"IF('Segregation Density Profile_1'!$B$4=\"\",\"\",'Segregation Density Profile_1'!$B$4)","v":"SEGREGATION PROFILE_1"},{"$f":"IF('Segregation Density Profile_1'!$B$25=\"\",\"\",'Segregation Density Profile_1'!$B$25)","v":"LOCATION"},{"$f":"IF('Segregation Density Profile_1'!$B$37=\"\",\"\",'Segregation Density Profile_1'!$B$37)","v":"50'"},{"$f":"IF('Segregation Density Profile_1'!$C$25=\"\",\"\",'Segregation Density Profile_1'!$C$25)","v":"DENSITY READINGS"},{"$f":"IF('Segregation Density Profile_1'!$G$26=\"\",\"\",'Segregation Density Profile_1'!$G$26)","v":5}]
[74,{"$f":"IF('Segregation Density Profile_1'!$H$37=\"\",\"\",'Segregation Density Profile_1'!$H$37)","v":""},{"$f":"IF('Segregation Density Profile_1'!$B$5=\"\",\"\",'Segregation Density Profile_1'!$B$5)","v":"TEX-207-F, PART V"},{"$f":"IF('Segregation Density Profile_1'!$B$4=\"\",\"\",'Segregation Density Profile_1'!$B$4)","v":"SEGREGATION PROFILE_1"},{"$f":"IF('Segregation Density Profile_1'!$B$25=\"\",\"\",'Segregation Density Profile_1'!$B$25)","v":"LOCATION"},{"$f":"IF('Segregation Density Profile_1'!$B$37=\"\",\"\",'Segregation Density Profile_1'!$B$37)","v":"50'"},{"$f":"IF('Segregation Density Profile_1'!$H$25=\"\",\"\",'Segregation Density Profile_1'!$H$25)","v":"AVERAGE"}]
[75,{"$f":"IF('Segregation Density Profile_1'!$D$39=\"\",\"\",'Segregation Density Profile_1'!$D$39)","v":""},{"$f":"IF('Segregation Density Profile_1'!$B$5=\"\",\"\",'Segregation Density Profile_1'!$B$5)","v":"TEX-207-F, PART V"},{"$f":"IF('Segregation Density Profile_1'!$B$4=\"\",\"\",'Segregation Density Profile_1'!$B$4)","v":"SEGREGATION PROFILE_1"},{"$f":"IF('Segregation Density Profile_1'!$B$39=\"\",\"\",'Segregation Density Profile_1'!$B$39)","v":"AVERAGE READING:"}]
[76,{"$f":"IF('Segregation Density Profile_1'!$D$40=\"\",\"\",'Segregation Density Profile_1'!$D$40)","v":""},{"$f":"IF('Segregation Density Profile_1'!$B$5=\"\",\"\",'Segregation Density Profile_1'!$B$5)","v":"TEX-207-F, PART V"},{"$f":"IF('Segregation Density Profile_1'!$B$4=\"\",\"\",'Segregation Density Profile_1'!$B$4)","v":"SEGREGATION PROFILE_1"},{"$f":"IF('Segregation Density Profile_1'!$B$40=\"\",\"\",'Segregation Density Profile_1'!$B$40)","v":"HIGH READING:"}]
[77,{"$f":"IF('Segregation Density Profile_1'!$D$41=\"\",\"\",'Segregation Density Profile_1'!$D$41)","v":""},{"$f":"IF('Segregation Density Profile_1'!$B$5=\"\",\"\",'Segregation Density Profile_1'!$B$5)","v":"TEX-207-F, PART V"},{"$f":"IF('Segregation Density Profile_1'!$B$4=\"\",\"\",'Segregation Density Profile_1'!$B$4)","v":"SEGREGATION PROFILE_1"},{"$f":"IF('Segregation Density Profile_1'!$B$41=\"\",\"\",'Segregation Density Profile_1'!$B$41)","v":"LOW READING:"}]
[78,{"$f":"IF('Segregation Density Profile_1'!$D$44=\"\",\"\",'Segregation Density Profile_1'!$D$44)","v":""},{"$f":"IF('Segregation Density Profile_1'!$B$5=\"\",\"\",'Segregation Density Profile_1'!$B$5)","v":"TEX-207-F, PART V"},{"$f":"IF('Segregation Density Profile_1'!$B$4=\"\",\"\",'Segregation Density Profile_1'!$B$4)","v":"SEGREGATION PROFILE_1"},{"$f":"IF('Segregation Density Profile_1'!$B$43=\"\",\"\",'Segregation Density Profile_1'!$B$43)","v":"MAX ALLOWABLE DENSITY RANGE"},{"$f":"IF('Segregation Density Profile_1'!$B$44=\"\",\"\",'Segregation Density Profile_1'!$B$44)","v":"HIGHEST TO LOWEST:"}]
[79,{"$f":"IF('Segregation Density Profile_1'!$D$45=\"\",\"\",'Segregation Density Profile_1'!$D$45)","v":""},{"$f":"IF('Segregation Density Profile_1'!$B$5=\"\",\"\",'Segregation Density Profile_1'!$B$5)","v":"TEX-207-F, PART V"},{"$f":"IF('Segregation Density Profile_1'!$B$4=\"\",\"\",'Segregation Density Profile_1'!$B$4)","v":"SEGREGATION PROFILE_1"},{"$f":"IF('Segregation Density Profile_1'!$B$43=\"\",\"\",'Segregation Density Profile_1'!$B$43)","v":"MAX ALLOWABLE DENSITY RANGE"},{"$f":"IF('Segregation Density Profile_1'!$B$45=\"\",\"\",'Segregation Density Profile_1'!$B$45)","v":"AVERAGE TO LOWEST:"}]
[80,{"$f":"IF('Segregation Density Profile_2'!$C$27=\"\",\"\",'Segregation Density Profile_2'!$C$27)","v":""},{"$f":"IF('Segregation Density Profile_2'!$B$5=\"\",\"\",'Segregation Density Profile_2'!$B$5)","v":"TEX-207-F, PART V"},{"$f":"IF('Segregation Density Profile_2'!$B$4=\"\",\"\",'Segregation Density Profile_2'!$B$4)","v":"SEGREGATION PROFILE_2"},{"$f":"IF('Segregation Density Profile_2'!$B$25=\"\",\"\",'Segregation Density Profile_2'!$B$25)","v":"LOCATION"},{"$f":"IF('Segregation Density Profile_2'!$B$27=\"\",\"\",'Segregation Density Profile_2'!$B$27)","v":"0'"},{"$f":"IF('Segregation Density Profile_2'!$C$25=\"\",\"\",'Segregation Density Profile_2'!$C$25)","v":"DENSITY READINGS"},{"$f":"IF('Segregation Density Profile_2'!$C$26=\"\",\"\",'Segregation Density Profile_2'!$C$26)","v":1}]
[81,{"$f":"IF('Segregation Density Profile_2'!$D$27=\"\",\"\",'Segregation Density Profile_2'!$D$27)","v":""},{"$f":"IF('Segregation Density Profile_2'!$B$5=\"\",\"\",'Segregation Density Profile_2'!$B$5)","v":"TEX-207-F, PART V"},{"$f":"IF('Segregation Density Profile_2'!$B$4=\"\",\"\",'Segregation Density Profile_2'!$B$4)","v":"SEGREGATION PROFILE_2"},{"$f":"IF('Segregation Density Profile_2'!$B$25=\"\",\"\",'Segregation Density Profile_2'!$B$25)","v":"LOCATION"},{"$f":"IF('Segregation Density Profile_2'!$B$27=\"\",\"\",'Segregation Density Profile_2'!$B$27)","v":"0'"},{"$f":"IF('Segregation Density Profile_2'!$C$25=\"\",\"\",'Segregation Density Profile_2'!$C$25)","v":"DENSITY READINGS"},{"$f":"IF('Segregation Density Profile_2'!$D$26=\"\",\"\",'Segregation Density Profile_2'!$D$26)","v":2}]
[82,{"$f":"IF('Segregation Density Profile_2'!$E$27=\"\",\"\",'Segregation Density Profile_2'!$E$27)","v":""},{"$f":"IF('Segregation Density Profile_2'!$B$5=\"\",\"\",'Segregation Density Profile_2'!$B$5)","v":"TEX-207-F, PART V"},{"$f":"IF('Segregation Density Profile_2'!$B$4=\"\",\"\",'Segregation Density Profile_2'!$B$4)","v":"SEGREGATION PROFILE_2"},{"$f":"IF('Segregation Density Profile_2'!$B$25=\"\",\"\",'Segregation Density Profile_2'!$B$25)","v":"LOCATION"},{"$f":"IF('Segregation Density Profile_2'!$B$27=\"\",\"\",'Segregation Density Profile_2'!$B$27)","v":"0'"},{"$f":"IF('Segregation Density Profile_2'!$C$25=\"\",\"\",'Segregation Density Profile_2'!$C$25)","v":"DENSITY READINGS"},{"$f":"IF('Segregation Density Profile_2'!$E$26=\"\",\"\",'Segregation Density Profile_2'!$E$26)","v":3}]
[83,{"$f":"IF('Segregation Density Profile_2'!$F$27=\"\",\"\",'Segregation Density Profile_2'!$F$27)","v":""},{"$f":"IF('Segregation Density Profile_2'!$B$5=\"\",\"\",'Segregation Density Profile_2'!$B$5)","v":"TEX-207-F, PART V"},{"$f":"IF('Segregation Density Profile_2'!$B$4=\"\",\"\",'Segregation Density Profile_2'!$B$4)","v":"SEGREGATION PROFILE_2"},{"$f":"IF('Segregation Density Profile_2'!$B$25=\"\",\"\",'Segregation Density Profile_2'!$B$25)","v":"LOCATION"},{"$f":"IF('Segregation Density Profile_2'!$B$27=\"\",\"\",'Segregation Density Profile_2'!$B$27)","v":"0'"},{"$f":"IF('Segregation Density Profile_2'!$C$25=\"\",\"\",'Segregation Density Profile_2'!$C$25)","v":"DENSITY READINGS"},{"$f":"IF('Segregation Density Profile_2'!$F$26=\"\",\"\",'Segregation Density Profile_2'!$F$26)","v":4}]
[84,{"$f":"IF('Segregation Density Profile_2'!$G$27=\"\",\"\",'Segregation Density Profile_2'!$G$27)","v":""},{"$f":"IF('Segregation Density Profile_2'!$B$5=\"\",\"\",'Segregation Density Profile_2'!$B$5)","v":"TEX-207-F, PART V"},{"$f":"IF('Segregation Density Profile_2'!$B$4=\"\",\"\",'Segregation Density Profile_2'!$B$4)","v":"SEGREGATION PROFILE_2"},{"$f":"IF('Segregation Density Profile_2'!$B$25=\"\",\"\",'Segregation Density Profile_2'!$B$25)","v":"LOCATION"},{"$f":"IF('Segregation Density Profile_2'!$B$27=\"\",\"\",'Segregation Density Profile_2'!$B$27)","v":"0'"},{"$f":"IF('Segregation Density Profile_2'!$C$25=\"\",\"\",'Segregation Density Profile_2'!$C$25)","v":"DENSITY READINGS"},{"$f":"IF('Segregation Density Profile_2'!$G$26=\"\",\"\",'Segregation Density Profile_2'!$G$26)","v":5}]
[85,{"$f":"IF('Segregation Density Profile_2'!$H$27=\"\",\"\",'Segregation Density Profile_2'!$H$27)","v":""},{"$f":"IF('Segregation Density Profile_2'!$B$5=\"\",\"\",'Segregation Density Profile_2'!$B$5)","v":"TEX-207-F, PART V"},{"$f":"IF('Segregation Density Profile_2'!$B$4=\"\",\"\",'Segregation Density Profile_2'!$B$4)","v":"SEGREGATION PROFILE_2"},{"$f":"IF('Segregation Density Profile_2'!$B$25=\"\",\"\",'Segregation Density Profile_2'!$B$25)","v":"LOCATION"},{"$f":"IF('Segregation Density Profile_2'!$B$27=\"\",\"\",'Segregation Density Profile_2'!$B$27)","v":"0'"},{"$f":"IF('Segregation Density Profile_2'!$H$25=\"\",\"\",'Segregation Density Profile_2'!$H$25)","v":"AVERAGE"}]
[86,{"$f":"IF('Segregation Density Profile_2'!$C$28=\"\",\"\",'Segregation Density Profile_2'!$C$28)","v":""},{"$f":"IF('Segregation Density Profile_2'!$B$5=\"\",\"\",'Segregation Density Profile_2'!$B$5)","v":"TEX-207-F, PART V"},{"$f":"IF('Segregation Density Profile_2'!$B$4=\"\",\"\",'Segregation Density Profile_2'!$B$4)","v":"SEGREGATION PROFILE_2"},{"$f":"IF('Segregation Density Profile_2'!$B$25=\"\",\"\",'Segregation Density Profile_2'!$B$25)","v":"LOCATION"},{"$f":"IF('Segregation Density Profile_2'!$B$28=\"\",\"\",'Segregation Density Profile_2'!$B$28)","v":"5'"},{"$f":"IF('Segregation Density Profile_2'!$C$25=\"\",\"\",'Segregation Density Profile_2'!$C$25)","v":"DENSITY READINGS"},{"$f":"IF('Segregation Density Profile_2'!$C$26=\"\",\"\",'Segregation Density Profile_2'!$C$26)","v":1}]
[87,{"$f":"IF('Segregation Density Profile_2'!$D$28=\"\",\"\",'Segregation Density Profile_2'!$D$28)","v":""},{"$f":"IF('Segregation Density Profile_2'!$B$5=\"\",\"\",'Segregation Density Profile_2'!$B$5)","v":"TEX-207-F, PART V"},{"$f":"IF('Segregation Density Profile_2'!$B$4=\"\",\"\",'Segregation Density Profile_2'!$B$4)","v":"SEGREGATION PROFILE_2"},{"$f":"IF('Segregation Density Profile_2'!$B$25=\"\",\"\",'Segregation Density Profile_2'!$B$25)","v":"LOCATION"},{"$f":"IF('Segregation Density Profile_2'!$B$28=\"\",\"\",'Segregation Density Profile_2'!$B$28)","v":"5'"},{"$f":"IF('Segregation Density Profile_2'!$C$25=\"\",\"\",'Segregation Density Profile_2'!$C$25)","v":"DENSITY READINGS"},{"$f":"IF('Segregation Density Profile_2'!$D$26=\"\",\"\",'Segregation Density Profile_2'!$D$26)","v":2}]
[88,{"$f":"IF('Segregation Density Profile_2'!$E$28=\"\",\"\",'Segregation Density Profile_2'!$E$28)","v":""},{"$f":"IF('Segregation Density Profile_2'!$B$5=\"\",\"\",'Segregation Density Profile_2'!$B$5)","v":"TEX-207-F, PART V"},{"$f":"IF('Segregation Density Profile_2'!$B$4=\"\",\"\",'Segregation Density Profile_2'!$B$4)","v":"SEGREGATION PROFILE_2"},{"$f":"IF('Segregation Density Profile_2'!$B$25=\"\",\"\",'Segregation Density Profile_2'!$B$25)","v":"LOCATION"},{"$f":"IF('Segregation Density Profile_2'!$B$28=\"\",\"\",'Segregation Density Profile_2'!$B$28)","v":"5'"},{"$f":"IF('Segregation Density Profile_2'!$C$25=\"\",\"\",'Segregation Density Profile_2'!$C$25)","v":"DENSITY READINGS"},{"$f":"IF('Segregation Density Profile_2'!$E$26=\"\",\"\",'Segregation Density Profile_2'!$E$26)","v":3}]
[89,{"$f":"IF('Segregation Density Profile_2'!$F$28=\"\",\"\",'Segregation Density Profile_2'!$F$28)","v":""},{"$f":"IF('Segregation Density Profile_2'!$B$5=\"\",\"\",'Segregation Density Profile_2'!$B$5)","v":"TEX-207-F, PART V"},{"$f":"IF('Segregation Density Profile_2'!$B$4=\"\",\"\",'Segregation Density Profile_2'!$B$4)","v":"SEGREGATION PROFILE_2"},{"$f":"IF('Segregation Density Profile_2'!$B$25=\"\",\"\",'Segregation Density Profile_2'!$B$25)","v":"LOCATION"},{"$f":"IF('Segregation Density Profile_2'!$B$28=\"\",\"\",'Segregation Density Profile_2'!$B$28)","v":"5'"},{"$f":"IF('Segregation Density Profile_2'!$C$25=\"\",\"\",'Segregation Density Profile_2'!$C$25)","v":"DENSITY READINGS"},{"$f":"IF('Segregation Density Profile_2'!$F$26=\"\",\"\",'Segregation Density Profile_2'!$F$26)","v":4}]
[90,{"$f":"IF('Segregation Density Profile_2'!$G$28=\"\",\"\",'Segregation Density Profile_2'!$G$28)","v":""},{"$f":"IF('Segregation Density Profile_2'!$B$5=\"\",\"\",'Segregation Density Profile_2'!$B$5)","v":"TEX-207-F, PART V"},{"$f":"IF('Segregation Density Profile_2'!$B$4=\"\",\"\",'Segregation Density Profile_2'!$B$4)","v":"SEGREGATION PROFILE_2"},{"$f":"IF('Segregation Density Profile_2'!$B$25=\"\",\"\",'Segregation Density Profile_2'!$B$25)","v":"LOCATION"},{"$f":"IF('Segregation Density Profile_2'!$B$28=\"\",\"\",'Segregation Density Profile_2'!$B$28)","v":"5'"},{"$f":"IF('Segregation Density Profile_2'!$C$25=\"\",\"\",'Segregation Density Profile_2'!$C$25)","v":"DENSITY READINGS"},{"$f":"IF('Segregation Density Profile_2'!$G$26=\"\",\"\",'Segregation Density Profile_2'!$G$26)","v":5}]
[91,{"$f":"IF('Segregation Density Profile_2'!$H$28=\"\",\"\",'Segregation Density Profile_2'!$H$28)","v":""},{"$f":"IF('Segregation Density Profile_2'!$B$5=\"\",\"\",'Segregation Density Profile_2'!$B$5)","v":"TEX-207-F, PART V"},{"$f":"IF('Segregation Density Profile_2'!$B$4=\"\",\"\",'Segregation Density Profile_2'!$B$4)","v":"SEGREGATION PROFILE_2"},{"$f":"IF('Segregation Density Profile_2'!$B$25=\"\",\"\",'Segregation Density Profile_2'!$B$25)","v":"LOCATION"},{"$f":"IF('Segregation Density Profile_2'!$B$28=\"\",\"\",'Segregation Density Profile_2'!$B$28)","v":"5'"},{"$f":"IF('Segregation Density Profile_2'!$H$25=\"\",\"\",'Segregation Density Profile_2'!$H$25)","v":"AVERAGE"}]
[92,{"$f":"IF('Segregation Density Profile_2'!$C$29=\"\",\"\",'Segregation Density Profile_2'!$C$29)","v":""},{"$f":"IF('Segregation Density Profile_2'!$B$5=\"\",\"\",'Segregation Density Profile_2'!$B$5)","v":"TEX-207-F, PART V"},{"$f":"IF('Segregation Density Profile_2'!$B$4=\"\",\"\",'Segregation Density Profile_2'!$B$4)","v":"SEGREGATION PROFILE_2"},{"$f":"IF('Segregation Density Profile_2'!$B$25=\"\",\"\",'Segregation Density Profile_2'!$B$25)","v":"LOCATION"},{"$f":"IF('Segregation Density Profile_2'!$B$29=\"\",\"\",'Segregation Density Profile_2'!$B$29)","v":"10'"},{"$f":"IF('Segregation Density Profile_2'!$C$25=\"\",\"\",'Segregation Density Profile_2'!$C$25)","v":"DENSITY READINGS"},{"$f":"IF('Segregation Density Profile_2'!$C$26=\"\",\"\",'Segregation Density Profile_2'!$C$26)","v":1}]
[93,{"$f":"IF('Segregation Density Profile_2'!$D$29=\"\",\"\",'Segregation Density Profile_2'!$D$29)","v":""},{"$f":"IF('Segregation Density Profile_2'!$B$5=\"\",\"\",'Segregation Density Profile_2'!$B$5)","v":"TEX-207-F, PART V"},{"$f":"IF('Segregation Density Profile_2'!$B$4=\"\",\"\",'Segregation Density Profile_2'!$B$4)","v":"SEGREGATION PROFILE_2"},{"$f":"IF('Segregation Density Profile_2'!$B$25=\"\",\"\",'Segregation Density Profile_2'!$B$25)","v":"LOCATION"},{"$f":"IF('Segregation Density Profile_2'!$B$29=\"\",\"\",'Segregation Density Profile_2'!$B$29)","v":"10'"},{"$f":"IF('Segregation Density Profile_2'!$C$25=\"\",\"\",'Segregation Density Profile_2'!$C$25)","v":"DENSITY READINGS"},{"$f":"IF('Segregation Density Profile_2'!$D$26=\"\",\"\",'Segregation Density Profile_2'!$D$26)","v":2}]
[94,{"$f":"IF('Segregation Density Profile_2'!$E$29=\"\",\"\",'Segregation Density Profile_2'!$E$29)","v":""},{"$f":"IF('Segregation Density Profile_2'!$B$5=\"\",\"\",'Segregation Density Profile_2'!$B$5)","v":"TEX-207-F, PART V"},{"$f":"IF('Segregation Density Profile_2'!$B$4=\"\",\"\",'Segregation Density Profile_2'!$B$4)","v":"SEGREGATION PROFILE_2"},{"$f":"IF('Segregation Density Profile_2'!$B$25=\"\",\"\",'Segregation Density Profile_2'!$B$25)","v":"LOCATION"},{"$f":"IF('Segregation Density Profile_2'!$B$29=\"\",\"\",'Segregation Density Profile_2'!$B$29)","v":"10'"},{"$f":"IF('Segregation Density Profile_2'!$C$25=\"\",\"\",'Segregation Density Profile_2'!$C$25)","v":"DENSITY READINGS"},{"$f":"IF('Segregation Density Profile_2'!$E$26=\"\",\"\",'Segregation Density Profile_2'!$E$26)","v":3}]
[95,{"$f":"IF('Segregation Density Profile_2'!$F$29=\"\",\"\",'Segregation Density Profile_2'!$F$29)","v":""},{"$f":"IF('Segregation Density Profile_2'!$B$5=\"\",\"\",'Segregation Density Profile_2'!$B$5)","v":"TEX-207-F, PART V"},{"$f":"IF('Segregation Density Profile_2'!$B$4=\"\",\"\",'Segregation Density Profile_2'!$B$4)","v":"SEGREGATION PROFILE_2"},{"$f":"IF('Segregation Density Profile_2'!$B$25=\"\",\"\",'Segregation Density Profile_2'!$B$25)","v":"LOCATION"},{"$f":"IF('Segregation Density Profile_2'!$B$29=\"\",\"\",'Segregation Density Profile_2'!$B$29)","v":"10'"},{"$f":"IF('Segregation Density Profile_2'!$C$25=\"\",\"\",'Segregation Density Profile_2'!$C$25)","v":"DENSITY READINGS"},{"$f":"IF('Segregation Density Profile_2'!$F$26=\"\",\"\",'Segregation Density Profile_2'!$F$26)","v":4}]
[96,{"$f":"IF('Segregation Density Profile_2'!$G$29=\"\",\"\",'Segregation Density Profile_2'!$G$29)","v":""},{"$f":"IF('Segregation Density Profile_2'!$B$5=\"\",\"\",'Segregation Density Profile_2'!$B$5)","v":"TEX-207-F, PART V"},{"$f":"IF('Segregation Density Profile_2'!$B$4=\"\",\"\",'Segregation Density Profile_2'!$B$4)","v":"SEGREGATION PROFILE_2"},{"$f":"IF('Segregation Density Profile_2'!$B$25=\"\",\"\",'Segregation Density Profile_2'!$B$25)","v":"LOCATION"},{"$f":"IF('Segregation Density Profile_2'!$B$29=\"\",\"\",'Segregation Density Profile_2'!$B$29)","v":"10'"},{"$f":"IF('Segregation Density Profile_2'!$C$25=\"\",\"\",'Segregation Density Profile_2'!$C$25)","v":"DENSITY READINGS"},{"$f":"IF('Segregation Density Profile_2'!$G$26=\"\",\"\",'Segregation Density Profile_2'!$G$26)","v":5}]
[97,{"$f":"IF('Segregation Density Profile_2'!$H$29=\"\",\"\",'Segregation Density Profile_2'!$H$29)","v":""},{"$f":"IF('Segregation Density Profile_2'!$B$5=\"\",\"\",'Segregation Density Profile_2'!$B$5)","v":"TEX-207-F, PART V"},{"$f":"IF('Segregation Density Profile_2'!$B$4=\"\",\"\",'Segregation Density Profile_2'!$B$4)","v":"SEGREGATION PROFILE_2"},{"$f":"IF('Segregation Density Profile_2'!$B$25=\"\",\"\",'Segregation Density Profile_2'!$B$25)","v":"LOCATION"},{"$f":"IF('Segregation Density Profile_2'!$B$29=\"\",\"\",'Segregation Density Profile_2'!$B$29)","v":"10'"},{"$f":"IF('Segregation Density Profile_2'!$H$25=\"\",\"\",'Segregation Density Profile_2'!$H$25)","v":"AVERAGE"}]
[98,{"$f":"IF('Segregation Density Profile_2'!$C$30=\"\",\"\",'Segregation Density Profile_2'!$C$30)","v":""},{"$f":"IF('Segregation Density Profile_2'!$B$5=\"\",\"\",'Segregation Density Profile_2'!$B$5)","v":"TEX-207-F, PART V"},{"$f":"IF('Segregation Density Profile_2'!$B$4=\"\",\"\",'Segregation Density Profile_2'!$B$4)","v":"SEGREGATION PROFILE_2"},{"$f":"IF('Segregation Density Profile_2'!$B$25=\"\",\"\",'Segregation Density Profile_2'!$B$25)","v":"LOCATION"},{"$f":"IF('Segregation Density Profile_2'!$B$30=\"\",\"\",'Segregation Density Profile_2'!$B$30)","v":"15'"},{"$f":"IF('Segregation Density Profile_2'!$C$25=\"\",\"\",'Segregation Density Profile_2'!$C$25)","v":"DENSITY READINGS"},{"$f":"IF('Segregation Density Profile_2'!$C$26=\"\",\"\",'Segregation Density Profile_2'!$C$26)","v":1}]
[99,{"$f":"IF('Segregation Density Profile_2'!$D$30=\"\",\"\",'Segregation Density Profile_2'!$D$30)","v":""},{"$f":"IF('Segregation Density Profile_2'!$B$5=\"\",\"\",'Segregation Density Profile_2'!$B$5)","v":"TEX-207-F, PART V"},{"$f":"IF('Segregation Density Profile_2'!$B$4=\"\",\"\",'Segregation Density Profile_2'!$B$4)","v":"SEGREGATION PROFILE_2"},{"$f":"IF('Segregation Density Profile_2'!$B$25=\"\",\"\",'Segregation Density Profile_2'!$B$25)","v":"LOCATION"},{"$f":"IF('Segregation Density Profile_2'!$B$30=\"\",\"\",'Segregation Density Profile_2'!$B$30)","v":"15'"},{"$f":"IF('Segregation Density Profile_2'!$C$25=\"\",\"\",'Segregation Density Profile_2'!$C$25)","v":"DENSITY READINGS"},{"$f":"IF('Segregation Density Profile_2'!$D$26=\"\",\"\",'Segregation Density Profile_2'!$D$26)","v":2}]
[100,{"$f":"IF('Segregation Density Profile_2'!$E$30=\"\",\"\",'Segregation Density Profile_2'!$E$30)","v":""},{"$f":"IF('Segregation Density Profile_2'!$B$5=\"\",\"\",'Segregation Density Profile_2'!$B$5)","v":"TEX-207-F, PART V"},{"$f":"IF('Segregation Density Profile_2'!$B$4=\"\",\"\",'Segregation Density Profile_2'!$B$4)","v":"SEGREGATION PROFILE_2"},{"$f":"IF('Segregation Density Profile_2'!$B$25=\"\",\"\",'Segregation Density Profile_2'!$B$25)","v":"LOCATION"},{"$f":"IF('Segregation Density Profile_2'!$B$30=\"\",\"\",'Segregation Density Profile_2'!$B$30)","v":"15'"},{"$f":"IF('Segregation Density Profile_2'!$C$25=\"\",\"\",'Segregation Density Profile_2'!$C$25)","v":"DENSITY READINGS"},{"$f":"IF('Segregation Density Profile_2'!$E$26=\"\",\"\",'Segregation Density Profile_2'!$E$26)","v":3}]
[101,{"$f":"IF('Segregation Density Profile_2'!$F$30=\"\",\"\",'Segregation Density Profile_2'!$F$30)","v":""},{"$f":"IF('Segregation Density Profile_2'!$B$5=\"\",\"\",'Segregation Density Profile_2'!$B$5)","v":"TEX-207-F, PART V"},{"$f":"IF('Segregation Density Profile_2'!$B$4=\"\",\"\",'Segregation Density Profile_2'!$B$4)","v":"SEGREGATION PROFILE_2"},{"$f":"IF('Segregation Density Profile_2'!$B$25=\"\",\"\",'Segregation Density Profile_2'!$B$25)","v":"LOCATION"},{"$f":"IF('Segregation Density Profile_2'!$B$30=\"\",\"\",'Segregation Density Profile_2'!$B$30)","v":"15'"},{"$f":"IF('Segregation Density Profile_2'!$C$25=\"\",\"\",'Segregation Density Profile_2'!$C$25)","v":"DENSITY READINGS"},{"$f":"IF('Segregation Density Profile_2'!$F$26=\"\",\"\",'Segregation Density Profile_2'!$F$26)","v":4}]
[102,{"$f":"IF('Segregation Density Profile_2'!$G$30=\"\",\"\",'Segregation Density Profile_2'!$G$30)","v":""},{"$f":"IF('Segregation Density Profile_2'!$B$5=\"\",\"\",'Segregation Density Profile_2'!$B$5)","v":"TEX-207-F, PART V"},{"$f":"IF('Segregation Density Profile_2'!$B$4=\"\",\"\",'Segregation Density Profile_2'!$B$4)","v":"SEGREGATION PROFILE_2"},{"$f":"IF('Segregation Density Profile_2'!$B$25=\"\",\"\",'Segregation Density Profile_2'!$B$25)","v":"LOCATION"},{"$f":"IF('Segregation Density Profile_2'!$B$30=\"\",\"\",'Segregation Density Profile_2'!$B$30)","v":"15'"},{"$f":"IF('Segregation Density Profile_2'!$C$25=\"\",\"\",'Segregation Density Profile_2'!$C$25)","v":"DENSITY READINGS"},{"$f":"IF('Segregation Density Profile_2'!$G$26=\"\",\"\",'Segregation Density Profile_2'!$G$26)","v":5}]
[103,{"$f":"IF('Segregation Density Profile_2'!$H$30=\"\",\"\",'Segregation Density Profile_2'!$H$30)","v":""},{"$f":"IF('Segregation Density Profile_2'!$B$5=\"\",\"\",'Segregation Density Profile_2'!$B$5)","v":"TEX-207-F, PART V"},{"$f":"IF('Segregation Density Profile_2'!$B$4=\"\",\"\",'Segregation Density Profile_2'!$B$4)","v":"SEGREGATION PROFILE_2"},{"$f":"IF('Segregation Density Profile_2'!$B$25=\"\",\"\",'Segregation Density Profile_2'!$B$25)","v":"LOCATION"},{"$f":"IF('Segregation Density Profile_2'!$B$30=\"\",\"\",'Segregation Density Profile_2'!$B$30)","v":"15'"},{"$f":"IF('Segregation Density Profile_2'!$H$25=\"\",\"\",'Segregation Density Profile_2'!$H$25)","v":"AVERAGE"}]
[104,{"$f":"IF('Segregation Density Profile_2'!$C$31=\"\",\"\",'Segregation Density Profile_2'!$C$31)","v":""},{"$f":"IF('Segregation Density Profile_2'!$B$5=\"\",\"\",'Segregation Density Profile_2'!$B$5)","v":"TEX-207-F, PART V"},{"$f":"IF('Segregation Density Profile_2'!$B$4=\"\",\"\",'Segregation Density Profile_2'!$B$4)","v":"SEGREGATION PROFILE_2"},{"$f":"IF('Segregation Density Profile_2'!$B$25=\"\",\"\",'Segregation Density Profile_2'!$B$25)","v":"LOCATION"},{"$f":"IF('Segregation Density Profile_2'!$B$31=\"\",\"\",'Segregation Density Profile_2'!$B$31)","v":"20'"},{"$f":"IF('Segregation Density Profile_2'!$C$25=\"\",\"\",'Segregation Density Profile_2'!$C$25)","v":"DENSITY READINGS"},{"$f":"IF('Segregation Density Profile_2'!$C$26=\"\",\"\",'Segregation Density Profile_2'!$C$26)","v":1}]
[105,{"$f":"IF('Segregation Density Profile_2'!$D$31=\"\",\"\",'Segregation Density Profile_2'!$D$31)","v":""},{"$f":"IF('Segregation Density Profile_2'!$B$5=\"\",\"\",'Segregation Density Profile_2'!$B$5)","v":"TEX-207-F, PART V"},{"$f":"IF('Segregation Density Profile_2'!$B$4=\"\",\"\",'Segregation Density Profile_2'!$B$4)","v":"SEGREGATION PROFILE_2"},{"$f":"IF('Segregation Density Profile_2'!$B$25=\"\",\"\",'Segregation Density Profile_2'!$B$25)","v":"LOCATION"},{"$f":"IF('Segregation Density Profile_2'!$B$31=\"\",\"\",'Segregation Density Profile_2'!$B$31)","v":"20'"},{"$f":"IF('Segregation Density Profile_2'!$C$25=\"\",\"\",'Segregation Density Profile_2'!$C$25)","v":"DENSITY READINGS"},{"$f":"IF('Segregation Density Profile_2'!$D$26=\"\",\"\",'Segregation Density Profile_2'!$D$26)","v":2}]
[106,{"$f":"IF('Segregation Density Profile_2'!$E$31=\"\",\"\",'Segregation Density Profile_2'!$E$31)","v":""},{"$f":"IF('Segregation Density Profile_2'!$B$5=\"\",\"\",'Segregation Density Profile_2'!$B$5)","v":"TEX-207-F, PART V"},{"$f":"IF('Segregation Density Profile_2'!$B$4=\"\",\"\",'Segregation Density Profile_2'!$B$4)","v":"SEGREGATION PROFILE_2"},{"$f":"IF('Segregation Density Profile_2'!$B$25=\"\",\"\",'Segregation Density Profile_2'!$B$25)","v":"LOCATION"},{"$f":"IF('Segregation Density Profile_2'!$B$31=\"\",\"\",'Segregation Density Profile_2'!$B$31)","v":"20'"},{"$f":"IF('Segregation Density Profile_2'!$C$25=\"\",\"\",'Segregation Density Profile_2'!$C$25)","v":"DENSITY READINGS"},{"$f":"IF('Segregation Density Profile_2'!$E$26=\"\",\"\",'Segregation Density Profile_2'!$E$26)","v":3}]
[107,{"$f":"IF('Segregation Density Profile_2'!$F$31=\"\",\"\",'Segregation Density Profile_2'!$F$31)","v":""},{"$f":"IF('Segregation Density Profile_2'!$B$5=\"\",\"\",'Segregation Density Profile_2'!$B$5)","v":"TEX-207-F, PART V"},{"$f":"IF('Segregation Density Profile_2'!$B$4=\"\",\"\",'Segregation Density Profile_2'!$B$4)","v":"SEGREGATION PROFILE_2"},{"$f":"IF('Segregation Density Profile_2'!$B$25=\"\",\"\",'Segregation Density Profile_2'!$B$25)","v":"LOCATION"},{"$f":"IF('Segregation Density Profile_2'!$B$31=\"\",\"\",'Segregation Density Profile_2'!$B$31)","v":"20'"},{"$f":"IF('Segregation Density Profile_2'!$C$25=\"\",\"\",'Segregation Density Profile_2'!$C$25)","v":"DENSITY READINGS"},{"$f":"IF('Segregation Density Profile_2'!$F$26=\"\",\"\",'Segregation Density Profile_2'!$F$26)","v":4}]
[108,{"$f":"IF('Segregation Density Profile_2'!$G$31=\"\",\"\",'Segregation Density Profile_2'!$G$31)","v":""},{"$f":"IF('Segregation Density Profile_2'!$B$5=\"\",\"\",'Segregation Density Profile_2'!$B$5)","v":"TEX-207-F, PART V"},{"$f":"IF('Segregation Density Profile_2'!$B$4=\"\",\"\",'Segregation Density Profile_2'!$B$4)","v":"SEGREGATION PROFILE_2"},{"$f":"IF('Segregation Density Profile_2'!$B$25=\"\",\"\",'Segregation Density Profile_2'!$B$25)","v":"LOCATION"},{"$f":"IF('Segregation Density Profile_2'!$B$31=\"\",\"\",'Segregation Density Profile_2'!$B$31)","v":"20'"},{"$f":"IF('Segregation Density Profile_2'!$C$25=\"\",\"\",'Segregation Density Profile_2'!$C$25)","v":"DENSITY READINGS"},{"$f":"IF('Segregation Density Profile_2'!$G$26=\"\",\"\",'Segregation Density Profile_2'!$G$26)","v":5}]
[109,{"$f":"IF('Segregation Density Profile_2'!$H$31=\"\",\"\",'Segregation Density Profile_2'!$H$31)","v":""},{"$f":"IF('Segregation Density Profile_2'!$B$5=\"\",\"\",'Segregation Density Profile_2'!$B$5)","v":"TEX-207-F, PART V"},{"$f":"IF('Segregation Density Profile_2'!$B$4=\"\",\"\",'Segregation Density Profile_2'!$B$4)","v":"SEGREGATION PROFILE_2"},{"$f":"IF('Segregation Density Profile_2'!$B$25=\"\",\"\",'Segregation Density Profile_2'!$B$25)","v":"LOCATION"},{"$f":"IF('Segregation Density Profile_2'!$B$31=\"\",\"\",'Segregation Density Profile_2'!$B$31)","v":"20'"},{"$f":"IF('Segregation Density Profile_2'!$H$25=\"\",\"\",'Segregation Density Profile_2'!$H$25)","v":"AVERAGE"}]
[110,{"$f":"IF('Segregation Density Profile_2'!$C$32=\"\",\"\",'Segregation Density Profile_2'!$C$32)","v":""},{"$f":"IF('Segregation Density Profile_2'!$B$5=\"\",\"\",'Segregation Density Profile_2'!$B$5)","v":"TEX-207-F, PART V"},{"$f":"IF('Segregation Density Profile_2'!$B$4=\"\",\"\",'Segregation Density Profile_2'!$B$4)","v":"SEGREGATION PROFILE_2"},{"$f":"IF('Segregation Density Profile_2'!$B$25=\"\",\"\",'Segregation Density Profile_2'!$B$25)","v":"LOCATION"},{"$f":"IF('Segregation Density Profile_2'!$B$32=\"\",\"\",'Segregation Density Profile_2'!$B$32)","v":"25'"},{"$f":"IF('Segregation Density Profile_2'!$C$25=\"\",\"\",'Segregation Density Profile_2'!$C$25)","v":"DENSITY READINGS"},{"$f":"IF('Segregation Density Profile_2'!$C$26=\"\",\"\",'Segregation Density Profile_2'!$C$26)","v":1}]
[111,{"$f":"IF('Segregation Density Profile_2'!$D$32=\"\",\"\",'Segregation Density Profile_2'!$D$32)","v":""},{"$f":"IF('Segregation Density Profile_2'!$B$5=\"\",\"\",'Segregation Density Profile_2'!$B$5)","v":"TEX-207-F, PART V"},{"$f":"IF('Segregation Density Profile_2'!$B$4=\"\",\"\",'Segregation Density Profile_2'!$B$4)","v":"SEGREGATION PROFILE_2"},{"$f":"IF('Segregation Density Profile_2'!$B$25=\"\",\"\",'Segregation Density Profile_2'!$B$25)","v":"LOCATION"},{"$f":"IF('Segregation Density Profile_2'!$B$32=\"\",\"\",'Segregation Density Profile_2'!$B$32)","v":"25'"},{"$f":"IF('Segregation Density Profile_2'!$C$25=\"\",\"\",'Segregation Density Profile_2'!$C$25)","v":"DENSITY READINGS"},{"$f":"IF('Segregation Density Profile_2'!$D$26=\"\",\"\",'Segregation Density Profile_2'!$D$26)","v":2}]
[112,{"$f":"IF('Segregation Density Profile_2'!$E$32=\"\",\"\",'Segregation Density Profile_2'!$E$32)","v":""},{"$f":"IF('Segregation Density Profile_2'!$B$5=\"\",\"\",'Segregation Density Profile_2'!$B$5)","v":"TEX-207-F, PART V"},{"$f":"IF('Segregation Density Profile_2'!$B$4=\"\",\"\",'Segregation Density Profile_2'!$B$4)","v":"SEGREGATION PROFILE_2"},{"$f":"IF('Segregation Density Profile_2'!$B$25=\"\",\"\",'Segregation Density Profile_2'!$B$25)","v":"LOCATION"},{"$f":"IF('Segregation Density Profile_2'!$B$32=\"\",\"\",'Segregation Density Profile_2'!$B$32)","v":"25'"},{"$f":"IF('Segregation Density Profile_2'!$C$25=\"\",\"\",'Segregation Density Profile_2'!$C$25)","v":"DENSITY READINGS"},{"$f":"IF('Segregation Density Profile_2'!$E$26=\"\",\"\",'Segregation Density Profile_2'!$E$26)","v":3}]
[113,{"$f":"IF('Segregation Density Profile_2'!$F$32=\"\",\"\",'Segregation Density Profile_2'!$F$32)","v":""},{"$f":"IF('Segregation Density Profile_2'!$B$5=\"\",\"\",'Segregation Density Profile_2'!$B$5)","v":"TEX-207-F, PART V"},{"$f":"IF('Segregation Density Profile_2'!$B$4=\"\",\"\",'Segregation Density Profile_2'!$B$4)","v":"SEGREGATION PROFILE_2"},{"$f":"IF('Segregation Density Profile_2'!$B$25=\"\",\"\",'Segregation Density Profile_2'!$B$25)","v":"LOCATION"},{"$f":"IF('Segregation Density Profile_2'!$B$32=\"\",\"\",'Segregation Density Profile_2'!$B$32)","v":"25'"},{"$f":"IF('Segregation Density Profile_2'!$C$25=\"\",\"\",'Segregation Density Profile_2'!$C$25)","v":"DENSITY READINGS"},{"$f":"IF('Segregation Density Profile_2'!$F$26=\"\",\"\",'Segregation Density Profile_2'!$F$26)","v":4}]
[114,{"$f":"IF('Segregation Density Profile_2'!$G$32=\"\",\"\",'Segregation Density Profile_2'!$G$32)","v":""},{"$f":"IF('Segregation Density Profile_2'!$B$5=\"\",\"\",'Segregation Density Profile_2'!$B$5)","v":"TEX-207-F, PART V"},{"$f":"IF('Segregation Density Profile_2'!$B$4=\"\",\"\",'Segregation Density Profile_2'!$B$4)","v":"SEGREGATION PROFILE_2"},{"$f":"IF('Segregation Density Profile_2'!$B$25=\"\",\"\",'Segregation Density Profile_2'!$B$25)","v":"LOCATION"},{"$f":"IF('Segregation Density Profile_2'!$B$32=\"\",\"\",'Segregation Density Profile_2'!$B$32)","v":"25'"},{"$f":"IF('Segregation Density Profile_2'!$C$25=\"\",\"\",'Segregation Density Profile_2'!$C$25)","v":"DENSITY READINGS"},{"$f":"IF('Segregation Density Profile_2'!$G$26=\"\",\"\",'Segregation Density Profile_2'!$G$26)","v":5}]
[115,{"$f":"IF('Segregation Density Profile_2'!$H$32=\"\",\"\",'Segregation Density Profile_2'!$H$32)","v":""},{"$f":"IF('Segregation Density Profile_2'!$B$5=\"\",\"\",'Segregation Density Profile_2'!$B$5)","v":"TEX-207-F, PART V"},{"$f":"IF('Segregation Density Profile_2'!$B$4=\"\",\"\",'Segregation Density Profile_2'!$B$4)","v":"SEGREGATION PROFILE_2"},{"$f":"IF('Segregation Density Profile_2'!$B$25=\"\",\"\",'Segregation Density Profile_2'!$B$25)","v":"LOCATION"},{"$f":"IF('Segregation Density Profile_2'!$B$32=\"\",\"\",'Segregation Density Profile_2'!$B$32)","v":"25'"},{"$f":"IF('Segregation Density Profile_2'!$H$25=\"\",\"\",'Segregation Density Profile_2'!$H$25)","v":"AVERAGE"}]
[116,{"$f":"IF('Segregation Density Profile_2'!$C$33=\"\",\"\",'Segregation Density Profile_2'!$C$33)","v":""},{"$f":"IF('Segregation Density Profile_2'!$B$5=\"\",\"\",'Segregation Density Profile_2'!$B$5)","v":"TEX-207-F, PART V"},{"$f":"IF('Segregation Density Profile_2'!$B$4=\"\",\"\",'Segregation Density Profile_2'!$B$4)","v":"SEGREGATION PROFILE_2"},{"$f":"IF('Segregation Density Profile_2'!$B$25=\"\",\"\",'Segregation Density Profile_2'!$B$25)","v":"LOCATION"},{"$f":"IF('Segregation Density Profile_2'!$B$33=\"\",\"\",'Segregation Density Profile_2'!$B$33)","v":"30'"},{"$f":"IF('Segregation Density Profile_2'!$C$25=\"\",\"\",'Segregation Density Profile_2'!$C$25)","v":"DENSITY READINGS"},{"$f":"IF('Segregation Density Profile_2'!$C$26=\"\",\"\",'Segregation Density Profile_2'!$C$26)","v":1}]
[117,{"$f":"IF('Segregation Density Profile_2'!$D$33=\"\",\"\",'Segregation Density Profile_2'!$D$33)","v":""},{"$f":"IF('Segregation Density Profile_2'!$B$5=\"\",\"\",'Segregation Density Profile_2'!$B$5)","v":"TEX-207-F, PART V"},{"$f":"IF('Segregation Density Profile_2'!$B$4=\"\",\"\",'Segregation Density Profile_2'!$B$4)","v":"SEGREGATION PROFILE_2"},{"$f":"IF('Segregation Density Profile_2'!$B$25=\"\",\"\",'Segregation Density Profile_2'!$B$25)","v":"LOCATION"},{"$f":"IF('Segregation Density Profile_2'!$B$33=\"\",\"\",'Segregation Density Profile_2'!$B$33)","v":"30'"},{"$f":"IF('Segregation Density Profile_2'!$C$25=\"\",\"\",'Segregation Density Profile_2'!$C$25)","v":"DENSITY READINGS"},{"$f":"IF('Segregation Density Profile_2'!$D$26=\"\",\"\",'Segregation Density Profile_2'!$D$26)","v":2}]
[118,{"$f":"IF('Segregation Density Profile_2'!$E$33=\"\",\"\",'Segregation Density Profile_2'!$E$33)","v":""},{"$f":"IF('Segregation Density Profile_2'!$B$5=\"\",\"\",'Segregation Density Profile_2'!$B$5)","v":"TEX-207-F, PART V"},{"$f":"IF('Segregation Density Profile_2'!$B$4=\"\",\"\",'Segregation Density Profile_2'!$B$4)","v":"SEGREGATION PROFILE_2"},{"$f":"IF('Segregation Density Profile_2'!$B$25=\"\",\"\",'Segregation Density Profile_2'!$B$25)","v":"LOCATION"},{"$f":"IF('Segregation Density Profile_2'!$B$33=\"\",\"\",'Segregation Density Profile_2'!$B$33)","v":"30'"},{"$f":"IF('Segregation Density Profile_2'!$C$25=\"\",\"\",'Segregation Density Profile_2'!$C$25)","v":"DENSITY READINGS"},{"$f":"IF('Segregation Density Profile_2'!$E$26=\"\",\"\",'Segregation Density Profile_2'!$E$26)","v":3}]
[119,{"$f":"IF('Segregation Density Profile_2'!$F$33=\"\",\"\",'Segregation Density Profile_2'!$F$33)","v":""},{"$f":"IF('Segregation Density Profile_2'!$B$5=\"\",\"\",'Segregation Density Profile_2'!$B$5)","v":"TEX-207-F, PART V"},{"$f":"IF('Segregation Density Profile_2'!$B$4=\"\",\"\",'Segregation Density Profile_2'!$B$4)","v":"SEGREGATION PROFILE_2"},{"$f":"IF('Segregation Density Profile_2'!$B$25=\"\",\"\",'Segregation Density Profile_2'!$B$25)","v":"LOCATION"},{"$f":"IF('Segregation Density Profile_2'!$B$33=\"\",\"\",'Segregation Density Profile_2'!$B$33)","v":"30'"},{"$f":"IF('Segregation Density Profile_2'!$C$25=\"\",\"\",'Segregation Density Profile_2'!$C$25)","v":"DENSITY READINGS"},{"$f":"IF('Segregation Density Profile_2'!$F$26=\"\",\"\",'Segregation Density Profile_2'!$F$26)","v":4}]
[120,{"$f":"IF('Segregation Density Profile_2'!$G$33=\"\",\"\",'Segregation Density Profile_2'!$G$33)","v":""},{"$f":"IF('Segregation Density Profile_2'!$B$5=\"\",\"\",'Segregation Density Profile_2'!$B$5)","v":"TEX-207-F, PART V"},{"$f":"IF('Segregation Density Profile_2'!$B$4=\"\",\"\",'Segregation Density Profile_2'!$B$4)","v":"SEGREGATION PROFILE_2"},{"$f":"IF('Segregation Density Profile_2'!$B$25=\"\",\"\",'Segregation Density Profile_2'!$B$25)","v":"LOCATION"},{"$f":"IF('Segregation Density Profile_2'!$B$33=\"\",\"\",'Segregation Density Profile_2'!$B$33)","v":"30'"},{"$f":"IF('Segregation Density Profile_2'!$C$25=\"\",\"\",'Segregation Density Profile_2'!$C$25)","v":"DENSITY READINGS"},{"$f":"IF('Segregation Density Profile_2'!$G$26=\"\",\"\",'Segregation Density Profile_2'!$G$26)","v":5}]
[121,{"$f":"IF('Segregation Density Profile_2'!$H$33=\"\",\"\",'Segregation Density Profile_2'!$H$33)","v":""},{"$f":"IF('Segregation Density Profile_2'!$B$5=\"\",\"\",'Segregation Density Profile_2'!$B$5)","v":"TEX-207-F, PART V"},{"$f":"IF('Segregation Density Profile_2'!$B$4=\"\",\"\",'Segregation Density Profile_2'!$B$4)","v":"SEGREGATION PROFILE_2"},{"$f":"IF('Segregation Density Profile_2'!$B$25=\"\",\"\",'Segregation Density Profile_2'!$B$25)","v":"LOCATION"},{"$f":"IF('Segregation Density Profile_2'!$B$33=\"\",\"\",'Segregation Density Profile_2'!$B$33)","v":"30'"},{"$f":"IF('Segregation Density Profile_2'!$H$25=\"\",\"\",'Segregation Density Profile_2'!$H$25)","v":"AVERAGE"}]
[122,{"$f":"IF('Segregation Density Profile_2'!$C$34=\"\",\"\",'Segregation Density Profile_2'!$C$34)","v":""},{"$f":"IF('Segregation Density Profile_2'!$B$5=\"\",\"\",'Segregation Density Profile_2'!$B$5)","v":"TEX-207-F, PART V"},{"$f":"IF('Segregation Density Profile_2'!$B$4=\"\",\"\",'Segregation Density Profile_2'!$B$4)","v":"SEGREGATION PROFILE_2"},{"$f":"IF('Segregation Density Profile_2'!$B$25=\"\",\"\",'Segregation Density Profile_2'!$B$25)","v":"LOCATION"},{"$f":"IF('Segregation Density Profile_2'!$B$34=\"\",\"\",'Segregation Density Profile_2'!$B$34)","v":"35'"},{"$f":"IF('Segregation Density Profile_2'!$C$25=\"\",\"\",'Segregation Density Profile_2'!$C$25)","v":"DENSITY READINGS"},{"$f":"IF('Segregation Density Profile_2'!$C$26=\"\",\"\",'Segregation Density Profile_2'!$C$26)","v":1}]
[123,{"$f":"IF('Segregation Density Profile_2'!$D$34=\"\",\"\",'Segregation Density Profile_2'!$D$34)","v":""},{"$f":"IF('Segregation Density Profile_2'!$B$5=\"\",\"\",'Segregation Density Profile_2'!$B$5)","v":"TEX-207-F, PART V"},{"$f":"IF('Segregation Density Profile_2'!$B$4=\"\",\"\",'Segregation Density Profile_2'!$B$4)","v":"SEGREGATION PROFILE_2"},{"$f":"IF('Segregation Density Profile_2'!$B$25=\"\",\"\",'Segregation Density Profile_2'!$B$25)","v":"LOCATION"},{"$f":"IF('Segregation Density Profile_2'!$B$34=\"\",\"\",'Segregation Density Profile_2'!$B$34)","v":"35'"},{"$f":"IF('Segregation Density Profile_2'!$C$25=\"\",\"\",'Segregation Density Profile_2'!$C$25)","v":"DENSITY READINGS"},{"$f":"IF('Segregation Density Profile_2'!$D$26=\"\",\"\",'Segregation Density Profile_2'!$D$26)","v":2}]
[124,{"$f":"IF('Segregation Density Profile_2'!$E$34=\"\",\"\",'Segregation Density Profile_2'!$E$34)","v":""},{"$f":"IF('Segregation Density Profile_2'!$B$5=\"\",\"\",'Segregation Density Profile_2'!$B$5)","v":"TEX-207-F, PART V"},{"$f":"IF('Segregation Density Profile_2'!$B$4=\"\",\"\",'Segregation Density Profile_2'!$B$4)","v":"SEGREGATION PROFILE_2"},{"$f":"IF('Segregation Density Profile_2'!$B$25=\"\",\"\",'Segregation Density Profile_2'!$B$25)","v":"LOCATION"},{"$f":"IF('Segregation Density Profile_2'!$B$34=\"\",\"\",'Segregation Density Profile_2'!$B$34)","v":"35'"},{"$f":"IF('Segregation Density Profile_2'!$C$25=\"\",\"\",'Segregation Density Profile_2'!$C$25)","v":"DENSITY READINGS"},{"$f":"IF('Segregation Density Profile_2'!$E$26=\"\",\"\",'Segregation Density Profile_2'!$E$26)","v":3}]
[125,{"$f":"IF('Segregation Density Profile_2'!$F$34=\"\",\"\",'Segregation Density Profile_2'!$F$34)","v":""},{"$f":"IF('Segregation Density Profile_2'!$B$5=\"\",\"\",'Segregation Density Profile_2'!$B$5)","v":"TEX-207-F, PART V"},{"$f":"IF('Segregation Density Profile_2'!$B$4=\"\",\"\",'Segregation Density Profile_2'!$B$4)","v":"SEGREGATION PROFILE_2"},{"$f":"IF('Segregation Density Profile_2'!$B$25=\"\",\"\",'Segregation Density Profile_2'!$B$25)","v":"LOCATION"},{"$f":"IF('Segregation Density Profile_2'!$B$34=\"\",\"\",'Segregation Density Profile_2'!$B$34)","v":"35'"},{"$f":"IF('Segregation Density Profile_2'!$C$25=\"\",\"\",'Segregation Density Profile_2'!$C$25)","v":"DENSITY READINGS"},{"$f":"IF('Segregation Density Profile_2'!$F$26=\"\",\"\",'Segregation Density Profile_2'!$F$26)","v":4}]
[126,{"$f":"IF('Segregation Density Profile_2'!$G$34=\"\",\"\",'Segregation Density Profile_2'!$G$34)","v":""},{"$f":"IF('Segregation Density Profile_2'!$B$5=\"\",\"\",'Segregation Density Profile_2'!$B$5)","v":"TEX-207-F, PART V"},{"$f":"IF('Segregation Density Profile_2'!$B$4=\"\",\"\",'Segregation Density Profile_2'!$B$4)","v":"SEGREGATION PROFILE_2"},{"$f":"IF('Segregation Density Profile_2'!$B$25=\"\",\"\",'Segregation Density Profile_2'!$B$25)","v":"LOCATION"},{"$f":"IF('Segregation Density Profile_2'!$B$34=\"\",\"\",'Segregation Density Profile_2'!$B$34)","v":"35'"},{"$f":"IF('Segregation Density Profile_2'!$C$25=\"\",\"\",'Segregation Density Profile_2'!$C$25)","v":"DENSITY READINGS"},{"$f":"IF('Segregation Density Profile_2'!$G$26=\"\",\"\",'Segregation Density Profile_2'!$G$26)","v":5}]
[127,{"$f":"IF('Segregation Density Profile_2'!$H$34=\"\",\"\",'Segregation Density Profile_2'!$H$34)","v":""},{"$f":"IF('Segregation Density Profile_2'!$B$5=\"\",\"\",'Segregation Density Profile_2'!$B$5)","v":"TEX-207-F, PART V"},{"$f":"IF('Segregation Density Profile_2'!$B$4=\"\",\"\",'Segregation Density Profile_2'!$B$4)","v":"SEGREGATION PROFILE_2"},{"$f":"IF('Segregation Density Profile_2'!$B$25=\"\",\"\",'Segregation Density Profile_2'!$B$25)","v":"LOCATION"},{"$f":"IF('Segregation Density Profile_2'!$B$34=\"\",\"\",'Segregation Density Profile_2'!$B$34)","v":"35'"},{"$f":"IF('Segregation Density Profile_2'!$H$25=\"\",\"\",'Segregation Density Profile_2'!$H$25)","v":"AVERAGE"}]
[128,{"$f":"IF('Segregation Density Profile_2'!$C$35=\"\",\"\",'Segregation Density Profile_2'!$C$35)","v":""},{"$f":"IF('Segregation Density Profile_2'!$B$5=\"\",\"\",'Segregation Density Profile_2'!$B$5)","v":"TEX-207-F, PART V"},{"$f":"IF('Segregation Density Profile_2'!$B$4=\"\",\"\",'Segregation Density Profile_2'!$B$4)","v":"SEGREGATION PROFILE_2"},{"$f":"IF('Segregation Density Profile_2'!$B$25=\"\",\"\",'Segregation Density Profile_2'!$B$25)","v":"LOCATION"},{"$f":"IF('Segregation Density Profile_2'!$B$35=\"\",\"\",'Segregation Density Profile_2'!$B$35)","v":"40'"},{"$f":"IF('Segregation Density Profile_2'!$C$25=\"\",\"\",'Segregation Density Profile_2'!$C$25)","v":"DENSITY READINGS"},{"$f":"IF('Segregation Density Profile_2'!$C$26=\"\",\"\",'Segregation Density Profile_2'!$C$26)","v":1}]
[129,{"$f":"IF('Segregation Density Profile_2'!$D$35=\"\",\"\",'Segregation Density Profile_2'!$D$35)","v":""},{"$f":"IF('Segregation Density Profile_2'!$B$5=\"\",\"\",'Segregation Density Profile_2'!$B$5)","v":"TEX-207-F, PART V"},{"$f":"IF('Segregation Density Profile_2'!$B$4=\"\",\"\",'Segregation Density Profile_2'!$B$4)","v":"SEGREGATION PROFILE_2"},{"$f":"IF('Segregation Density Profile_2'!$B$25=\"\",\"\",'Segregation Density Profile_2'!$B$25)","v":"LOCATION"},{"$f":"IF('Segregation Density Profile_2'!$B$35=\"\",\"\",'Segregation Density Profile_2'!$B$35)","v":"40'"},{"$f":"IF('Segregation Density Profile_2'!$C$25=\"\",\"\",'Segregation Density Profile_2'!$C$25)","v":"DENSITY READINGS"},{"$f":"IF('Segregation Density Profile_2'!$D$26=\"\",\"\",'Segregation Density Profile_2'!$D$26)","v":2}]
[130,{"$f":"IF('Segregation Density Profile_2'!$E$35=\"\",\"\",'Segregation Density Profile_2'!$E$35)","v":""},{"$f":"IF('Segregation Density Profile_2'!$B$5=\"\",\"\",'Segregation Density Profile_2'!$B$5)","v":"TEX-207-F, PART V"},{"$f":"IF('Segregation Density Profile_2'!$B$4=\"\",\"\",'Segregation Density Profile_2'!$B$4)","v":"SEGREGATION PROFILE_2"},{"$f":"IF('Segregation Density Profile_2'!$B$25=\"\",\"\",'Segregation Density Profile_2'!$B$25)","v":"LOCATION"},{"$f":"IF('Segregation Density Profile_2'!$B$35=\"\",\"\",'Segregation Density Profile_2'!$B$35)","v":"40'"},{"$f":"IF('Segregation Density Profile_2'!$C$25=\"\",\"\",'Segregation Density Profile_2'!$C$25)","v":"DENSITY READINGS"},{"$f":"IF('Segregation Density Profile_2'!$E$26=\"\",\"\",'Segregation Density Profile_2'!$E$26)","v":3}]
[131,{"$f":"IF('Segregation Density Profile_2'!$F$35=\"\",\"\",'Segregation Density Profile_2'!$F$35)","v":""},{"$f":"IF('Segregation Density Profile_2'!$B$5=\"\",\"\",'Segregation Density Profile_2'!$B$5)","v":"TEX-207-F, PART V"},{"$f":"IF('Segregation Density Profile_2'!$B$4=\"\",\"\",'Segregation Density Profile_2'!$B$4)","v":"SEGREGATION PROFILE_2"},{"$f":"IF('Segregation Density Profile_2'!$B$25=\"\",\"\",'Segregation Density Profile_2'!$B$25)","v":"LOCATION"},{"$f":"IF('Segregation Density Profile_2'!$B$35=\"\",\"\",'Segregation Density Profile_2'!$B$35)","v":"40'"},{"$f":"IF('Segregation Density Profile_2'!$C$25=\"\",\"\",'Segregation Density Profile_2'!$C$25)","v":"DENSITY READINGS"},{"$f":"IF('Segregation Density Profile_2'!$F$26=\"\",\"\",'Segregation Density Profile_2'!$F$26)","v":4}]
[132,{"$f":"IF('Segregation Density Profile_2'!$G$35=\"\",\"\",'Segregation Density Profile_2'!$G$35)","v":""},{"$f":"IF('Segregation Density Profile_2'!$B$5=\"\",\"\",'Segregation Density Profile_2'!$B$5)","v":"TEX-207-F, PART V"},{"$f":"IF('Segregation Density Profile_2'!$B$4=\"\",\"\",'Segregation Density Profile_2'!$B$4)","v":"SEGREGATION PROFILE_2"},{"$f":"IF('Segregation Density Profile_2'!$B$25=\"\",\"\",'Segregation Density Profile_2'!$B$25)","v":"LOCATION"},{"$f":"IF('Segregation Density Profile_2'!$B$35=\"\",\"\",'Segregation Density Profile_2'!$B$35)","v":"40'"},{"$f":"IF('Segregation Density Profile_2'!$C$25=\"\",\"\",'Segregation Density Profile_2'!$C$25)","v":"DENSITY READINGS"},{"$f":"IF('Segregation Density Profile_2'!$G$26=\"\",\"\",'Segregation Density Profile_2'!$G$26)","v":5}]
[133,{"$f":"IF('Segregation Density Profile_2'!$H$35=\"\",\"\",'Segregation Density Profile_2'!$H$35)","v":""},{"$f":"IF('Segregation Density Profile_2'!$B$5=\"\",\"\",'Segregation Density Profile_2'!$B$5)","v":"TEX-207-F, PART V"},{"$f":"IF('Segregation Density Profile_2'!$B$4=\"\",\"\",'Segregation Density Profile_2'!$B$4)","v":"SEGREGATION PROFILE_2"},{"$f":"IF('Segregation Density Profile_2'!$B$25=\"\",\"\",'Segregation Density Profile_2'!$B$25)","v":"LOCATION"},{"$f":"IF('Segregation Density Profile_2'!$B$35=\"\",\"\",'Segregation Density Profile_2'!$B$35)","v":"40'"},{"$f":"IF('Segregation Density Profile_2'!$H$25=\"\",\"\",'Segregation Density Profile_2'!$H$25)","v":"AVERAGE"}]
[134,{"$f":"IF('Segregation Density Profile_2'!$C$36=\"\",\"\",'Segregation Density Profile_2'!$C$36)","v":""},{"$f":"IF('Segregation Density Profile_2'!$B$5=\"\",\"\",'Segregation Density Profile_2'!$B$5)","v":"TEX-207-F, PART V"},{"$f":"IF('Segregation Density Profile_2'!$B$4=\"\",\"\",'Segregation Density Profile_2'!$B$4)","v":"SEGREGATION PROFILE_2"},{"$f":"IF('Segregation Density Profile_2'!$B$25=\"\",\"\",'Segregation Density Profile_2'!$B$25)","v":"LOCATION"},{"$f":"IF('Segregation Density Profile_2'!$B$36=\"\",\"\",'Segregation Density Profile_2'!$B$36)","v":"45'"},{"$f":"IF('Segregation Density Profile_2'!$C$25=\"\",\"\",'Segregation Density Profile_2'!$C$25)","v":"DENSITY READINGS"},{"$f":"IF('Segregation Density Profile_2'!$C$26=\"\",\"\",'Segregation Density Profile_2'!$C$26)","v":1}]
[135,{"$f":"IF('Segregation Density Profile_2'!$D$36=\"\",\"\",'Segregation Density Profile_2'!$D$36)","v":""},{"$f":"IF('Segregation Density Profile_2'!$B$5=\"\",\"\",'Segregation Density Profile_2'!$B$5)","v":"TEX-207-F, PART V"},{"$f":"IF('Segregation Density Profile_2'!$B$4=\"\",\"\",'Segregation Density Profile_2'!$B$4)","v":"SEGREGATION PROFILE_2"},{"$f":"IF('Segregation Density Profile_2'!$B$25=\"\",\"\",'Segregation Density Profile_2'!$B$25)","v":"LOCATION"},{"$f":"IF('Segregation Density Profile_2'!$B$36=\"\",\"\",'Segregation Density Profile_2'!$B$36)","v":"45'"},{"$f":"IF('Segregation Density Profile_2'!$C$25=\"\",\"\",'Segregation Density Profile_2'!$C$25)","v":"DENSITY READINGS"},{"$f":"IF('Segregation Density Profile_2'!$D$26=\"\",\"\",'Segregation Density Profile_2'!$D$26)","v":2}]
[136,{"$f":"IF('Segregation Density Profile_2'!$E$36=\"\",\"\",'Segregation Density Profile_2'!$E$36)","v":""},{"$f":"IF('Segregation Density Profile_2'!$B$5=\"\",\"\",'Segregation Density Profile_2'!$B$5)","v":"TEX-207-F, PART V"},{"$f":"IF('Segregation Density Profile_2'!$B$4=\"\",\"\",'Segregation Density Profile_2'!$B$4)","v":"SEGREGATION PROFILE_2"},{"$f":"IF('Segregation Density Profile_2'!$B$25=\"\",\"\",'Segregation Density Profile_2'!$B$25)","v":"LOCATION"},{"$f":"IF('Segregation Density Profile_2'!$B$36=\"\",\"\",'Segregation Density Profile_2'!$B$36)","v":"45'"},{"$f":"IF('Segregation Density Profile_2'!$C$25=\"\",\"\",'Segregation Density Profile_2'!$C$25)","v":"DENSITY READINGS"},{"$f":"IF('Segregation Density Profile_2'!$E$26=\"\",\"\",'Segregation Density Profile_2'!$E$26)","v":3}]
[137,{"$f":"IF('Segregation Density Profile_2'!$F$36=\"\",\"\",'Segregation Density Profile_2'!$F$36)","v":""},{"$f":"IF('Segregation Density Profile_2'!$B$5=\"\",\"\",'Segregation Density Profile_2'!$B$5)","v":"TEX-207-F, PART V"},{"$f":"IF('Segregation Density Profile_2'!$B$4=\"\",\"\",'Segregation Density Profile_2'!$B$4)","v":"SEGREGATION PROFILE_2"},{"$f":"IF('Segregation Density Profile_2'!$B$25=\"\",\"\",'Segregation Density Profile_2'!$B$25)","v":"LOCATION"},{"$f":"IF('Segregation Density Profile_2'!$B$36=\"\",\"\",'Segregation Density Profile_2'!$B$36)","v":"45'"},{"$f":"IF('Segregation Density Profile_2'!$C$25=\"\",\"\",'Segregation Density Profile_2'!$C$25)","v":"DENSITY READINGS"},{"$f":"IF('Segregation Density Profile_2'!$F$26=\"\",\"\",'Segregation Density Profile_2'!$F$26)","v":4}]
[138,{"$f":"IF('Segregation Density Profile_2'!$G$36=\"\",\"\",'Segregation Density Profile_2'!$G$36)","v":""},{"$f":"IF('Segregation Density Profile_2'!$B$5=\"\",\"\",'Segregation Density Profile_2'!$B$5)","v":"TEX-207-F, PART V"},{"$f":"IF('Segregation Density Profile_2'!$B$4=\"\",\"\",'Segregation Density Profile_2'!$B$4)","v":"SEGREGATION PROFILE_2"},{"$f":"IF('Segregation Density Profile_2'!$B$25=\"\",\"\",'Segregation Density Profile_2'!$B$25)","v":"LOCATION"},{"$f":"IF('Segregation Density Profile_2'!$B$36=\"\",\"\",'Segregation Density Profile_2'!$B$36)","v":"45'"},{"$f":"IF('Segregation Density Profile_2'!$C$25=\"\",\"\",'Segregation Density Profile_2'!$C$25)","v":"DENSITY READINGS"},{"$f":"IF('Segregation Density Profile_2'!$G$26=\"\",\"\",'Segregation Density Profile_2'!$G$26)","v":5}]
[139,{"$f":"IF('Segregation Density Profile_2'!$H$36=\"\",\"\",'Segregation Density Profile_2'!$H$36)","v":""},{"$f":"IF('Segregation Density Profile_2'!$B$5=\"\",\"\",'Segregation Density Profile_2'!$B$5)","v":"TEX-207-F, PART V"},{"$f":"IF('Segregation Density Profile_2'!$B$4=\"\",\"\",'Segregation Density Profile_2'!$B$4)","v":"SEGREGATION PROFILE_2"},{"$f":"IF('Segregation Density Profile_2'!$B$25=\"\",\"\",'Segregation Density Profile_2'!$B$25)","v":"LOCATION"},{"$f":"IF('Segregation Density Profile_2'!$B$36=\"\",\"\",'Segregation Density Profile_2'!$B$36)","v":"45'"},{"$f":"IF('Segregation Density Profile_2'!$H$25=\"\",\"\",'Segregation Density Profile_2'!$H$25)","v":"AVERAGE"}]
[140,{"$f":"IF('Segregation Density Profile_2'!$C$37=\"\",\"\",'Segregation Density Profile_2'!$C$37)","v":""},{"$f":"IF('Segregation Density Profile_2'!$B$5=\"\",\"\",'Segregation Density Profile_2'!$B$5)","v":"TEX-207-F, PART V"},{"$f":"IF('Segregation Density Profile_2'!$B$4=\"\",\"\",'Segregation Density Profile_2'!$B$4)","v":"SEGREGATION PROFILE_2"},{"$f":"IF('Segregation Density Profile_2'!$B$25=\"\",\"\",'Segregation Density Profile_2'!$B$25)","v":"LOCATION"},{"$f":"IF('Segregation Density Profile_2'!$B$37=\"\",\"\",'Segregation Density Profile_2'!$B$37)","v":"50'"},{"$f":"IF('Segregation Density Profile_2'!$C$25=\"\",\"\",'Segregation Density Profile_2'!$C$25)","v":"DENSITY READINGS"},{"$f":"IF('Segregation Density Profile_2'!$C$26=\"\",\"\",'Segregation Density Profile_2'!$C$26)","v":1}]
[141,{"$f":"IF('Segregation Density Profile_2'!$D$37=\"\",\"\",'Segregation Density Profile_2'!$D$37)","v":""},{"$f":"IF('Segregation Density Profile_2'!$B$5=\"\",\"\",'Segregation Density Profile_2'!$B$5)","v":"TEX-207-F, PART V"},{"$f":"IF('Segregation Density Profile_2'!$B$4=\"\",\"\",'Segregation Density Profile_2'!$B$4)","v":"SEGREGATION PROFILE_2"},{"$f":"IF('Segregation Density Profile_2'!$B$25=\"\",\"\",'Segregation Density Profile_2'!$B$25)","v":"LOCATION"},{"$f":"IF('Segregation Density Profile_2'!$B$37=\"\",\"\",'Segregation Density Profile_2'!$B$37)","v":"50'"},{"$f":"IF('Segregation Density Profile_2'!$C$25=\"\",\"\",'Segregation Density Profile_2'!$C$25)","v":"DENSITY READINGS"},{"$f":"IF('Segregation Density Profile_2'!$D$26=\"\",\"\",'Segregation Density Profile_2'!$D$26)","v":2}]
[142,{"$f":"IF('Segregation Density Profile_2'!$E$37=\"\",\"\",'Segregation Density Profile_2'!$E$37)","v":""},{"$f":"IF('Segregation Density Profile_2'!$B$5=\"\",\"\",'Segregation Density Profile_2'!$B$5)","v":"TEX-207-F, PART V"},{"$f":"IF('Segregation Density Profile_2'!$B$4=\"\",\"\",'Segregation Density Profile_2'!$B$4)","v":"SEGREGATION PROFILE_2"},{"$f":"IF('Segregation Density Profile_2'!$B$25=\"\",\"\",'Segregation Density Profile_2'!$B$25)","v":"LOCATION"},{"$f":"IF('Segregation Density Profile_2'!$B$37=\"\",\"\",'Segregation Density Profile_2'!$B$37)","v":"50'"},{"$f":"IF('Segregation Density Profile_2'!$C$25=\"\",\"\",'Segregation Density Profile_2'!$C$25)","v":"DENSITY READINGS"},{"$f":"IF('Segregation Density Profile_2'!$E$26=\"\",\"\",'Segregation Density Profile_2'!$E$26)","v":3}]
[143,{"$f":"IF('Segregation Density Profile_2'!$F$37=\"\",\"\",'Segregation Density Profile_2'!$F$37)","v":""},{"$f":"IF('Segregation Density Profile_2'!$B$5=\"\",\"\",'Segregation Density Profile_2'!$B$5)","v":"TEX-207-F, PART V"},{"$f":"IF('Segregation Density Profile_2'!$B$4=\"\",\"\",'Segregation Density Profile_2'!$B$4)","v":"SEGREGATION PROFILE_2"},{"$f":"IF('Segregation Density Profile_2'!$B$25=\"\",\"\",'Segregation Density Profile_2'!$B$25)","v":"LOCATION"},{"$f":"IF('Segregation Density Profile_2'!$B$37=\"\",\"\",'Segregation Density Profile_2'!$B$37)","v":"50'"},{"$f":"IF('Segregation Density Profile_2'!$C$25=\"\",\"\",'Segregation Density Profile_2'!$C$25)","v":"DENSITY READINGS"},{"$f":"IF('Segregation Density Profile_2'!$F$26=\"\",\"\",'Segregation Density Profile_2'!$F$26)","v":4}]
[144,{"$f":"IF('Segregation Density Profile_2'!$G$37=\"\",\"\",'Segregation Density Profile_2'!$G$37)","v":""},{"$f":"IF('Segregation Density Profile_2'!$B$5=\"\",\"\",'Segregation Density Profile_2'!$B$5)","v":"TEX-207-F, PART V"},{"$f":"IF('Segregation Density Profile_2'!$B$4=\"\",\"\",'Segregation Density Profile_2'!$B$4)","v":"SEGREGATION PROFILE_2"},{"$f":"IF('Segregation Density Profile_2'!$B$25=\"\",\"\",'Segregation Density Profile_2'!$B$25)","v":"LOCATION"},{"$f":"IF('Segregation Density Profile_2'!$B$37=\"\",\"\",'Segregation Density Profile_2'!$B$37)","v":"50'"},{"$f":"IF('Segregation Density Profile_2'!$C$25=\"\",\"\",'Segregation Density Profile_2'!$C$25)","v":"DENSITY READINGS"},{"$f":"IF('Segregation Density Profile_2'!$G$26=\"\",\"\",'Segregation Density Profile_2'!$G$26)","v":5}]
[145,{"$f":"IF('Segregation Density Profile_2'!$H$37=\"\",\"\",'Segregation Density Profile_2'!$H$37)","v":""},{"$f":"IF('Segregation Density Profile_2'!$B$5=\"\",\"\",'Segregation Density Profile_2'!$B$5)","v":"TEX-207-F, PART V"},{"$f":"IF('Segregation Density Profile_2'!$B$4=\"\",\"\",'Segregation Density Profile_2'!$B$4)","v":"SEGREGATION PROFILE_2"},{"$f":"IF('Segregation Density Profile_2'!$B$25=\"\",\"\",'Segregation Density Profile_2'!$B$25)","v":"LOCATION"},{"$f":"IF('Segregation Density Profile_2'!$B$37=\"\",\"\",'Segregation Density Profile_2'!$B$37)","v":"50'"},{"$f":"IF('Segregation Density Profile_2'!$H$25=\"\",\"\",'Segregation Density Profile_2'!$H$25)","v":"AVERAGE"}]
[146,{"$f":"IF('Segregation Density Profile_2'!$D$39=\"\",\"\",'Segregation Density Profile_2'!$D$39)","v":""},{"$f":"IF('Segregation Density Profile_2'!$B$5=\"\",\"\",'Segregation Density Profile_2'!$B$5)","v":"TEX-207-F, PART V"},{"$f":"IF('Segregation Density Profile_2'!$B$4=\"\",\"\",'Segregation Density Profile_2'!$B$4)","v":"SEGREGATION PROFILE_2"},{"$f":"IF('Segregation Density Profile_2'!$B$39=\"\",\"\",'Segregation Density Profile_2'!$B$39)","v":"AVERAGE READING:"}]
[147,{"$f":"IF('Segregation Density Profile_2'!$D$40=\"\",\"\",'Segregation Density Profile_2'!$D$40)","v":""},{"$f":"IF('Segregation Density Profile_2'!$B$5=\"\",\"\",'Segregation Density Profile_2'!$B$5)","v":"TEX-207-F, PART V"},{"$f":"IF('Segregation Density Profile_2'!$B$4=\"\",\"\",'Segregation Density Profile_2'!$B$4)","v":"SEGREGATION PROFILE_2"},{"$f":"IF('Segregation Density Profile_2'!$B$40=\"\",\"\",'Segregation Density Profile_2'!$B$40)","v":"HIGH READING:"}]
[148,{"$f":"IF('Segregation Density Profile_2'!$D$41=\"\",\"\",'Segregation Density Profile_2'!$D$41)","v":""},{"$f":"IF('Segregation Density Profile_2'!$B$5=\"\",\"\",'Segregation Density Profile_2'!$B$5)","v":"TEX-207-F, PART V"},{"$f":"IF('Segregation Density Profile_2'!$B$4=\"\",\"\",'Segregation Density Profile_2'!$B$4)","v":"SEGREGATION PROFILE_2"},{"$f":"IF('Segregation Density Profile_2'!$B$41=\"\",\"\",'Segregation Density Profile_2'!$B$41)","v":"LOW READING:"}]
[149,{"$f":"IF('Segregation Density Profile_2'!$D$44=\"\",\"\",'Segregation Density Profile_2'!$D$44)","v":""},{"$f":"IF('Segregation Density Profile_2'!$B$5=\"\",\"\",'Segregation Density Profile_2'!$B$5)","v":"TEX-207-F, PART V"},{"$f":"IF('Segregation Density Profile_2'!$B$4=\"\",\"\",'Segregation Density Profile_2'!$B$4)","v":"SEGREGATION PROFILE_2"},{"$f":"IF('Segregation Density Profile_2'!$B$43=\"\",\"\",'Segregation Density Profile_2'!$B$43)","v":"MAX ALLOWABLE DENSITY RANGE"},{"$f":"IF('Segregation Density Profile_2'!$B$44=\"\",\"\",'Segregation Density Profile_2'!$B$44)","v":"HIGHEST TO LOWEST:"}]
[150,{"$f":"IF('Segregation Density Profile_2'!$D$45=\"\",\"\",'Segregation Density Profile_2'!$D$45)","v":""},{"$f":"IF('Segregation Density Profile_2'!$B$5=\"\",\"\",'Segregation Density Profile_2'!$B$5)","v":"TEX-207-F, PART V"},{"$f":"IF('Segregation Density Profile_2'!$B$4=\"\",\"\",'Segregation Density Profile_2'!$B$4)","v":"SEGREGATION PROFILE_2"},{"$f":"IF('Segregation Density Profile_2'!$B$43=\"\",\"\",'Segregation Density Profile_2'!$B$43)","v":"MAX ALLOWABLE DENSITY RANGE"},{"$f":"IF('Segregation Density Profile_2'!$B$45=\"\",\"\",'Segregation Density Profile_2'!$B$45)","v":"AVERAGE TO LOWEST:"}]
[151,{"$f":"IF('Segregation Density Profile_3'!$C$27=\"\",\"\",'Segregation Density Profile_3'!$C$27)","v":""},{"$f":"IF('Segregation Density Profile_3'!$B$5=\"\",\"\",'Segregation Density Profile_3'!$B$5)","v":"TEX-207-F, PART V"},{"$f":"IF('Segregation Density Profile_3'!$B$4=\"\",\"\",'Segregation Density Profile_3'!$B$4)","v":"SEGREGATION PROFILE_3"},{"$f":"IF('Segregation Density Profile_3'!$B$25=\"\",\"\",'Segregation Density Profile_3'!$B$25)","v":"LOCATION"},{"$f":"IF('Segregation Density Profile_3'!$B$27=\"\",\"\",'Segregation Density Profile_3'!$B$27)","v":"0'"},{"$f":"IF('Segregation Density Profile_3'!$C$25=\"\",\"\",'Segregation Density Profile_3'!$C$25)","v":"DENSITY READINGS"},{"$f":"IF('Segregation Density Profile_3'!$C$26=\"\",\"\",'Segregation Density Profile_3'!$C$26)","v":1}]
[152,{"$f":"IF('Segregation Density Profile_3'!$D$27=\"\",\"\",'Segregation Density Profile_3'!$D$27)","v":""},{"$f":"IF('Segregation Density Profile_3'!$B$5=\"\",\"\",'Segregation Density Profile_3'!$B$5)","v":"TEX-207-F, PART V"},{"$f":"IF('Segregation Density Profile_3'!$B$4=\"\",\"\",'Segregation Density Profile_3'!$B$4)","v":"SEGREGATION PROFILE_3"},{"$f":"IF('Segregation Density Profile_3'!$B$25=\"\",\"\",'Segregation Density Profile_3'!$B$25)","v":"LOCATION"},{"$f":"IF('Segregation Density Profile_3'!$B$27=\"\",\"\",'Segregation Density Profile_3'!$B$27)","v":"0'"},{"$f":"IF('Segregation Density Profile_3'!$C$25=\"\",\"\",'Segregation Density Profile_3'!$C$25)","v":"DENSITY READINGS"},{"$f":"IF('Segregation Density Profile_3'!$D$26=\"\",\"\",'Segregation Density Profile_3'!$D$26)","v":2}]
[153,{"$f":"IF('Segregation Density Profile_3'!$E$27=\"\",\"\",'Segregation Density Profile_3'!$E$27)","v":""},{"$f":"IF('Segregation Density Profile_3'!$B$5=\"\",\"\",'Segregation Density Profile_3'!$B$5)","v":"TEX-207-F, PART V"},{"$f":"IF('Segregation Density Profile_3'!$B$4=\"\",\"\",'Segregation Density Profile_3'!$B$4)","v":"SEGREGATION PROFILE_3"},{"$f":"IF('Segregation Density Profile_3'!$B$25=\"\",\"\",'Segregation Density Profile_3'!$B$25)","v":"LOCATION"},{"$f":"IF('Segregation Density Profile_3'!$B$27=\"\",\"\",'Segregation Density Profile_3'!$B$27)","v":"0'"},{"$f":"IF('Segregation Density Profile_3'!$C$25=\"\",\"\",'Segregation Density Profile_3'!$C$25)","v":"DENSITY READINGS"},{"$f":"IF('Segregation Density Profile_3'!$E$26=\"\",\"\",'Segregation Density Profile_3'!$E$26)","v":3}]
[154,{"$f":"IF('Segregation Density Profile_3'!$F$27=\"\",\"\",'Segregation Density Profile_3'!$F$27)","v":""},{"$f":"IF('Segregation Density Profile_3'!$B$5=\"\",\"\",'Segregation Density Profile_3'!$B$5)","v":"TEX-207-F, PART V"},{"$f":"IF('Segregation Density Profile_3'!$B$4=\"\",\"\",'Segregation Density Profile_3'!$B$4)","v":"SEGREGATION PROFILE_3"},{"$f":"IF('Segregation Density Profile_3'!$B$25=\"\",\"\",'Segregation Density Profile_3'!$B$25)","v":"LOCATION"},{"$f":"IF('Segregation Density Profile_3'!$B$27=\"\",\"\",'Segregation Density Profile_3'!$B$27)","v":"0'"},{"$f":"IF('Segregation Density Profile_3'!$C$25=\"\",\"\",'Segregation Density Profile_3'!$C$25)","v":"DENSITY READINGS"},{"$f":"IF('Segregation Density Profile_3'!$F$26=\"\",\"\",'Segregation Density Profile_3'!$F$26)","v":4}]
[155,{"$f":"IF('Segregation Density Profile_3'!$G$27=\"\",\"\",'Segregation Density Profile_3'!$G$27)","v":""},{"$f":"IF('Segregation Density Profile_3'!$B$5=\"\",\"\",'Segregation Density Profile_3'!$B$5)","v":"TEX-207-F, PART V"},{"$f":"IF('Segregation Density Profile_3'!$B$4=\"\",\"\",'Segregation Density Profile_3'!$B$4)","v":"SEGREGATION PROFILE_3"},{"$f":"IF('Segregation Density Profile_3'!$B$25=\"\",\"\",'Segregation Density Profile_3'!$B$25)","v":"LOCATION"},{"$f":"IF('Segregation Density Profile_3'!$B$27=\"\",\"\",'Segregation Density Profile_3'!$B$27)","v":"0'"},{"$f":"IF('Segregation Density Profile_3'!$C$25=\"\",\"\",'Segregation Density Profile_3'!$C$25)","v":"DENSITY READINGS"},{"$f":"IF('Segregation Density Profile_3'!$G$26=\"\",\"\",'Segregation Density Profile_3'!$G$26)","v":5}]
[156,{"$f":"IF('Segregation Density Profile_3'!$H$27=\"\",\"\",'Segregation Density Profile_3'!$H$27)","v":""},{"$f":"IF('Segregation Density Profile_3'!$B$5=\"\",\"\",'Segregation Density Profile_3'!$B$5)","v":"TEX-207-F, PART V"},{"$f":"IF('Segregation Density Profile_3'!$B$4=\"\",\"\",'Segregation Density Profile_3'!$B$4)","v":"SEGREGATION PROFILE_3"},{"$f":"IF('Segregation Density Profile_3'!$B$25=\"\",\"\",'Segregation Density Profile_3'!$B$25)","v":"LOCATION"},{"$f":"IF('Segregation Density Profile_3'!$B$27=\"\",\"\",'Segregation Density Profile_3'!$B$27)","v":"0'"},{"$f":"IF('Segregation Density Profile_3'!$H$25=\"\",\"\",'Segregation Density Profile_3'!$H$25)","v":"AVERAGE"}]
[157,{"$f":"IF('Segregation Density Profile_3'!$C$28=\"\",\"\",'Segregation Density Profile_3'!$C$28)","v":""},{"$f":"IF('Segregation Density Profile_3'!$B$5=\"\",\"\",'Segregation Density Profile_3'!$B$5)","v":"TEX-207-F, PART V"},{"$f":"IF('Segregation Density Profile_3'!$B$4=\"\",\"\",'Segregation Density Profile_3'!$B$4)","v":"SEGREGATION PROFILE_3"},{"$f":"IF('Segregation Density Profile_3'!$B$25=\"\",\"\",'Segregation Density Profile_3'!$B$25)","v":"LOCATION"},{"$f":"IF('Segregation Density Profile_3'!$B$28=\"\",\"\",'Segregation Density Profile_3'!$B$28)","v":"5'"},{"$f":"IF('Segregation Density Profile_3'!$C$25=\"\",\"\",'Segregation Density Profile_3'!$C$25)","v":"DENSITY READINGS"},{"$f":"IF('Segregation Density Profile_3'!$C$26=\"\",\"\",'Segregation Density Profile_3'!$C$26)","v":1}]
[158,{"$f":"IF('Segregation Density Profile_3'!$D$28=\"\",\"\",'Segregation Density Profile_3'!$D$28)","v":""},{"$f":"IF('Segregation Density Profile_3'!$B$5=\"\",\"\",'Segregation Density Profile_3'!$B$5)","v":"TEX-207-F, PART V"},{"$f":"IF('Segregation Density Profile_3'!$B$4=\"\",\"\",'Segregation Density Profile_3'!$B$4)","v":"SEGREGATION PROFILE_3"},{"$f":"IF('Segregation Density Profile_3'!$B$25=\"\",\"\",'Segregation Density Profile_3'!$B$25)","v":"LOCATION"},{"$f":"IF('Segregation Density Profile_3'!$B$28=\"\",\"\",'Segregation Density Profile_3'!$B$28)","v":"5'"},{"$f":"IF('Segregation Density Profile_3'!$C$25=\"\",\"\",'Segregation Density Profile_3'!$C$25)","v":"DENSITY READINGS"},{"$f":"IF('Segregation Density Profile_3'!$D$26=\"\",\"\",'Segregation Density Profile_3'!$D$26)","v":2}]
[159,{"$f":"IF('Segregation Density Profile_3'!$E$28=\"\",\"\",'Segregation Density Profile_3'!$E$28)","v":""},{"$f":"IF('Segregation Density Profile_3'!$B$5=\"\",\"\",'Segregation Density Profile_3'!$B$5)","v":"TEX-207-F, PART V"},{"$f":"IF('Segregation Density Profile_3'!$B$4=\"\",\"\",'Segregation Density Profile_3'!$B$4)","v":"SEGREGATION PROFILE_3"},{"$f":"IF('Segregation Density Profile_3'!$B$25=\"\",\"\",'Segregation Density Profile_3'!$B$25)","v":"LOCATION"},{"$f":"IF('Segregation Density Profile_3'!$B$28=\"\",\"\",'Segregation Density Profile_3'!$B$28)","v":"5'"},{"$f":"IF('Segregation Density Profile_3'!$C$25=\"\",\"\",'Segregation Density Profile_3'!$C$25)","v":"DENSITY READINGS"},{"$f":"IF('Segregation Density Profile_3'!$E$26=\"\",\"\",'Segregation Density Profile_3'!$E$26)","v":3}]
[160,{"$f":"IF('Segregation Density Profile_3'!$F$28=\"\",\"\",'Segregation Density Profile_3'!$F$28)","v":""},{"$f":"IF('Segregation Density Profile_3'!$B$5=\"\",\"\",'Segregation Density Profile_3'!$B$5)","v":"TEX-207-F, PART V"},{"$f":"IF('Segregation Density Profile_3'!$B$4=\"\",\"\",'Segregation Density Profile_3'!$B$4)","v":"SEGREGATION PROFILE_3"},{"$f":"IF('Segregation Density Profile_3'!$B$25=\"\",\"\",'Segregation Density Profile_3'!$B$25)","v":"LOCATION"},{"$f":"IF('Segregation Density Profile_3'!$B$28=\"\",\"\",'Segregation Density Profile_3'!$B$28)","v":"5'"},{"$f":"IF('Segregation Density Profile_3'!$C$25=\"\",\"\",'Segregation Density Profile_3'!$C$25)","v":"DENSITY READINGS"},{"$f":"IF('Segregation Density Profile_3'!$F$26=\"\",\"\",'Segregation Density Profile_3'!$F$26)","v":4}]
[161,{"$f":"IF('Segregation Density Profile_3'!$G$28=\"\",\"\",'Segregation Density Profile_3'!$G$28)","v":""},{"$f":"IF('Segregation Density Profile_3'!$B$5=\"\",\"\",'Segregation Density Profile_3'!$B$5)","v":"TEX-207-F, PART V"},{"$f":"IF('Segregation Density Profile_3'!$B$4=\"\",\"\",'Segregation Density Profile_3'!$B$4)","v":"SEGREGATION PROFILE_3"},{"$f":"IF('Segregation Density Profile_3'!$B$25=\"\",\"\",'Segregation Density Profile_3'!$B$25)","v":"LOCATION"},{"$f":"IF('Segregation Density Profile_3'!$B$28=\"\",\"\",'Segregation Density Profile_3'!$B$28)","v":"5'"},{"$f":"IF('Segregation Density Profile_3'!$C$25=\"\",\"\",'Segregation Density Profile_3'!$C$25)","v":"DENSITY READINGS"},{"$f":"IF('Segregation Density Profile_3'!$G$26=\"\",\"\",'Segregation Density Profile_3'!$G$26)","v":5}]
[162,{"$f":"IF('Segregation Density Profile_3'!$H$28=\"\",\"\",'Segregation Density Profile_3'!$H$28)","v":""},{"$f":"IF('Segregation Density Profile_3'!$B$5=\"\",\"\",'Segregation Density Profile_3'!$B$5)","v":"TEX-207-F, PART V"},{"$f":"IF('Segregation Density Profile_3'!$B$4=\"\",\"\",'Segregation Density Profile_3'!$B$4)","v":"SEGREGATION PROFILE_3"},{"$f":"IF('Segregation Density Profile_3'!$B$25=\"\",\"\",'Segregation Density Profile_3'!$B$25)","v":"LOCATION"},{"$f":"IF('Segregation Density Profile_3'!$B$28=\"\",\"\",'Segregation Density Profile_3'!$B$28)","v":"5'"},{"$f":"IF('Segregation Density Profile_3'!$H$25=\"\",\"\",'Segregation Density Profile_3'!$H$25)","v":"AVERAGE"}]
[163,{"$f":"IF('Segregation Density Profile_3'!$C$29=\"\",\"\",'Segregation Density Profile_3'!$C$29)","v":""},{"$f":"IF('Segregation Density Profile_3'!$B$5=\"\",\"\",'Segregation Density Profile_3'!$B$5)","v":"TEX-207-F, PART V"},{"$f":"IF('Segregation Density Profile_3'!$B$4=\"\",\"\",'Segregation Density Profile_3'!$B$4)","v":"SEGREGATION PROFILE_3"},{"$f":"IF('Segregation Density Profile_3'!$B$25=\"\",\"\",'Segregation Density Profile_3'!$B$25)","v":"LOCATION"},{"$f":"IF('Segregation Density Profile_3'!$B$29=\"\",\"\",'Segregation Density Profile_3'!$B$29)","v":"10'"},{"$f":"IF('Segregation Density Profile_3'!$C$25=\"\",\"\",'Segregation Density Profile_3'!$C$25)","v":"DENSITY READINGS"},{"$f":"IF('Segregation Density Profile_3'!$C$26=\"\",\"\",'Segregation Density Profile_3'!$C$26)","v":1}]
[164,{"$f":"IF('Segregation Density Profile_3'!$D$29=\"\",\"\",'Segregation Density Profile_3'!$D$29)","v":""},{"$f":"IF('Segregation Density Profile_3'!$B$5=\"\",\"\",'Segregation Density Profile_3'!$B$5)","v":"TEX-207-F, PART V"},{"$f":"IF('Segregation Density Profile_3'!$B$4=\"\",\"\",'Segregation Density Profile_3'!$B$4)","v":"SEGREGATION PROFILE_3"},{"$f":"IF('Segregation Density Profile_3'!$B$25=\"\",\"\",'Segregation Density Profile_3'!$B$25)","v":"LOCATION"},{"$f":"IF('Segregation Density Profile_3'!$B$29=\"\",\"\",'Segregation Density Profile_3'!$B$29)","v":"10'"},{"$f":"IF('Segregation Density Profile_3'!$C$25=\"\",\"\",'Segregation Density Profile_3'!$C$25)","v":"DENSITY READINGS"},{"$f":"IF('Segregation Density Profile_3'!$D$26=\"\",\"\",'Segregation Density Profile_3'!$D$26)","v":2}]
[165,{"$f":"IF('Segregation Density Profile_3'!$E$29=\"\",\"\",'Segregation Density Profile_3'!$E$29)","v":""},{"$f":"IF('Segregation Density Profile_3'!$B$5=\"\",\"\",'Segregation Density Profile_3'!$B$5)","v":"TEX-207-F, PART V"},{"$f":"IF('Segregation Density Profile_3'!$B$4=\"\",\"\",'Segregation Density Profile_3'!$B$4)","v":"SEGREGATION PROFILE_3"},{"$f":"IF('Segregation Density Profile_3'!$B$25=\"\",\"\",'Segregation Density Profile_3'!$B$25)","v":"LOCATION"},{"$f":"IF('Segregation Density Profile_3'!$B$29=\"\",\"\",'Segregation Density Profile_3'!$B$29)","v":"10'"},{"$f":"IF('Segregation Density Profile_3'!$C$25=\"\",\"\",'Segregation Density Profile_3'!$C$25)","v":"DENSITY READINGS"},{"$f":"IF('Segregation Density Profile_3'!$E$26=\"\",\"\",'Segregation Density Profile_3'!$E$26)","v":3}]
[166,{"$f":"IF('Segregation Density Profile_3'!$F$29=\"\",\"\",'Segregation Density Profile_3'!$F$29)","v":""},{"$f":"IF('Segregation Density Profile_3'!$B$5=\"\",\"\",'Segregation Density Profile_3'!$B$5)","v":"TEX-207-F, PART V"},{"$f":"IF('Segregation Density Profile_3'!$B$4=\"\",\"\",'Segregation Density Profile_3'!$B$4)","v":"SEGREGATION PROFILE_3"},{"$f":"IF('Segregation Density Profile_3'!$B$25=\"\",\"\",'Segregation Density Profile_3'!$B$25)","v":"LOCATION"},{"$f":"IF('Segregation Density Profile_3'!$B$29=\"\",\"\",'Segregation Density Profile_3'!$B$29)","v":"10'"},{"$f":"IF('Segregation Density Profile_3'!$C$25=\"\",\"\",'Segregation Density Profile_3'!$C$25)","v":"DENSITY READINGS"},{"$f":"IF('Segregation Density Profile_3'!$F$26=\"\",\"\",'Segregation Density Profile_3'!$F$26)","v":4}]
[167,{"$f":"IF('Segregation Density Profile_3'!$G$29=\"\",\"\",'Segregation Density Profile_3'!$G$29)","v":""},{"$f":"IF('Segregation Density Profile_3'!$B$5=\"\",\"\",'Segregation Density Profile_3'!$B$5)","v":"TEX-207-F, PART V"},{"$f":"IF('Segregation Density Profile_3'!$B$4=\"\",\"\",'Segregation Density Profile_3'!$B$4)","v":"SEGREGATION PROFILE_3"},{"$f":"IF('Segregation Density Profile_3'!$B$25=\"\",\"\",'Segregation Density Profile_3'!$B$25)","v":"LOCATION"},{"$f":"IF('Segregation Density Profile_3'!$B$29=\"\",\"\",'Segregation Density Profile_3'!$B$29)","v":"10'"},{"$f":"IF('Segregation Density Profile_3'!$C$25=\"\",\"\",'Segregation Density Profile_3'!$C$25)","v":"DENSITY READINGS"},{"$f":"IF('Segregation Density Profile_3'!$G$26=\"\",\"\",'Segregation Density Profile_3'!$G$26)","v":5}]
[168,{"$f":"IF('Segregation Density Profile_3'!$H$29=\"\",\"\",'Segregation Density Profile_3'!$H$29)","v":""},{"$f":"IF('Segregation Density Profile_3'!$B$5=\"\",\"\",'Segregation Density Profile_3'!$B$5)","v":"TEX-207-F, PART V"},{"$f":"IF('Segregation Density Profile_3'!$B$4=\"\",\"\",'Segregation Density Profile_3'!$B$4)","v":"SEGREGATION PROFILE_3"},{"$f":"IF('Segregation Density Profile_3'!$B$25=\"\",\"\",'Segregation Density Profile_3'!$B$25)","v":"LOCATION"},{"$f":"IF('Segregation Density Profile_3'!$B$29=\"\",\"\",'Segregation Density Profile_3'!$B$29)","v":"10'"},{"$f":"IF('Segregation Density Profile_3'!$H$25=\"\",\"\",'Segregation Density Profile_3'!$H$25)","v":"AVERAGE"}]
[169,{"$f":"IF('Segregation Density Profile_3'!$C$30=\"\",\"\",'Segregation Density Profile_3'!$C$30)","v":""},{"$f":"IF('Segregation Density Profile_3'!$B$5=\"\",\"\",'Segregation Density Profile_3'!$B$5)","v":"TEX-207-F, PART V"},{"$f":"IF('Segregation Density Profile_3'!$B$4=\"\",\"\",'Segregation Density Profile_3'!$B$4)","v":"SEGREGATION PROFILE_3"},{"$f":"IF('Segregation Density Profile_3'!$B$25=\"\",\"\",'Segregation Density Profile_3'!$B$25)","v":"LOCATION"},{"$f":"IF('Segregation Density Profile_3'!$B$30=\"\",\"\",'Segregation Density Profile_3'!$B$30)","v":"15'"},{"$f":"IF('Segregation Density Profile_3'!$C$25=\"\",\"\",'Segregation Density Profile_3'!$C$25)","v":"DENSITY READINGS"},{"$f":"IF('Segregation Density Profile_3'!$C$26=\"\",\"\",'Segregation Density Profile_3'!$C$26)","v":1}]
[170,{"$f":"IF('Segregation Density Profile_3'!$D$30=\"\",\"\",'Segregation Density Profile_3'!$D$30)","v":""},{"$f":"IF('Segregation Density Profile_3'!$B$5=\"\",\"\",'Segregation Density Profile_3'!$B$5)","v":"TEX-207-F, PART V"},{"$f":"IF('Segregation Density Profile_3'!$B$4=\"\",\"\",'Segregation Density Profile_3'!$B$4)","v":"SEGREGATION PROFILE_3"},{"$f":"IF('Segregation Density Profile_3'!$B$25=\"\",\"\",'Segregation Density Profile_3'!$B$25)","v":"LOCATION"},{"$f":"IF('Segregation Density Profile_3'!$B$30=\"\",\"\",'Segregation Density Profile_3'!$B$30)","v":"15'"},{"$f":"IF('Segregation Density Profile_3'!$C$25=\"\",\"\",'Segregation Density Profile_3'!$C$25)","v":"DENSITY READINGS"},{"$f":"IF('Segregation Density Profile_3'!$D$26=\"\",\"\",'Segregation Density Profile_3'!$D$26)","v":2}]
[171,{"$f":"IF('Segregation Density Profile_3'!$E$30=\"\",\"\",'Segregation Density Profile_3'!$E$30)","v":""},{"$f":"IF('Segregation Density Profile_3'!$B$5=\"\",\"\",'Segregation Density Profile_3'!$B$5)","v":"TEX-207-F, PART V"},{"$f":"IF('Segregation Density Profile_3'!$B$4=\"\",\"\",'Segregation Density Profile_3'!$B$4)","v":"SEGREGATION PROFILE_3"},{"$f":"IF('Segregation Density Profile_3'!$B$25=\"\",\"\",'Segregation Density Profile_3'!$B$25)","v":"LOCATION"},{"$f":"IF('Segregation Density Profile_3'!$B$30=\"\",\"\",'Segregation Density Profile_3'!$B$30)","v":"15'"},{"$f":"IF('Segregation Density Profile_3'!$C$25=\"\",\"\",'Segregation Density Profile_3'!$C$25)","v":"DENSITY READINGS"},{"$f":"IF('Segregation Density Profile_3'!$E$26=\"\",\"\",'Segregation Density Profile_3'!$E$26)","v":3}]
[172,{"$f":"IF('Segregation Density Profile_3'!$F$30=\"\",\"\",'Segregation Density Profile_3'!$F$30)","v":""},{"$f":"IF('Segregation Density Profile_3'!$B$5=\"\",\"\",'Segregation Density Profile_3'!$B$5)","v":"TEX-207-F, PART V"},{"$f":"IF('Segregation Density Profile_3'!$B$4=\"\",\"\",'Segregation Density Profile_3'!$B$4)","v":"SEGREGATION PROFILE_3"},{"$f":"IF('Segregation Density Profile_3'!$B$25=\"\",\"\",'Segregation Density Profile_3'!$B$25)","v":"LOCATION"},{"$f":"IF('Segregation Density Profile_3'!$B$30=\"\",\"\",'Segregation Density Profile_3'!$B$30)","v":"15'"},{"$f":"IF('Segregation Density Profile_3'!$C$25=\"\",\"\",'Segregation Density Profile_3'!$C$25)","v":"DENSITY READINGS"},{"$f":"IF('Segregation Density Profile_3'!$F$26=\"\",\"\",'Segregation Density Profile_3'!$F$26)","v":4}]
[173,{"$f":"IF('Segregation Density Profile_3'!$G$30=\"\",\"\",'Segregation Density Profile_3'!$G$30)","v":""},{"$f":"IF('Segregation Density Profile_3'!$B$5=\"\",\"\",'Segregation Density Profile_3'!$B$5)","v":"TEX-207-F, PART V"},{"$f":"IF('Segregation Density Profile_3'!$B$4=\"\",\"\",'Segregation Density Profile_3'!$B$4)","v":"SEGREGATION PROFILE_3"},{"$f":"IF('Segregation Density Profile_3'!$B$25=\"\",\"\",'Segregation Density Profile_3'!$B$25)","v":"LOCATION"},{"$f":"IF('Segregation Density Profile_3'!$B$30=\"\",\"\",'Segregation Density Profile_3'!$B$30)","v":"15'"},{"$f":"IF('Segregation Density Profile_3'!$C$25=\"\",\"\",'Segregation Density Profile_3'!$C$25)","v":"DENSITY READINGS"},{"$f":"IF('Segregation Density Profile_3'!$G$26=\"\",\"\",'Segregation Density Profile_3'!$G$26)","v":5}]
[174,{"$f":"IF('Segregation Density Profile_3'!$H$30=\"\",\"\",'Segregation Density Profile_3'!$H$30)","v":""},{"$f":"IF('Segregation Density Profile_3'!$B$5=\"\",\"\",'Segregation Density Profile_3'!$B$5)","v":"TEX-207-F, PART V"},{"$f":"IF('Segregation Density Profile_3'!$B$4=\"\",\"\",'Segregation Density Profile_3'!$B$4)","v":"SEGREGATION PROFILE_3"},{"$f":"IF('Segregation Density Profile_3'!$B$25=\"\",\"\",'Segregation Density Profile_3'!$B$25)","v":"LOCATION"},{"$f":"IF('Segregation Density Profile_3'!$B$30=\"\",\"\",'Segregation Density Profile_3'!$B$30)","v":"15'"},{"$f":"IF('Segregation Density Profile_3'!$H$25=\"\",\"\",'Segregation Density Profile_3'!$H$25)","v":"AVERAGE"}]
[175,{"$f":"IF('Segregation Density Profile_3'!$C$31=\"\",\"\",'Segregation Density Profile_3'!$C$31)","v":""},{"$f":"IF('Segregation Density Profile_3'!$B$5=\"\",\"\",'Segregation Density Profile_3'!$B$5)","v":"TEX-207-F, PART V"},{"$f":"IF('Segregation Density Profile_3'!$B$4=\"\",\"\",'Segregation Density Profile_3'!$B$4)","v":"SEGREGATION PROFILE_3"},{"$f":"IF('Segregation Density Profile_3'!$B$25=\"\",\"\",'Segregation Density Profile_3'!$B$25)","v":"LOCATION"},{"$f":"IF('Segregation Density Profile_3'!$B$31=\"\",\"\",'Segregation Density Profile_3'!$B$31)","v":"20'"},{"$f":"IF('Segregation Density Profile_3'!$C$25=\"\",\"\",'Segregation Density Profile_3'!$C$25)","v":"DENSITY READINGS"},{"$f":"IF('Segregation Density Profile_3'!$C$26=\"\",\"\",'Segregation Density Profile_3'!$C$26)","v":1}]
[176,{"$f":"IF('Segregation Density Profile_3'!$D$31=\"\",\"\",'Segregation Density Profile_3'!$D$31)","v":""},{"$f":"IF('Segregation Density Profile_3'!$B$5=\"\",\"\",'Segregation Density Profile_3'!$B$5)","v":"TEX-207-F, PART V"},{"$f":"IF('Segregation Density Profile_3'!$B$4=\"\",\"\",'Segregation Density Profile_3'!$B$4)","v":"SEGREGATION PROFILE_3"},{"$f":"IF('Segregation Density Profile_3'!$B$25=\"\",\"\",'Segregation Density Profile_3'!$B$25)","v":"LOCATION"},{"$f":"IF('Segregation Density Profile_3'!$B$31=\"\",\"\",'Segregation Density Profile_3'!$B$31)","v":"20'"},{"$f":"IF('Segregation Density Profile_3'!$C$25=\"\",\"\",'Segregation Density Profile_3'!$C$25)","v":"DENSITY READINGS"},{"$f":"IF('Segregation Density Profile_3'!$D$26=\"\",\"\",'Segregation Density Profile_3'!$D$26)","v":2}]
[177,{"$f":"IF('Segregation Density Profile_3'!$E$31=\"\",\"\",'Segregation Density Profile_3'!$E$31)","v":""},{"$f":"IF('Segregation Density Profile_3'!$B$5=\"\",\"\",'Segregation Density Profile_3'!$B$5)","v":"TEX-207-F, PART V"},{"$f":"IF('Segregation Density Profile_3'!$B$4=\"\",\"\",'Segregation Density Profile_3'!$B$4)","v":"SEGREGATION PROFILE_3"},{"$f":"IF('Segregation Density Profile_3'!$B$25=\"\",\"\",'Segregation Density Profile_3'!$B$25)","v":"LOCATION"},{"$f":"IF('Segregation Density Profile_3'!$B$31=\"\",\"\",'Segregation Density Profile_3'!$B$31)","v":"20'"},{"$f":"IF('Segregation Density Profile_3'!$C$25=\"\",\"\",'Segregation Density Profile_3'!$C$25)","v":"DENSITY READINGS"},{"$f":"IF('Segregation Density Profile_3'!$E$26=\"\",\"\",'Segregation Density Profile_3'!$E$26)","v":3}]
[178,{"$f":"IF('Segregation Density Profile_3'!$F$31=\"\",\"\",'Segregation Density Profile_3'!$F$31)","v":""},{"$f":"IF('Segregation Density Profile_3'!$B$5=\"\",\"\",'Segregation Density Profile_3'!$B$5)","v":"TEX-207-F, PART V"},{"$f":"IF('Segregation Density Profile_3'!$B$4=\"\",\"\",'Segregation Density Profile_3'!$B$4)","v":"SEGREGATION PROFILE_3"},{"$f":"IF('Segregation Density Profile_3'!$B$25=\"\",\"\",'Segregation Density Profile_3'!$B$25)","v":"LOCATION"},{"$f":"IF('Segregation Density Profile_3'!$B$31=\"\",\"\",'Segregation Density Profile_3'!$B$31)","v":"20'"},{"$f":"IF('Segregation Density Profile_3'!$C$25=\"\",\"\",'Segregation Density Profile_3'!$C$25)","v":"DENSITY READINGS"},{"$f":"IF('Segregation Density Profile_3'!$F$26=\"\",\"\",'Segregation Density Profile_3'!$F$26)","v":4}]
[179,{"$f":"IF('Segregation Density Profile_3'!$G$31=\"\",\"\",'Segregation Density Profile_3'!$G$31)","v":""},{"$f":"IF('Segregation Density Profile_3'!$B$5=\"\",\"\",'Segregation Density Profile_3'!$B$5)","v":"TEX-207-F, PART V"},{"$f":"IF('Segregation Density Profile_3'!$B$4=\"\",\"\",'Segregation Density Profile_3'!$B$4)","v":"SEGREGATION PROFILE_3"},{"$f":"IF('Segregation Density Profile_3'!$B$25=\"\",\"\",'Segregation Density Profile_3'!$B$25)","v":"LOCATION"},{"$f":"IF('Segregation Density Profile_3'!$B$31=\"\",\"\",'Segregation Density Profile_3'!$B$31)","v":"20'"},{"$f":"IF('Segregation Density Profile_3'!$C$25=\"\",\"\",'Segregation Density Profile_3'!$C$25)","v":"DENSITY READINGS"},{"$f":"IF('Segregation Density Profile_3'!$G$26=\"\",\"\",'Segregation Density Profile_3'!$G$26)","v":5}]
[180,{"$f":"IF('Segregation Density Profile_3'!$H$31=\"\",\"\",'Segregation Density Profile_3'!$H$31)","v":""},{"$f":"IF('Segregation Density Profile_3'!$B$5=\"\",\"\",'Segregation Density Profile_3'!$B$5)","v":"TEX-207-F, PART V"},{"$f":"IF('Segregation Density Profile_3'!$B$4=\"\",\"\",'Segregation Density Profile_3'!$B$4)","v":"SEGREGATION PROFILE_3"},{"$f":"IF('Segregation Density Profile_3'!$B$25=\"\",\"\",'Segregation Density Profile_3'!$B$25)","v":"LOCATION"},{"$f":"IF('Segregation Density Profile_3'!$B$31=\"\",\"\",'Segregation Density Profile_3'!$B$31)","v":"20'"},{"$f":"IF('Segregation Density Profile_3'!$H$25=\"\",\"\",'Segregation Density Profile_3'!$H$25)","v":"AVERAGE"}]
[181,{"$f":"IF('Segregation Density Profile_3'!$C$32=\"\",\"\",'Segregation Density Profile_3'!$C$32)","v":""},{"$f":"IF('Segregation Density Profile_3'!$B$5=\"\",\"\",'Segregation Density Profile_3'!$B$5)","v":"TEX-207-F, PART V"},{"$f":"IF('Segregation Density Profile_3'!$B$4=\"\",\"\",'Segregation Density Profile_3'!$B$4)","v":"SEGREGATION PROFILE_3"},{"$f":"IF('Segregation Density Profile_3'!$B$25=\"\",\"\",'Segregation Density Profile_3'!$B$25)","v":"LOCATION"},{"$f":"IF('Segregation Density Profile_3'!$B$32=\"\",\"\",'Segregation Density Profile_3'!$B$32)","v":"25'"},{"$f":"IF('Segregation Density Profile_3'!$C$25=\"\",\"\",'Segregation Density Profile_3'!$C$25)","v":"DENSITY READINGS"},{"$f":"IF('Segregation Density Profile_3'!$C$26=\"\",\"\",'Segregation Density Profile_3'!$C$26)","v":1}]
[182,{"$f":"IF('Segregation Density Profile_3'!$D$32=\"\",\"\",'Segregation Density Profile_3'!$D$32)","v":""},{"$f":"IF('Segregation Density Profile_3'!$B$5=\"\",\"\",'Segregation Density Profile_3'!$B$5)","v":"TEX-207-F, PART V"},{"$f":"IF('Segregation Density Profile_3'!$B$4=\"\",\"\",'Segregation Density Profile_3'!$B$4)","v":"SEGREGATION PROFILE_3"},{"$f":"IF('Segregation Density Profile_3'!$B$25=\"\",\"\",'Segregation Density Profile_3'!$B$25)","v":"LOCATION"},{"$f":"IF('Segregation Density Profile_3'!$B$32=\"\",\"\",'Segregation Density Profile_3'!$B$32)","v":"25'"},{"$f":"IF('Segregation Density Profile_3'!$C$25=\"\",\"\",'Segregation Density Profile_3'!$C$25)","v":"DENSITY READINGS"},{"$f":"IF('Segregation Density Profile_3'!$D$26=\"\",\"\",'Segregation Density Profile_3'!$D$26)","v":2}]
[183,{"$f":"IF('Segregation Density Profile_3'!$E$32=\"\",\"\",'Segregation Density Profile_3'!$E$32)","v":""},{"$f":"IF('Segregation Density Profile_3'!$B$5=\"\",\"\",'Segregation Density Profile_3'!$B$5)","v":"TEX-207-F, PART V"},{"$f":"IF('Segregation Density Profile_3'!$B$4=\"\",\"\",'Segregation Density Profile_3'!$B$4)","v":"SEGREGATION PROFILE_3"},{"$f":"IF('Segregation Density Profile_3'!$B$25=\"\",\"\",'Segregation Density Profile_3'!$B$25)","v":"LOCATION"},{"$f":"IF('Segregation Density Profile_3'!$B$32=\"\",\"\",'Segregation Density Profile_3'!$B$32)","v":"25'"},{"$f":"IF('Segregation Density Profile_3'!$C$25=\"\",\"\",'Segregation Density Profile_3'!$C$25)","v":"DENSITY READINGS"},{"$f":"IF('Segregation Density Profile_3'!$E$26=\"\",\"\",'Segregation Density Profile_3'!$E$26)","v":3}]
[184,{"$f":"IF('Segregation Density Profile_3'!$F$32=\"\",\"\",'Segregation Density Profile_3'!$F$32)","v":""},{"$f":"IF('Segregation Density Profile_3'!$B$5=\"\",\"\",'Segregation Density Profile_3'!$B$5)","v":"TEX-207-F, PART V"},{"$f":"IF('Segregation Density Profile_3'!$B$4=\"\",\"\",'Segregation Density Profile_3'!$B$4)","v":"SEGREGATION PROFILE_3"},{"$f":"IF('Segregation Density Profile_3'!$B$25=\"\",\"\",'Segregation Density Profile_3'!$B$25)","v":"LOCATION"},{"$f":"IF('Segregation Density Profile_3'!$B$32=\"\",\"\",'Segregation Density Profile_3'!$B$32)","v":"25'"},{"$f":"IF('Segregation Density Profile_3'!$C$25=\"\",\"\",'Segregation Density Profile_3'!$C$25)","v":"DENSITY READINGS"},{"$f":"IF('Segregation Density Profile_3'!$F$26=\"\",\"\",'Segregation Density Profile_3'!$F$26)","v":4}]
[185,{"$f":"IF('Segregation Density Profile_3'!$G$32=\"\",\"\",'Segregation Density Profile_3'!$G$32)","v":""},{"$f":"IF('Segregation Density Profile_3'!$B$5=\"\",\"\",'Segregation Density Profile_3'!$B$5)","v":"TEX-207-F, PART V"},{"$f":"IF('Segregation Density Profile_3'!$B$4=\"\",\"\",'Segregation Density Profile_3'!$B$4)","v":"SEGREGATION PROFILE_3"},{"$f":"IF('Segregation Density Profile_3'!$B$25=\"\",\"\",'Segregation Density Profile_3'!$B$25)","v":"LOCATION"},{"$f":"IF('Segregation Density Profile_3'!$B$32=\"\",\"\",'Segregation Density Profile_3'!$B$32)","v":"25'"},{"$f":"IF('Segregation Density Profile_3'!$C$25=\"\",\"\",'Segregation Density Profile_3'!$C$25)","v":"DENSITY READINGS"},{"$f":"IF('Segregation Density Profile_3'!$G$26=\"\",\"\",'Segregation Density Profile_3'!$G$26)","v":5}]
[186,{"$f":"IF('Segregation Density Profile_3'!$H$32=\"\",\"\",'Segregation Density Profile_3'!$H$32)","v":""},{"$f":"IF('Segregation Density Profile_3'!$B$5=\"\",\"\",'Segregation Density Profile_3'!$B$5)","v":"TEX-207-F, PART V"},{"$f":"IF('Segregation Density Profile_3'!$B$4=\"\",\"\",'Segregation Density Profile_3'!$B$4)","v":"SEGREGATION PROFILE_3"},{"$f":"IF('Segregation Density Profile_3'!$B$25=\"\",\"\",'Segregation Density Profile_3'!$B$25)","v":"LOCATION"},{"$f":"IF('Segregation Density Profile_3'!$B$32=\"\",\"\",'Segregation Density Profile_3'!$B$32)","v":"25'"},{"$f":"IF('Segregation Density Profile_3'!$H$25=\"\",\"\",'Segregation Density Profile_3'!$H$25)","v":"AVERAGE"}]
[187,{"$f":"IF('Segregation Density Profile_3'!$C$33=\"\",\"\",'Segregation Density Profile_3'!$C$33)","v":""},{"$f":"IF('Segregation Density Profile_3'!$B$5=\"\",\"\",'Segregation Density Profile_3'!$B$5)","v":"TEX-207-F, PART V"},{"$f":"IF('Segregation Density Profile_3'!$B$4=\"\",\"\",'Segregation Density Profile_3'!$B$4)","v":"SEGREGATION PROFILE_3"},{"$f":"IF('Segregation Density Profile_3'!$B$25=\"\",\"\",'Segregation Density Profile_3'!$B$25)","v":"LOCATION"},{"$f":"IF('Segregation Density Profile_3'!$B$33=\"\",\"\",'Segregation Density Profile_3'!$B$33)","v":"30'"},{"$f":"IF('Segregation Density Profile_3'!$C$25=\"\",\"\",'Segregation Density Profile_3'!$C$25)","v":"DENSITY READINGS"},{"$f":"IF('Segregation Density Profile_3'!$C$26=\"\",\"\",'Segregation Density Profile_3'!$C$26)","v":1}]
[188,{"$f":"IF('Segregation Density Profile_3'!$D$33=\"\",\"\",'Segregation Density Profile_3'!$D$33)","v":""},{"$f":"IF('Segregation Density Profile_3'!$B$5=\"\",\"\",'Segregation Density Profile_3'!$B$5)","v":"TEX-207-F, PART V"},{"$f":"IF('Segregation Density Profile_3'!$B$4=\"\",\"\",'Segregation Density Profile_3'!$B$4)","v":"SEGREGATION PROFILE_3"},{"$f":"IF('Segregation Density Profile_3'!$B$25=\"\",\"\",'Segregation Density Profile_3'!$B$25)","v":"LOCATION"},{"$f":"IF('Segregation Density Profile_3'!$B$33=\"\",\"\",'Segregation Density Profile_3'!$B$33)","v":"30'"},{"$f":"IF('Segregation Density Profile_3'!$C$25=\"\",\"\",'Segregation Density Profile_3'!$C$25)","v":"DENSITY READINGS"},{"$f":"IF('Segregation Density Profile_3'!$D$26=\"\",\"\",'Segregation Density Profile_3'!$D$26)","v":2}]
[189,{"$f":"IF('Segregation Density Profile_3'!$E$33=\"\",\"\",'Segregation Density Profile_3'!$E$33)","v":""},{"$f":"IF('Segregation Density Profile_3'!$B$5=\"\",\"\",'Segregation Density Profile_3'!$B$5)","v":"TEX-207-F, PART V"},{"$f":"IF('Segregation Density Profile_3'!$B$4=\"\",\"\",'Segregation Density Profile_3'!$B$4)","v":"SEGREGATION PROFILE_3"},{"$f":"IF('Segregation Density Profile_3'!$B$25=\"\",\"\",'Segregation Density Profile_3'!$B$25)","v":"LOCATION"},{"$f":"IF('Segregation Density Profile_3'!$B$33=\"\",\"\",'Segregation Density Profile_3'!$B$33)","v":"30'"},{"$f":"IF('Segregation Density Profile_3'!$C$25=\"\",\"\",'Segregation Density Profile_3'!$C$25)","v":"DENSITY READINGS"},{"$f":"IF('Segregation Density Profile_3'!$E$26=\"\",\"\",'Segregation Density Profile_3'!$E$26)","v":3}]
[190,{"$f":"IF('Segregation Density Profile_3'!$F$33=\"\",\"\",'Segregation Density Profile_3'!$F$33)","v":""},{"$f":"IF('Segregation Density Profile_3'!$B$5=\"\",\"\",'Segregation Density Profile_3'!$B$5)","v":"TEX-207-F, PART V"},{"$f":"IF('Segregation Density Profile_3'!$B$4=\"\",\"\",'Segregation Density Profile_3'!$B$4)","v":"SEGREGATION PROFILE_3"},{"$f":"IF('Segregation Density Profile_3'!$B$25=\"\",\"\",'Segregation Density Profile_3'!$B$25)","v":"LOCATION"},{"$f":"IF('Segregation Density Profile_3'!$B$33=\"\",\"\",'Segregation Density Profile_3'!$B$33)","v":"30'"},{"$f":"IF('Segregation Density Profile_3'!$C$25=\"\",\"\",'Segregation Density Profile_3'!$C$25)","v":"DENSITY READINGS"},{"$f":"IF('Segregation Density Profile_3'!$F$26=\"\",\"\",'Segregation Density Profile_3'!$F$26)","v":4}]
[191,{"$f":"IF('Segregation Density Profile_3'!$G$33=\"\",\"\",'Segregation Density Profile_3'!$G$33)","v":""},{"$f":"IF('Segregation Density Profile_3'!$B$5=\"\",\"\",'Segregation Density Profile_3'!$B$5)","v":"TEX-207-F, PART V"},{"$f":"IF('Segregation Density Profile_3'!$B$4=\"\",\"\",'Segregation Density Profile_3'!$B$4)","v":"SEGREGATION PROFILE_3"},{"$f":"IF('Segregation Density Profile_3'!$B$25=\"\",\"\",'Segregation Density Profile_3'!$B$25)","v":"LOCATION"},{"$f":"IF('Segregation Density Profile_3'!$B$33=\"\",\"\",'Segregation Density Profile_3'!$B$33)","v":"30'"},{"$f":"IF('Segregation Density Profile_3'!$C$25=\"\",\"\",'Segregation Density Profile_3'!$C$25)","v":"DENSITY READINGS"},{"$f":"IF('Segregation Density Profile_3'!$G$26=\"\",\"\",'Segregation Density Profile_3'!$G$26)","v":5}]
[192,{"$f":"IF('Segregation Density Profile_3'!$H$33=\"\",\"\",'Segregation Density Profile_3'!$H$33)","v":""},{"$f":"IF('Segregation Density Profile_3'!$B$5=\"\",\"\",'Segregation Density Profile_3'!$B$5)","v":"TEX-207-F, PART V"},{"$f":"IF('Segregation Density Profile_3'!$B$4=\"\",\"\",'Segregation Density Profile_3'!$B$4)","v":"SEGREGATION PROFILE_3"},{"$f":"IF('Segregation Density Profile_3'!$B$25=\"\",\"\",'Segregation Density Profile_3'!$B$25)","v":"LOCATION"},{"$f":"IF('Segregation Density Profile_3'!$B$33=\"\",\"\",'Segregation Density Profile_3'!$B$33)","v":"30'"},{"$f":"IF('Segregation Density Profile_3'!$H$25=\"\",\"\",'Segregation Density Profile_3'!$H$25)","v":"AVERAGE"}]
[193,{"$f":"IF('Segregation Density Profile_3'!$C$34=\"\",\"\",'Segregation Density Profile_3'!$C$34)","v":""},{"$f":"IF('Segregation Density Profile_3'!$B$5=\"\",\"\",'Segregation Density Profile_3'!$B$5)","v":"TEX-207-F, PART V"},{"$f":"IF('Segregation Density Profile_3'!$B$4=\"\",\"\",'Segregation Density Profile_3'!$B$4)","v":"SEGREGATION PROFILE_3"},{"$f":"IF('Segregation Density Profile_3'!$B$25=\"\",\"\",'Segregation Density Profile_3'!$B$25)","v":"LOCATION"},{"$f":"IF('Segregation Density Profile_3'!$B$34=\"\",\"\",'Segregation Density Profile_3'!$B$34)","v":"35'"},{"$f":"IF('Segregation Density Profile_3'!$C$25=\"\",\"\",'Segregation Density Profile_3'!$C$25)","v":"DENSITY READINGS"},{"$f":"IF('Segregation Density Profile_3'!$C$26=\"\",\"\",'Segregation Density Profile_3'!$C$26)","v":1}]
[194,{"$f":"IF('Segregation Density Profile_3'!$D$34=\"\",\"\",'Segregation Density Profile_3'!$D$34)","v":""},{"$f":"IF('Segregation Density Profile_3'!$B$5=\"\",\"\",'Segregation Density Profile_3'!$B$5)","v":"TEX-207-F, PART V"},{"$f":"IF('Segregation Density Profile_3'!$B$4=\"\",\"\",'Segregation Density Profile_3'!$B$4)","v":"SEGREGATION PROFILE_3"},{"$f":"IF('Segregation Density Profile_3'!$B$25=\"\",\"\",'Segregation Density Profile_3'!$B$25)","v":"LOCATION"},{"$f":"IF('Segregation Density Profile_3'!$B$34=\"\",\"\",'Segregation Density Profile_3'!$B$34)","v":"35'"},{"$f":"IF('Segregation Density Profile_3'!$C$25=\"\",\"\",'Segregation Density Profile_3'!$C$25)","v":"DENSITY READINGS"},{"$f":"IF('Segregation Density Profile_3'!$D$26=\"\",\"\",'Segregation Density Profile_3'!$D$26)","v":2}]
[195,{"$f":"IF('Segregation Density Profile_3'!$E$34=\"\",\"\",'Segregation Density Profile_3'!$E$34)","v":""},{"$f":"IF('Segregation Density Profile_3'!$B$5=\"\",\"\",'Segregation Density Profile_3'!$B$5)","v":"TEX-207-F, PART V"},{"$f":"IF('Segregation Density Profile_3'!$B$4=\"\",\"\",'Segregation Density Profile_3'!$B$4)","v":"SEGREGATION PROFILE_3"},{"$f":"IF('Segregation Density Profile_3'!$B$25=\"\",\"\",'Segregation Density Profile_3'!$B$25)","v":"LOCATION"},{"$f":"IF('Segregation Density Profile_3'!$B$34=\"\",\"\",'Segregation Density Profile_3'!$B$34)","v":"35'"},{"$f":"IF('Segregation Density Profile_3'!$C$25=\"\",\"\",'Segregation Density Profile_3'!$C$25)","v":"DENSITY READINGS"},{"$f":"IF('Segregation Density Profile_3'!$E$26=\"\",\"\",'Segregation Density Profile_3'!$E$26)","v":3}]
[196,{"$f":"IF('Segregation Density Profile_3'!$F$34=\"\",\"\",'Segregation Density Profile_3'!$F$34)","v":""},{"$f":"IF('Segregation Density Profile_3'!$B$5=\"\",\"\",'Segregation Density Profile_3'!$B$5)","v":"TEX-207-F, PART V"},{"$f":"IF('Segregation Density Profile_3'!$B$4=\"\",\"\",'Segregation Density Profile_3'!$B$4)","v":"SEGREGATION PROFILE_3"},{"$f":"IF('Segregation Density Profile_3'!$B$25=\"\",\"\",'Segregation Density Profile_3'!$B$25)","v":"LOCATION"},{"$f":"IF('Segregation Density Profile_3'!$B$34=\"\",\"\",'Segregation Density Profile_3'!$B$34)","v":"35'"},{"$f":"IF('Segregation Density Profile_3'!$C$25=\"\",\"\",'Segregation Density Profile_3'!$C$25)","v":"DENSITY READINGS"},{"$f":"IF('Segregation Density Profile_3'!$F$26=\"\",\"\",'Segregation Density Profile_3'!$F$26)","v":4}]
[197,{"$f":"IF('Segregation Density Profile_3'!$G$34=\"\",\"\",'Segregation Density Profile_3'!$G$34)","v":""},{"$f":"IF('Segregation Density Profile_3'!$B$5=\"\",\"\",'Segregation Density Profile_3'!$B$5)","v":"TEX-207-F, PART V"},{"$f":"IF('Segregation Density Profile_3'!$B$4=\"\",\"\",'Segregation Density Profile_3'!$B$4)","v":"SEGREGATION PROFILE_3"},{"$f":"IF('Segregation Density Profile_3'!$B$25=\"\",\"\",'Segregation Density Profile_3'!$B$25)","v":"LOCATION"},{"$f":"IF('Segregation Density Profile_3'!$B$34=\"\",\"\",'Segregation Density Profile_3'!$B$34)","v":"35'"},{"$f":"IF('Segregation Density Profile_3'!$C$25=\"\",\"\",'Segregation Density Profile_3'!$C$25)","v":"DENSITY READINGS"},{"$f":"IF('Segregation Density Profile_3'!$G$26=\"\",\"\",'Segregation Density Profile_3'!$G$26)","v":5}]
[198,{"$f":"IF('Segregation Density Profile_3'!$H$34=\"\",\"\",'Segregation Density Profile_3'!$H$34)","v":""},{"$f":"IF('Segregation Density Profile_3'!$B$5=\"\",\"\",'Segregation Density Profile_3'!$B$5)","v":"TEX-207-F, PART V"},{"$f":"IF('Segregation Density Profile_3'!$B$4=\"\",\"\",'Segregation Density Profile_3'!$B$4)","v":"SEGREGATION PROFILE_3"},{"$f":"IF('Segregation Density Profile_3'!$B$25=\"\",\"\",'Segregation Density Profile_3'!$B$25)","v":"LOCATION"},{"$f":"IF('Segregation Density Profile_3'!$B$34=\"\",\"\",'Segregation Density Profile_3'!$B$34)","v":"35'"},{"$f":"IF('Segregation Density Profile_3'!$H$25=\"\",\"\",'Segregation Density Profile_3'!$H$25)","v":"AVERAGE"}]
[199,{"$f":"IF('Segregation Density Profile_3'!$C$35=\"\",\"\",'Segregation Density Profile_3'!$C$35)","v":""},{"$f":"IF('Segregation Density Profile_3'!$B$5=\"\",\"\",'Segregation Density Profile_3'!$B$5)","v":"TEX-207-F, PART V"},{"$f":"IF('Segregation Density Profile_3'!$B$4=\"\",\"\",'Segregation Density Profile_3'!$B$4)","v":"SEGREGATION PROFILE_3"},{"$f":"IF('Segregation Density Profile_3'!$B$25=\"\",\"\",'Segregation Density Profile_3'!$B$25)","v":"LOCATION"},{"$f":"IF('Segregation Density Profile_3'!$B$35=\"\",\"\",'Segregation Density Profile_3'!$B$35)","v":"40'"},{"$f":"IF('Segregation Density Profile_3'!$C$25=\"\",\"\",'Segregation Density Profile_3'!$C$25)","v":"DENSITY READINGS"},{"$f":"IF('Segregation Density Profile_3'!$C$26=\"\",\"\",'Segregation Density Profile_3'!$C$26)","v":1}]
[200,{"$f":"IF('Segregation Density Profile_3'!$D$35=\"\",\"\",'Segregation Density Profile_3'!$D$35)","v":""},{"$f":"IF('Segregation Density Profile_3'!$B$5=\"\",\"\",'Segregation Density Profile_3'!$B$5)","v":"TEX-207-F, PART V"},{"$f":"IF('Segregation Density Profile_3'!$B$4=\"\",\"\",'Segregation Density Profile_3'!$B$4)","v":"SEGREGATION PROFILE_3"},{"$f":"IF('Segregation Density Profile_3'!$B$25=\"\",\"\",'Segregation Density Profile_3'!$B$25)","v":"LOCATION"},{"$f":"IF('Segregation Density Profile_3'!$B$35=\"\",\"\",'Segregation Density Profile_3'!$B$35)","v":"40'"},{"$f":"IF('Segregation Density Profile_3'!$C$25=\"\",\"\",'Segregation Density Profile_3'!$C$25)","v":"DENSITY READINGS"},{"$f":"IF('Segregation Density Profile_3'!$D$26=\"\",\"\",'Segregation Density Profile_3'!$D$26)","v":2}]
[201,{"$f":"IF('Segregation Density Profile_3'!$E$35=\"\",\"\",'Segregation Density Profile_3'!$E$35)","v":""},{"$f":"IF('Segregation Density Profile_3'!$B$5=\"\",\"\",'Segregation Density Profile_3'!$B$5)","v":"TEX-207-F, PART V"},{"$f":"IF('Segregation Density Profile_3'!$B$4=\"\",\"\",'Segregation Density Profile_3'!$B$4)","v":"SEGREGATION PROFILE_3"},{"$f":"IF('Segregation Density Profile_3'!$B$25=\"\",\"\",'Segregation Density Profile_3'!$B$25)","v":"LOCATION"},{"$f":"IF('Segregation Density Profile_3'!$B$35=\"\",\"\",'Segregation Density Profile_3'!$B$35)","v":"40'"},{"$f":"IF('Segregation Density Profile_3'!$C$25=\"\",\"\",'Segregation Density Profile_3'!$C$25)","v":"DENSITY READINGS"},{"$f":"IF('Segregation Density Profile_3'!$E$26=\"\",\"\",'Segregation Density Profile_3'!$E$26)","v":3}]
[202,{"$f":"IF('Segregation Density Profile_3'!$F$35=\"\",\"\",'Segregation Density Profile_3'!$F$35)","v":""},{"$f":"IF('Segregation Density Profile_3'!$B$5=\"\",\"\",'Segregation Density Profile_3'!$B$5)","v":"TEX-207-F, PART V"},{"$f":"IF('Segregation Density Profile_3'!$B$4=\"\",\"\",'Segregation Density Profile_3'!$B$4)","v":"SEGREGATION PROFILE_3"},{"$f":"IF('Segregation Density Profile_3'!$B$25=\"\",\"\",'Segregation Density Profile_3'!$B$25)","v":"LOCATION"},{"$f":"IF('Segregation Density Profile_3'!$B$35=\"\",\"\",'Segregation Density Profile_3'!$B$35)","v":"40'"},{"$f":"IF('Segregation Density Profile_3'!$C$25=\"\",\"\",'Segregation Density Profile_3'!$C$25)","v":"DENSITY READINGS"},{"$f":"IF('Segregation Density Profile_3'!$F$26=\"\",\"\",'Segregation Density Profile_3'!$F$26)","v":4}]
[203,{"$f":"IF('Segregation Density Profile_3'!$G$35=\"\",\"\",'Segregation Density Profile_3'!$G$35)","v":""},{"$f":"IF('Segregation Density Profile_3'!$B$5=\"\",\"\",'Segregation Density Profile_3'!$B$5)","v":"TEX-207-F, PART V"},{"$f":"IF('Segregation Density Profile_3'!$B$4=\"\",\"\",'Segregation Density Profile_3'!$B$4)","v":"SEGREGATION PROFILE_3"},{"$f":"IF('Segregation Density Profile_3'!$B$25=\"\",\"\",'Segregation Density Profile_3'!$B$25)","v":"LOCATION"},{"$f":"IF('Segregation Density Profile_3'!$B$35=\"\",\"\",'Segregation Density Profile_3'!$B$35)","v":"40'"},{"$f":"IF('Segregation Density Profile_3'!$C$25=\"\",\"\",'Segregation Density Profile_3'!$C$25)","v":"DENSITY READINGS"},{"$f":"IF('Segregation Density Profile_3'!$G$26=\"\",\"\",'Segregation Density Profile_3'!$G$26)","v":5}]
[204,{"$f":"IF('Segregation Density Profile_3'!$H$35=\"\",\"\",'Segregation Density Profile_3'!$H$35)","v":""},{"$f":"IF('Segregation Density Profile_3'!$B$5=\"\",\"\",'Segregation Density Profile_3'!$B$5)","v":"TEX-207-F, PART V"},{"$f":"IF('Segregation Density Profile_3'!$B$4=\"\",\"\",'Segregation Density Profile_3'!$B$4)","v":"SEGREGATION PROFILE_3"},{"$f":"IF('Segregation Density Profile_3'!$B$25=\"\",\"\",'Segregation Density Profile_3'!$B$25)","v":"LOCATION"},{"$f":"IF('Segregation Density Profile_3'!$B$35=\"\",\"\",'Segregation Density Profile_3'!$B$35)","v":"40'"},{"$f":"IF('Segregation Density Profile_3'!$H$25=\"\",\"\",'Segregation Density Profile_3'!$H$25)","v":"AVERAGE"}]
[205,{"$f":"IF('Segregation Density Profile_3'!$C$36=\"\",\"\",'Segregation Density Profile_3'!$C$36)","v":""},{"$f":"IF('Segregation Density Profile_3'!$B$5=\"\",\"\",'Segregation Density Profile_3'!$B$5)","v":"TEX-207-F, PART V"},{"$f":"IF('Segregation Density Profile_3'!$B$4=\"\",\"\",'Segregation Density Profile_3'!$B$4)","v":"SEGREGATION PROFILE_3"},{"$f":"IF('Segregation Density Profile_3'!$B$25=\"\",\"\",'Segregation Density Profile_3'!$B$25)","v":"LOCATION"},{"$f":"IF('Segregation Density Profile_3'!$B$36=\"\",\"\",'Segregation Density Profile_3'!$B$36)","v":"45'"},{"$f":"IF('Segregation Density Profile_3'!$C$25=\"\",\"\",'Segregation Density Profile_3'!$C$25)","v":"DENSITY READINGS"},{"$f":"IF('Segregation Density Profile_3'!$C$26=\"\",\"\",'Segregation Density Profile_3'!$C$26)","v":1}]
[206,{"$f":"IF('Segregation Density Profile_3'!$D$36=\"\",\"\",'Segregation Density Profile_3'!$D$36)","v":""},{"$f":"IF('Segregation Density Profile_3'!$B$5=\"\",\"\",'Segregation Density Profile_3'!$B$5)","v":"TEX-207-F, PART V"},{"$f":"IF('Segregation Density Profile_3'!$B$4=\"\",\"\",'Segregation Density Profile_3'!$B$4)","v":"SEGREGATION PROFILE_3"},{"$f":"IF('Segregation Density Profile_3'!$B$25=\"\",\"\",'Segregation Density Profile_3'!$B$25)","v":"LOCATION"},{"$f":"IF('Segregation Density Profile_3'!$B$36=\"\",\"\",'Segregation Density Profile_3'!$B$36)","v":"45'"},{"$f":"IF('Segregation Density Profile_3'!$C$25=\"\",\"\",'Segregation Density Profile_3'!$C$25)","v":"DENSITY READINGS"},{"$f":"IF('Segregation Density Profile_3'!$D$26=\"\",\"\",'Segregation Density Profile_3'!$D$26)","v":2}]
[207,{"$f":"IF('Segregation Density Profile_3'!$E$36=\"\",\"\",'Segregation Density Profile_3'!$E$36)","v":""},{"$f":"IF('Segregation Density Profile_3'!$B$5=\"\",\"\",'Segregation Density Profile_3'!$B$5)","v":"TEX-207-F, PART V"},{"$f":"IF('Segregation Density Profile_3'!$B$4=\"\",\"\",'Segregation Density Profile_3'!$B$4)","v":"SEGREGATION PROFILE_3"},{"$f":"IF('Segregation Density Profile_3'!$B$25=\"\",\"\",'Segregation Density Profile_3'!$B$25)","v":"LOCATION"},{"$f":"IF('Segregation Density Profile_3'!$B$36=\"\",\"\",'Segregation Density Profile_3'!$B$36)","v":"45'"},{"$f":"IF('Segregation Density Profile_3'!$C$25=\"\",\"\",'Segregation Density Profile_3'!$C$25)","v":"DENSITY READINGS"},{"$f":"IF('Segregation Density Profile_3'!$E$26=\"\",\"\",'Segregation Density Profile_3'!$E$26)","v":3}]
[208,{"$f":"IF('Segregation Density Profile_3'!$F$36=\"\",\"\",'Segregation Density Profile_3'!$F$36)","v":""},{"$f":"IF('Segregation Density Profile_3'!$B$5=\"\",\"\",'Segregation Density Profile_3'!$B$5)","v":"TEX-207-F, PART V"},{"$f":"IF('Segregation Density Profile_3'!$B$4=\"\",\"\",'Segregation Density Profile_3'!$B$4)","v":"SEGREGATION PROFILE_3"},{"$f":"IF('Segregation Density Profile_3'!$B$25=\"\",\"\",'Segregation Density Profile_3'!$B$25)","v":"LOCATION"},{"$f":"IF('Segregation Density Profile_3'!$B$36=\"\",\"\",'Segregation Density Profile_3'!$B$36)","v":"45'"},{"$f":"IF('Segregation Density Profile_3'!$C$25=\"\",\"\",'Segregation Density Profile_3'!$C$25)","v":"DENSITY READINGS"},{"$f":"IF('Segregation Density Profile_3'!$F$26=\"\",\"\",'Segregation Density Profile_3'!$F$26)","v":4}]
[209,{"$f":"IF('Segregation Density Profile_3'!$G$36=\"\",\"\",'Segregation Density Profile_3'!$G$36)","v":""},{"$f":"IF('Segregation Density Profile_3'!$B$5=\"\",\"\",'Segregation Density Profile_3'!$B$5)","v":"TEX-207-F, PART V"},{"$f":"IF('Segregation Density Profile_3'!$B$4=\"\",\"\",'Segregation Density Profile_3'!$B$4)","v":"SEGREGATION PROFILE_3"},{"$f":"IF('Segregation Density Profile_3'!$B$25=\"\",\"\",'Segregation Density Profile_3'!$B$25)","v":"LOCATION"},{"$f":"IF('Segregation Density Profile_3'!$B$36=\"\",\"\",'Segregation Density Profile_3'!$B$36)","v":"45'"},{"$f":"IF('Segregation Density Profile_3'!$C$25=\"\",\"\",'Segregation Density Profile_3'!$C$25)","v":"DENSITY READINGS"},{"$f":"IF('Segregation Density Profile_3'!$G$26=\"\",\"\",'Segregation Density Profile_3'!$G$26)","v":5}]
[210,{"$f":"IF('Segregation Density Profile_3'!$H$36=\"\",\"\",'Segregation Density Profile_3'!$H$36)","v":""},{"$f":"IF('Segregation Density Profile_3'!$B$5=\"\",\"\",'Segregation Density Profile_3'!$B$5)","v":"TEX-207-F, PART V"},{"$f":"IF('Segregation Density Profile_3'!$B$4=\"\",\"\",'Segregation Density Profile_3'!$B$4)","v":"SEGREGATION PROFILE_3"},{"$f":"IF('Segregation Density Profile_3'!$B$25=\"\",\"\",'Segregation Density Profile_3'!$B$25)","v":"LOCATION"},{"$f":"IF('Segregation Density Profile_3'!$B$36=\"\",\"\",'Segregation Density Profile_3'!$B$36)","v":"45'"},{"$f":"IF('Segregation Density Profile_3'!$H$25=\"\",\"\",'Segregation Density Profile_3'!$H$25)","v":"AVERAGE"}]
[211,{"$f":"IF('Segregation Density Profile_3'!$C$37=\"\",\"\",'Segregation Density Profile_3'!$C$37)","v":""},{"$f":"IF('Segregation Density Profile_3'!$B$5=\"\",\"\",'Segregation Density Profile_3'!$B$5)","v":"TEX-207-F, PART V"},{"$f":"IF('Segregation Density Profile_3'!$B$4=\"\",\"\",'Segregation Density Profile_3'!$B$4)","v":"SEGREGATION PROFILE_3"},{"$f":"IF('Segregation Density Profile_3'!$B$25=\"\",\"\",'Segregation Density Profile_3'!$B$25)","v":"LOCATION"},{"$f":"IF('Segregation Density Profile_3'!$B$37=\"\",\"\",'Segregation Density Profile_3'!$B$37)","v":"50'"},{"$f":"IF('Segregation Density Profile_3'!$C$25=\"\",\"\",'Segregation Density Profile_3'!$C$25)","v":"DENSITY READINGS"},{"$f":"IF('Segregation Density Profile_3'!$C$26=\"\",\"\",'Segregation Density Profile_3'!$C$26)","v":1}]
[212,{"$f":"IF('Segregation Density Profile_3'!$D$37=\"\",\"\",'Segregation Density Profile_3'!$D$37)","v":""},{"$f":"IF('Segregation Density Profile_3'!$B$5=\"\",\"\",'Segregation Density Profile_3'!$B$5)","v":"TEX-207-F, PART V"},{"$f":"IF('Segregation Density Profile_3'!$B$4=\"\",\"\",'Segregation Density Profile_3'!$B$4)","v":"SEGREGATION PROFILE_3"},{"$f":"IF('Segregation Density Profile_3'!$B$25=\"\",\"\",'Segregation Density Profile_3'!$B$25)","v":"LOCATION"},{"$f":"IF('Segregation Density Profile_3'!$B$37=\"\",\"\",'Segregation Density Profile_3'!$B$37)","v":"50'"},{"$f":"IF('Segregation Density Profile_3'!$C$25=\"\",\"\",'Segregation Density Profile_3'!$C$25)","v":"DENSITY READINGS"},{"$f":"IF('Segregation Density Profile_3'!$D$26=\"\",\"\",'Segregation Density Profile_3'!$D$26)","v":2}]
[213,{"$f":"IF('Segregation Density Profile_3'!$E$37=\"\",\"\",'Segregation Density Profile_3'!$E$37)","v":""},{"$f":"IF('Segregation Density Profile_3'!$B$5=\"\",\"\",'Segregation Density Profile_3'!$B$5)","v":"TEX-207-F, PART V"},{"$f":"IF('Segregation Density Profile_3'!$B$4=\"\",\"\",'Segregation Density Profile_3'!$B$4)","v":"SEGREGATION PROFILE_3"},{"$f":"IF('Segregation Density Profile_3'!$B$25=\"\",\"\",'Segregation Density Profile_3'!$B$25)","v":"LOCATION"},{"$f":"IF('Segregation Density Profile_3'!$B$37=\"\",\"\",'Segregation Density Profile_3'!$B$37)","v":"50'"},{"$f":"IF('Segregation Density Profile_3'!$C$25=\"\",\"\",'Segregation Density Profile_3'!$C$25)","v":"DENSITY READINGS"},{"$f":"IF('Segregation Density Profile_3'!$E$26=\"\",\"\",'Segregation Density Profile_3'!$E$26)","v":3}]
[214,{"$f":"IF('Segregation Density Profile_3'!$F$37=\"\",\"\",'Segregation Density Profile_3'!$F$37)","v":""},{"$f":"IF('Segregation Density Profile_3'!$B$5=\"\",\"\",'Segregation Density Profile_3'!$B$5)","v":"TEX-207-F, PART V"},{"$f":"IF('Segregation Density Profile_3'!$B$4=\"\",\"\",'Segregation Density Profile_3'!$B$4)","v":"SEGREGATION PROFILE_3"},{"$f":"IF('Segregation Density Profile_3'!$B$25=\"\",\"\",'Segregation Density Profile_3'!$B$25)","v":"LOCATION"},{"$f":"IF('Segregation Density Profile_3'!$B$37=\"\",\"\",'Segregation Density Profile_3'!$B$37)","v":"50'"},{"$f":"IF('Segregation Density Profile_3'!$C$25=\"\",\"\",'Segregation Density Profile_3'!$C$25)","v":"DENSITY READINGS"},{"$f":"IF('Segregation Density Profile_3'!$F$26=\"\",\"\",'Segregation Density Profile_3'!$F$26)","v":4}]
[215,{"$f":"IF('Segregation Density Profile_3'!$G$37=\"\",\"\",'Segregation Density Profile_3'!$G$37)","v":""},{"$f":"IF('Segregation Density Profile_3'!$B$5=\"\",\"\",'Segregation Density Profile_3'!$B$5)","v":"TEX-207-F, PART V"},{"$f":"IF('Segregation Density Profile_3'!$B$4=\"\",\"\",'Segregation Density Profile_3'!$B$4)","v":"SEGREGATION PROFILE_3"},{"$f":"IF('Segregation Density Profile_3'!$B$25=\"\",\"\",'Segregation Density Profile_3'!$B$25)","v":"LOCATION"},{"$f":"IF('Segregation Density Profile_3'!$B$37=\"\",\"\",'Segregation Density Profile_3'!$B$37)","v":"50'"},{"$f":"IF('Segregation Density Profile_3'!$C$25=\"\",\"\",'Segregation Density Profile_3'!$C$25)","v":"DENSITY READINGS"},{"$f":"IF('Segregation Density Profile_3'!$G$26=\"\",\"\",'Segregation Density Profile_3'!$G$26)","v":5}]
[216,{"$f":"IF('Segregation Density Profile_3'!$H$37=\"\",\"\",'Segregation Density Profile_3'!$H$37)","v":""},{"$f":"IF('Segregation Density Profile_3'!$B$5=\"\",\"\",'Segregation Density Profile_3'!$B$5)","v":"TEX-207-F, PART V"},{"$f":"IF('Segregation Density Profile_3'!$B$4=\"\",\"\",'Segregation Density Profile_3'!$B$4)","v":"SEGREGATION PROFILE_3"},{"$f":"IF('Segregation Density Profile_3'!$B$25=\"\",\"\",'Segregation Density Profile_3'!$B$25)","v":"LOCATION"},{"$f":"IF('Segregation Density Profile_3'!$B$37=\"\",\"\",'Segregation Density Profile_3'!$B$37)","v":"50'"},{"$f":"IF('Segregation Density Profile_3'!$H$25=\"\",\"\",'Segregation Density Profile_3'!$H$25)","v":"AVERAGE"}]
[217,{"$f":"IF('Segregation Density Profile_3'!$D$39=\"\",\"\",'Segregation Density Profile_3'!$D$39)","v":""},{"$f":"IF('Segregation Density Profile_3'!$B$5=\"\",\"\",'Segregation Density Profile_3'!$B$5)","v":"TEX-207-F, PART V"},{"$f":"IF('Segregation Density Profile_3'!$B$4=\"\",\"\",'Segregation Density Profile_3'!$B$4)","v":"SEGREGATION PROFILE_3"},{"$f":"IF('Segregation Density Profile_3'!$B$39=\"\",\"\",'Segregation Density Profile_3'!$B$39)","v":"AVERAGE READING:"}]
[218,{"$f":"IF('Segregation Density Profile_3'!$D$40=\"\",\"\",'Segregation Density Profile_3'!$D$40)","v":""},{"$f":"IF('Segregation Density Profile_3'!$B$5=\"\",\"\",'Segregation Density Profile_3'!$B$5)","v":"TEX-207-F, PART V"},{"$f":"IF('Segregation Density Profile_3'!$B$4=\"\",\"\",'Segregation Density Profile_3'!$B$4)","v":"SEGREGATION PROFILE_3"},{"$f":"IF('Segregation Density Profile_3'!$B$40=\"\",\"\",'Segregation Density Profile_3'!$B$40)","v":"HIGH READING:"}]
[219,{"$f":"IF('Segregation Density Profile_3'!$D$41=\"\",\"\",'Segregation Density Profile_3'!$D$41)","v":""},{"$f":"IF('Segregation Density Profile_3'!$B$5=\"\",\"\",'Segregation Density Profile_3'!$B$5)","v":"TEX-207-F, PART V"},{"$f":"IF('Segregation Density Profile_3'!$B$4=\"\",\"\",'Segregation Density Profile_3'!$B$4)","v":"SEGREGATION PROFILE_3"},{"$f":"IF('Segregation Density Profile_3'!$B$41=\"\",\"\",'Segregation Density Profile_3'!$B$41)","v":"LOW READING:"}]
[220,{"$f":"IF('Segregation Density Profile_3'!$D$44=\"\",\"\",'Segregation Density Profile_3'!$D$44)","v":""},{"$f":"IF('Segregation Density Profile_3'!$B$5=\"\",\"\",'Segregation Density Profile_3'!$B$5)","v":"TEX-207-F, PART V"},{"$f":"IF('Segregation Density Profile_3'!$B$4=\"\",\"\",'Segregation Density Profile_3'!$B$4)","v":"SEGREGATION PROFILE_3"},{"$f":"IF('Segregation Density Profile_3'!$B$43=\"\",\"\",'Segregation Density Profile_3'!$B$43)","v":"MAX ALLOWABLE DENSITY RANGE"},{"$f":"IF('Segregation Density Profile_3'!$B$44=\"\",\"\",'Segregation Density Profile_3'!$B$44)","v":"HIGHEST TO LOWEST:"}]
[221,{"$f":"IF('Segregation Density Profile_3'!$D$45=\"\",\"\",'Segregation Density Profile_3'!$D$45)","v":""},{"$f":"IF('Segregation Density Profile_3'!$B$5=\"\",\"\",'Segregation Density Profile_3'!$B$5)","v":"TEX-207-F, PART V"},{"$f":"IF('Segregation Density Profile_3'!$B$4=\"\",\"\",'Segregation Density Profile_3'!$B$4)","v":"SEGREGATION PROFILE_3"},{"$f":"IF('Segregation Density Profile_3'!$B$43=\"\",\"\",'Segregation Density Profile_3'!$B$43)","v":"MAX ALLOWABLE DENSITY RANGE"},{"$f":"IF('Segregation Density Profile_3'!$B$45=\"\",\"\",'Segregation Density Profile_3'!$B$45)","v":"AVERAGE TO LOWEST:"}]
[222,{"$f":"IF('Segregation Density Profile_4'!$C$27=\"\",\"\",'Segregation Density Profile_4'!$C$27)","v":""},{"$f":"IF('Segregation Density Profile_3'!$B$5=\"\",\"\",'Segregation Density Profile_3'!$B$5)","v":"TEX-207-F, PART V"},{"$f":"IF('Segregation Density Profile_4'!$B$4=\"\",\"\",'Segregation Density Profile_4'!$B$4)","v":"SEGREGATION PROFILE_4"},{"$f":"IF('Segregation Density Profile_4'!$B$25=\"\",\"\",'Segregation Density Profile_4'!$B$25)","v":"LOCATION"},{"$f":"IF('Segregation Density Profile_4'!$B$27=\"\",\"\",'Segregation Density Profile_4'!$B$27)","v":"0'"},{"$f":"IF('Segregation Density Profile_4'!$C$25=\"\",\"\",'Segregation Density Profile_4'!$C$25)","v":"DENSITY READINGS"},{"$f":"IF('Segregation Density Profile_4'!$C$26=\"\",\"\",'Segregation Density Profile_4'!$C$26)","v":1}]
[223,{"$f":"IF('Segregation Density Profile_4'!$D$27=\"\",\"\",'Segregation Density Profile_4'!$D$27)","v":""},{"$f":"IF('Segregation Density Profile_3'!$B$5=\"\",\"\",'Segregation Density Profile_3'!$B$5)","v":"TEX-207-F, PART V"},{"$f":"IF('Segregation Density Profile_4'!$B$4=\"\",\"\",'Segregation Density Profile_4'!$B$4)","v":"SEGREGATION PROFILE_4"},{"$f":"IF('Segregation Density Profile_4'!$B$25=\"\",\"\",'Segregation Density Profile_4'!$B$25)","v":"LOCATION"},{"$f":"IF('Segregation Density Profile_4'!$B$27=\"\",\"\",'Segregation Density Profile_4'!$B$27)","v":"0'"},{"$f":"IF('Segregation Density Profile_4'!$C$25=\"\",\"\",'Segregation Density Profile_4'!$C$25)","v":"DENSITY READINGS"},{"$f":"IF('Segregation Density Profile_4'!$D$26=\"\",\"\",'Segregation Density Profile_4'!$D$26)","v":2}]
[224,{"$f":"IF('Segregation Density Profile_4'!$E$27=\"\",\"\",'Segregation Density Profile_4'!$E$27)","v":""},{"$f":"IF('Segregation Density Profile_3'!$B$5=\"\",\"\",'Segregation Density Profile_3'!$B$5)","v":"TEX-207-F, PART V"},{"$f":"IF('Segregation Density Profile_4'!$B$4=\"\",\"\",'Segregation Density Profile_4'!$B$4)","v":"SEGREGATION PROFILE_4"},{"$f":"IF('Segregation Density Profile_4'!$B$25=\"\",\"\",'Segregation Density Profile_4'!$B$25)","v":"LOCATION"},{"$f":"IF('Segregation Density Profile_4'!$B$27=\"\",\"\",'Segregation Density Profile_4'!$B$27)","v":"0'"},{"$f":"IF('Segregation Density Profile_4'!$C$25=\"\",\"\",'Segregation Density Profile_4'!$C$25)","v":"DENSITY READINGS"},{"$f":"IF('Segregation Density Profile_4'!$E$26=\"\",\"\",'Segregation Density Profile_4'!$E$26)","v":3}]
[225,{"$f":"IF('Segregation Density Profile_4'!$F$27=\"\",\"\",'Segregation Density Profile_4'!$F$27)","v":""},{"$f":"IF('Segregation Density Profile_3'!$B$5=\"\",\"\",'Segregation Density Profile_3'!$B$5)","v":"TEX-207-F, PART V"},{"$f":"IF('Segregation Density Profile_4'!$B$4=\"\",\"\",'Segregation Density Profile_4'!$B$4)","v":"SEGREGATION PROFILE_4"},{"$f":"IF('Segregation Density Profile_4'!$B$25=\"\",\"\",'Segregation Density Profile_4'!$B$25)","v":"LOCATION"},{"$f":"IF('Segregation Density Profile_4'!$B$27=\"\",\"\",'Segregation Density Profile_4'!$B$27)","v":"0'"},{"$f":"IF('Segregation Density Profile_4'!$C$25=\"\",\"\",'Segregation Density Profile_4'!$C$25)","v":"DENSITY READINGS"},{"$f":"IF('Segregation Density Profile_4'!$F$26=\"\",\"\",'Segregation Density Profile_4'!$F$26)","v":4}]
[226,{"$f":"IF('Segregation Density Profile_4'!$G$27=\"\",\"\",'Segregation Density Profile_4'!$G$27)","v":""},{"$f":"IF('Segregation Density Profile_3'!$B$5=\"\",\"\",'Segregation Density Profile_3'!$B$5)","v":"TEX-207-F, PART V"},{"$f":"IF('Segregation Density Profile_4'!$B$4=\"\",\"\",'Segregation Density Profile_4'!$B$4)","v":"SEGREGATION PROFILE_4"},{"$f":"IF('Segregation Density Profile_4'!$B$25=\"\",\"\",'Segregation Density Profile_4'!$B$25)","v":"LOCATION"},{"$f":"IF('Segregation Density Profile_4'!$B$27=\"\",\"\",'Segregation Density Profile_4'!$B$27)","v":"0'"},{"$f":"IF('Segregation Density Profile_4'!$C$25=\"\",\"\",'Segregation Density Profile_4'!$C$25)","v":"DENSITY READINGS"},{"$f":"IF('Segregation Density Profile_4'!$G$26=\"\",\"\",'Segregation Density Profile_4'!$G$26)","v":5}]
[227,{"$f":"IF('Segregation Density Profile_4'!$H$27=\"\",\"\",'Segregation Density Profile_4'!$H$27)","v":""},{"$f":"IF('Segregation Density Profile_3'!$B$5=\"\",\"\",'Segregation Density Profile_3'!$B$5)","v":"TEX-207-F, PART V"},{"$f":"IF('Segregation Density Profile_4'!$B$4=\"\",\"\",'Segregation Density Profile_4'!$B$4)","v":"SEGREGATION PROFILE_4"},{"$f":"IF('Segregation Density Profile_4'!$B$25=\"\",\"\",'Segregation Density Profile_4'!$B$25)","v":"LOCATION"},{"$f":"IF('Segregation Density Profile_4'!$B$27=\"\",\"\",'Segregation Density Profile_4'!$B$27)","v":"0'"},{"$f":"IF('Segregation Density Profile_4'!$H$25=\"\",\"\",'Segregation Density Profile_4'!$H$25)","v":"AVERAGE"}]
[228,{"$f":"IF('Segregation Density Profile_4'!$C$28=\"\",\"\",'Segregation Density Profile_4'!$C$28)","v":""},{"$f":"IF('Segregation Density Profile_3'!$B$5=\"\",\"\",'Segregation Density Profile_3'!$B$5)","v":"TEX-207-F, PART V"},{"$f":"IF('Segregation Density Profile_4'!$B$4=\"\",\"\",'Segregation Density Profile_4'!$B$4)","v":"SEGREGATION PROFILE_4"},{"$f":"IF('Segregation Density Profile_4'!$B$25=\"\",\"\",'Segregation Density Profile_4'!$B$25)","v":"LOCATION"},{"$f":"IF('Segregation Density Profile_4'!$B$28=\"\",\"\",'Segregation Density Profile_4'!$B$28)","v":"5'"},{"$f":"IF('Segregation Density Profile_4'!$C$25=\"\",\"\",'Segregation Density Profile_4'!$C$25)","v":"DENSITY READINGS"},{"$f":"IF('Segregation Density Profile_4'!$C$26=\"\",\"\",'Segregation Density Profile_4'!$C$26)","v":1}]
[229,{"$f":"IF('Segregation Density Profile_4'!$D$28=\"\",\"\",'Segregation Density Profile_4'!$D$28)","v":""},{"$f":"IF('Segregation Density Profile_3'!$B$5=\"\",\"\",'Segregation Density Profile_3'!$B$5)","v":"TEX-207-F, PART V"},{"$f":"IF('Segregation Density Profile_4'!$B$4=\"\",\"\",'Segregation Density Profile_4'!$B$4)","v":"SEGREGATION PROFILE_4"},{"$f":"IF('Segregation Density Profile_4'!$B$25=\"\",\"\",'Segregation Density Profile_4'!$B$25)","v":"LOCATION"},{"$f":"IF('Segregation Density Profile_4'!$B$28=\"\",\"\",'Segregation Density Profile_4'!$B$28)","v":"5'"},{"$f":"IF('Segregation Density Profile_4'!$C$25=\"\",\"\",'Segregation Density Profile_4'!$C$25)","v":"DENSITY READINGS"},{"$f":"IF('Segregation Density Profile_4'!$D$26=\"\",\"\",'Segregation Density Profile_4'!$D$26)","v":2}]
[230,{"$f":"IF('Segregation Density Profile_4'!$E$28=\"\",\"\",'Segregation Density Profile_4'!$E$28)","v":""},{"$f":"IF('Segregation Density Profile_3'!$B$5=\"\",\"\",'Segregation Density Profile_3'!$B$5)","v":"TEX-207-F, PART V"},{"$f":"IF('Segregation Density Profile_4'!$B$4=\"\",\"\",'Segregation Density Profile_4'!$B$4)","v":"SEGREGATION PROFILE_4"},{"$f":"IF('Segregation Density Profile_4'!$B$25=\"\",\"\",'Segregation Density Profile_4'!$B$25)","v":"LOCATION"},{"$f":"IF('Segregation Density Profile_4'!$B$28=\"\",\"\",'Segregation Density Profile_4'!$B$28)","v":"5'"},{"$f":"IF('Segregation Density Profile_4'!$C$25=\"\",\"\",'Segregation Density Profile_4'!$C$25)","v":"DENSITY READINGS"},{"$f":"IF('Segregation Density Profile_4'!$E$26=\"\",\"\",'Segregation Density Profile_4'!$E$26)","v":3}]
[231,{"$f":"IF('Segregation Density Profile_4'!$F$28=\"\",\"\",'Segregation Density Profile_4'!$F$28)","v":""},{"$f":"IF('Segregation Density Profile_3'!$B$5=\"\",\"\",'Segregation Density Profile_3'!$B$5)","v":"TEX-207-F, PART V"},{"$f":"IF('Segregation Density Profile_4'!$B$4=\"\",\"\",'Segregation Density Profile_4'!$B$4)","v":"SEGREGATION PROFILE_4"},{"$f":"IF('Segregation Density Profile_4'!$B$25=\"\",\"\",'Segregation Density Profile_4'!$B$25)","v":"LOCATION"},{"$f":"IF('Segregation Density Profile_4'!$B$28=\"\",\"\",'Segregation Density Profile_4'!$B$28)","v":"5'"},{"$f":"IF('Segregation Density Profile_4'!$C$25=\"\",\"\",'Segregation Density Profile_4'!$C$25)","v":"DENSITY READINGS"},{"$f":"IF('Segregation Density Profile_4'!$F$26=\"\",\"\",'Segregation Density Profile_4'!$F$26)","v":4}]
[232,{"$f":"IF('Segregation Density Profile_4'!$G$28=\"\",\"\",'Segregation Density Profile_4'!$G$28)","v":""},{"$f":"IF('Segregation Density Profile_3'!$B$5=\"\",\"\",'Segregation Density Profile_3'!$B$5)","v":"TEX-207-F, PART V"},{"$f":"IF('Segregation Density Profile_4'!$B$4=\"\",\"\",'Segregation Density Profile_4'!$B$4)","v":"SEGREGATION PROFILE_4"},{"$f":"IF('Segregation Density Profile_4'!$B$25=\"\",\"\",'Segregation Density Profile_4'!$B$25)","v":"LOCATION"},{"$f":"IF('Segregation Density Profile_4'!$B$28=\"\",\"\",'Segregation Density Profile_4'!$B$28)","v":"5'"},{"$f":"IF('Segregation Density Profile_4'!$C$25=\"\",\"\",'Segregation Density Profile_4'!$C$25)","v":"DENSITY READINGS"},{"$f":"IF('Segregation Density Profile_4'!$G$26=\"\",\"\",'Segregation Density Profile_4'!$G$26)","v":5}]
[233,{"$f":"IF('Segregation Density Profile_4'!$H$28=\"\",\"\",'Segregation Density Profile_4'!$H$28)","v":""},{"$f":"IF('Segregation Density Profile_3'!$B$5=\"\",\"\",'Segregation Density Profile_3'!$B$5)","v":"TEX-207-F, PART V"},{"$f":"IF('Segregation Density Profile_4'!$B$4=\"\",\"\",'Segregation Density Profile_4'!$B$4)","v":"SEGREGATION PROFILE_4"},{"$f":"IF('Segregation Density Profile_4'!$B$25=\"\",\"\",'Segregation Density Profile_4'!$B$25)","v":"LOCATION"},{"$f":"IF('Segregation Density Profile_4'!$B$28=\"\",\"\",'Segregation Density Profile_4'!$B$28)","v":"5'"},{"$f":"IF('Segregation Density Profile_4'!$H$25=\"\",\"\",'Segregation Density Profile_4'!$H$25)","v":"AVERAGE"}]
[234,{"$f":"IF('Segregation Density Profile_4'!$C$29=\"\",\"\",'Segregation Density Profile_4'!$C$29)","v":""},{"$f":"IF('Segregation Density Profile_3'!$B$5=\"\",\"\",'Segregation Density Profile_3'!$B$5)","v":"TEX-207-F, PART V"},{"$f":"IF('Segregation Density Profile_4'!$B$4=\"\",\"\",'Segregation Density Profile_4'!$B$4)","v":"SEGREGATION PROFILE_4"},{"$f":"IF('Segregation Density Profile_4'!$B$25=\"\",\"\",'Segregation Density Profile_4'!$B$25)","v":"LOCATION"},{"$f":"IF('Segregation Density Profile_4'!$B$29=\"\",\"\",'Segregation Density Profile_4'!$B$29)","v":"10'"},{"$f":"IF('Segregation Density Profile_4'!$C$25=\"\",\"\",'Segregation Density Profile_4'!$C$25)","v":"DENSITY READINGS"},{"$f":"IF('Segregation Density Profile_4'!$C$26=\"\",\"\",'Segregation Density Profile_4'!$C$26)","v":1}]
[235,{"$f":"IF('Segregation Density Profile_4'!$D$29=\"\",\"\",'Segregation Density Profile_4'!$D$29)","v":""},{"$f":"IF('Segregation Density Profile_3'!$B$5=\"\",\"\",'Segregation Density Profile_3'!$B$5)","v":"TEX-207-F, PART V"},{"$f":"IF('Segregation Density Profile_4'!$B$4=\"\",\"\",'Segregation Density Profile_4'!$B$4)","v":"SEGREGATION PROFILE_4"},{"$f":"IF('Segregation Density Profile_4'!$B$25=\"\",\"\",'Segregation Density Profile_4'!$B$25)","v":"LOCATION"},{"$f":"IF('Segregation Density Profile_4'!$B$29=\"\",\"\",'Segregation Density Profile_4'!$B$29)","v":"10'"},{"$f":"IF('Segregation Density Profile_4'!$C$25=\"\",\"\",'Segregation Density Profile_4'!$C$25)","v":"DENSITY READINGS"},{"$f":"IF('Segregation Density Profile_4'!$D$26=\"\",\"\",'Segregation Density Profile_4'!$D$26)","v":2}]
[236,{"$f":"IF('Segregation Density Profile_4'!$E$29=\"\",\"\",'Segregation Density Profile_4'!$E$29)","v":""},{"$f":"IF('Segregation Density Profile_3'!$B$5=\"\",\"\",'Segregation Density Profile_3'!$B$5)","v":"TEX-207-F, PART V"},{"$f":"IF('Segregation Density Profile_4'!$B$4=\"\",\"\",'Segregation Density Profile_4'!$B$4)","v":"SEGREGATION PROFILE_4"},{"$f":"IF('Segregation Density Profile_4'!$B$25=\"\",\"\",'Segregation Density Profile_4'!$B$25)","v":"LOCATION"},{"$f":"IF('Segregation Density Profile_4'!$B$29=\"\",\"\",'Segregation Density Profile_4'!$B$29)","v":"10'"},{"$f":"IF('Segregation Density Profile_4'!$C$25=\"\",\"\",'Segregation Density Profile_4'!$C$25)","v":"DENSITY READINGS"},{"$f":"IF('Segregation Density Profile_4'!$E$26=\"\",\"\",'Segregation Density Profile_4'!$E$26)","v":3}]
[237,{"$f":"IF('Segregation Density Profile_4'!$F$29=\"\",\"\",'Segregation Density Profile_4'!$F$29)","v":""},{"$f":"IF('Segregation Density Profile_3'!$B$5=\"\",\"\",'Segregation Density Profile_3'!$B$5)","v":"TEX-207-F, PART V"},{"$f":"IF('Segregation Density Profile_4'!$B$4=\"\",\"\",'Segregation Density Profile_4'!$B$4)","v":"SEGREGATION PROFILE_4"},{"$f":"IF('Segregation Density Profile_4'!$B$25=\"\",\"\",'Segregation Density Profile_4'!$B$25)","v":"LOCATION"},{"$f":"IF('Segregation Density Profile_4'!$B$29=\"\",\"\",'Segregation Density Profile_4'!$B$29)","v":"10'"},{"$f":"IF('Segregation Density Profile_4'!$C$25=\"\",\"\",'Segregation Density Profile_4'!$C$25)","v":"DENSITY READINGS"},{"$f":"IF('Segregation Density Profile_4'!$F$26=\"\",\"\",'Segregation Density Profile_4'!$F$26)","v":4}]
[238,{"$f":"IF('Segregation Density Profile_4'!$G$29=\"\",\"\",'Segregation Density Profile_4'!$G$29)","v":""},{"$f":"IF('Segregation Density Profile_3'!$B$5=\"\",\"\",'Segregation Density Profile_3'!$B$5)","v":"TEX-207-F, PART V"},{"$f":"IF('Segregation Density Profile_4'!$B$4=\"\",\"\",'Segregation Density Profile_4'!$B$4)","v":"SEGREGATION PROFILE_4"},{"$f":"IF('Segregation Density Profile_4'!$B$25=\"\",\"\",'Segregation Density Profile_4'!$B$25)","v":"LOCATION"},{"$f":"IF('Segregation Density Profile_4'!$B$29=\"\",\"\",'Segregation Density Profile_4'!$B$29)","v":"10'"},{"$f":"IF('Segregation Density Profile_4'!$C$25=\"\",\"\",'Segregation Density Profile_4'!$C$25)","v":"DENSITY READINGS"},{"$f":"IF('Segregation Density Profile_4'!$G$26=\"\",\"\",'Segregation Density Profile_4'!$G$26)","v":5}]
[239,{"$f":"IF('Segregation Density Profile_4'!$H$29=\"\",\"\",'Segregation Density Profile_4'!$H$29)","v":""},{"$f":"IF('Segregation Density Profile_3'!$B$5=\"\",\"\",'Segregation Density Profile_3'!$B$5)","v":"TEX-207-F, PART V"},{"$f":"IF('Segregation Density Profile_4'!$B$4=\"\",\"\",'Segregation Density Profile_4'!$B$4)","v":"SEGREGATION PROFILE_4"},{"$f":"IF('Segregation Density Profile_4'!$B$25=\"\",\"\",'Segregation Density Profile_4'!$B$25)","v":"LOCATION"},{"$f":"IF('Segregation Density Profile_4'!$B$29=\"\",\"\",'Segregation Density Profile_4'!$B$29)","v":"10'"},{"$f":"IF('Segregation Density Profile_4'!$H$25=\"\",\"\",'Segregation Density Profile_4'!$H$25)","v":"AVERAGE"}]
[240,{"$f":"IF('Segregation Density Profile_4'!$C$30=\"\",\"\",'Segregation Density Profile_4'!$C$30)","v":""},{"$f":"IF('Segregation Density Profile_3'!$B$5=\"\",\"\",'Segregation Density Profile_3'!$B$5)","v":"TEX-207-F, PART V"},{"$f":"IF('Segregation Density Profile_4'!$B$4=\"\",\"\",'Segregation Density Profile_4'!$B$4)","v":"SEGREGATION PROFILE_4"},{"$f":"IF('Segregation Density Profile_4'!$B$25=\"\",\"\",'Segregation Density Profile_4'!$B$25)","v":"LOCATION"},{"$f":"IF('Segregation Density Profile_4'!$B$30=\"\",\"\",'Segregation Density Profile_4'!$B$30)","v":"15'"},{"$f":"IF('Segregation Density Profile_4'!$C$25=\"\",\"\",'Segregation Density Profile_4'!$C$25)","v":"DENSITY READINGS"},{"$f":"IF('Segregation Density Profile_4'!$C$26=\"\",\"\",'Segregation Density Profile_4'!$C$26)","v":1}]
[241,{"$f":"IF('Segregation Density Profile_4'!$D$30=\"\",\"\",'Segregation Density Profile_4'!$D$30)","v":""},{"$f":"IF('Segregation Density Profile_3'!$B$5=\"\",\"\",'Segregation Density Profile_3'!$B$5)","v":"TEX-207-F, PART V"},{"$f":"IF('Segregation Density Profile_4'!$B$4=\"\",\"\",'Segregation Density Profile_4'!$B$4)","v":"SEGREGATION PROFILE_4"},{"$f":"IF('Segregation Density Profile_4'!$B$25=\"\",\"\",'Segregation Density Profile_4'!$B$25)","v":"LOCATION"},{"$f":"IF('Segregation Density Profile_4'!$B$30=\"\",\"\",'Segregation Density Profile_4'!$B$30)","v":"15'"},{"$f":"IF('Segregation Density Profile_4'!$C$25=\"\",\"\",'Segregation Density Profile_4'!$C$25)","v":"DENSITY READINGS"},{"$f":"IF('Segregation Density Profile_4'!$D$26=\"\",\"\",'Segregation Density Profile_4'!$D$26)","v":2}]
[242,{"$f":"IF('Segregation Density Profile_4'!$E$30=\"\",\"\",'Segregation Density Profile_4'!$E$30)","v":""},{"$f":"IF('Segregation Density Profile_3'!$B$5=\"\",\"\",'Segregation Density Profile_3'!$B$5)","v":"TEX-207-F, PART V"},{"$f":"IF('Segregation Density Profile_4'!$B$4=\"\",\"\",'Segregation Density Profile_4'!$B$4)","v":"SEGREGATION PROFILE_4"},{"$f":"IF('Segregation Density Profile_4'!$B$25=\"\",\"\",'Segregation Density Profile_4'!$B$25)","v":"LOCATION"},{"$f":"IF('Segregation Density Profile_4'!$B$30=\"\",\"\",'Segregation Density Profile_4'!$B$30)","v":"15'"},{"$f":"IF('Segregation Density Profile_4'!$C$25=\"\",\"\",'Segregation Density Profile_4'!$C$25)","v":"DENSITY READINGS"},{"$f":"IF('Segregation Density Profile_4'!$E$26=\"\",\"\",'Segregation Density Profile_4'!$E$26)","v":3}]
[243,{"$f":"IF('Segregation Density Profile_4'!$F$30=\"\",\"\",'Segregation Density Profile_4'!$F$30)","v":""},{"$f":"IF('Segregation Density Profile_3'!$B$5=\"\",\"\",'Segregation Density Profile_3'!$B$5)","v":"TEX-207-F, PART V"},{"$f":"IF('Segregation Density Profile_4'!$B$4=\"\",\"\",'Segregation Density Profile_4'!$B$4)","v":"SEGREGATION PROFILE_4"},{"$f":"IF('Segregation Density Profile_4'!$B$25=\"\",\"\",'Segregation Density Profile_4'!$B$25)","v":"LOCATION"},{"$f":"IF('Segregation Density Profile_4'!$B$30=\"\",\"\",'Segregation Density Profile_4'!$B$30)","v":"15'"},{"$f":"IF('Segregation Density Profile_4'!$C$25=\"\",\"\",'Segregation Density Profile_4'!$C$25)","v":"DENSITY READINGS"},{"$f":"IF('Segregation Density Profile_4'!$F$26=\"\",\"\",'Segregation Density Profile_4'!$F$26)","v":4}]
[244,{"$f":"IF('Segregation Density Profile_4'!$G$30=\"\",\"\",'Segregation Density Profile_4'!$G$30)","v":""},{"$f":"IF('Segregation Density Profile_3'!$B$5=\"\",\"\",'Segregation Density Profile_3'!$B$5)","v":"TEX-207-F, PART V"},{"$f":"IF('Segregation Density Profile_4'!$B$4=\"\",\"\",'Segregation Density Profile_4'!$B$4)","v":"SEGREGATION PROFILE_4"},{"$f":"IF('Segregation Density Profile_4'!$B$25=\"\",\"\",'Segregation Density Profile_4'!$B$25)","v":"LOCATION"},{"$f":"IF('Segregation Density Profile_4'!$B$30=\"\",\"\",'Segregation Density Profile_4'!$B$30)","v":"15'"},{"$f":"IF('Segregation Density Profile_4'!$C$25=\"\",\"\",'Segregation Density Profile_4'!$C$25)","v":"DENSITY READINGS"},{"$f":"IF('Segregation Density Profile_4'!$G$26=\"\",\"\",'Segregation Density Profile_4'!$G$26)","v":5}]
[245,{"$f":"IF('Segregation Density Profile_4'!$H$30=\"\",\"\",'Segregation Density Profile_4'!$H$30)","v":""},{"$f":"IF('Segregation Density Profile_3'!$B$5=\"\",\"\",'Segregation Density Profile_3'!$B$5)","v":"TEX-207-F, PART V"},{"$f":"IF('Segregation Density Profile_4'!$B$4=\"\",\"\",'Segregation Density Profile_4'!$B$4)","v":"SEGREGATION PROFILE_4"},{"$f":"IF('Segregation Density Profile_4'!$B$25=\"\",\"\",'Segregation Density Profile_4'!$B$25)","v":"LOCATION"},{"$f":"IF('Segregation Density Profile_4'!$B$30=\"\",\"\",'Segregation Density Profile_4'!$B$30)","v":"15'"},{"$f":"IF('Segregation Density Profile_4'!$H$25=\"\",\"\",'Segregation Density Profile_4'!$H$25)","v":"AVERAGE"}]
[246,{"$f":"IF('Segregation Density Profile_4'!$C$31=\"\",\"\",'Segregation Density Profile_4'!$C$31)","v":""},{"$f":"IF('Segregation Density Profile_3'!$B$5=\"\",\"\",'Segregation Density Profile_3'!$B$5)","v":"TEX-207-F, PART V"},{"$f":"IF('Segregation Density Profile_4'!$B$4=\"\",\"\",'Segregation Density Profile_4'!$B$4)","v":"SEGREGATION PROFILE_4"},{"$f":"IF('Segregation Density Profile_4'!$B$25=\"\",\"\",'Segregation Density Profile_4'!$B$25)","v":"LOCATION"},{"$f":"IF('Segregation Density Profile_4'!$B$31=\"\",\"\",'Segregation Density Profile_4'!$B$31)","v":"20'"},{"$f":"IF('Segregation Density Profile_4'!$C$25=\"\",\"\",'Segregation Density Profile_4'!$C$25)","v":"DENSITY READINGS"},{"$f":"IF('Segregation Density Profile_4'!$C$26=\"\",\"\",'Segregation Density Profile_4'!$C$26)","v":1}]
[247,{"$f":"IF('Segregation Density Profile_4'!$D$31=\"\",\"\",'Segregation Density Profile_4'!$D$31)","v":""},{"$f":"IF('Segregation Density Profile_3'!$B$5=\"\",\"\",'Segregation Density Profile_3'!$B$5)","v":"TEX-207-F, PART V"},{"$f":"IF('Segregation Density Profile_4'!$B$4=\"\",\"\",'Segregation Density Profile_4'!$B$4)","v":"SEGREGATION PROFILE_4"},{"$f":"IF('Segregation Density Profile_4'!$B$25=\"\",\"\",'Segregation Density Profile_4'!$B$25)","v":"LOCATION"},{"$f":"IF('Segregation Density Profile_4'!$B$31=\"\",\"\",'Segregation Density Profile_4'!$B$31)","v":"20'"},{"$f":"IF('Segregation Density Profile_4'!$C$25=\"\",\"\",'Segregation Density Profile_4'!$C$25)","v":"DENSITY READINGS"},{"$f":"IF('Segregation Density Profile_4'!$D$26=\"\",\"\",'Segregation Density Profile_4'!$D$26)","v":2}]
[248,{"$f":"IF('Segregation Density Profile_4'!$E$31=\"\",\"\",'Segregation Density Profile_4'!$E$31)","v":""},{"$f":"IF('Segregation Density Profile_3'!$B$5=\"\",\"\",'Segregation Density Profile_3'!$B$5)","v":"TEX-207-F, PART V"},{"$f":"IF('Segregation Density Profile_4'!$B$4=\"\",\"\",'Segregation Density Profile_4'!$B$4)","v":"SEGREGATION PROFILE_4"},{"$f":"IF('Segregation Density Profile_4'!$B$25=\"\",\"\",'Segregation Density Profile_4'!$B$25)","v":"LOCATION"},{"$f":"IF('Segregation Density Profile_4'!$B$31=\"\",\"\",'Segregation Density Profile_4'!$B$31)","v":"20'"},{"$f":"IF('Segregation Density Profile_4'!$C$25=\"\",\"\",'Segregation Density Profile_4'!$C$25)","v":"DENSITY READINGS"},{"$f":"IF('Segregation Density Profile_4'!$E$26=\"\",\"\",'Segregation Density Profile_4'!$E$26)","v":3}]
[249,{"$f":"IF('Segregation Density Profile_4'!$F$31=\"\",\"\",'Segregation Density Profile_4'!$F$31)","v":""},{"$f":"IF('Segregation Density Profile_3'!$B$5=\"\",\"\",'Segregation Density Profile_3'!$B$5)","v":"TEX-207-F, PART V"},{"$f":"IF('Segregation Density Profile_4'!$B$4=\"\",\"\",'Segregation Density Profile_4'!$B$4)","v":"SEGREGATION PROFILE_4"},{"$f":"IF('Segregation Density Profile_4'!$B$25=\"\",\"\",'Segregation Density Profile_4'!$B$25)","v":"LOCATION"},{"$f":"IF('Segregation Density Profile_4'!$B$31=\"\",\"\",'Segregation Density Profile_4'!$B$31)","v":"20'"},{"$f":"IF('Segregation Density Profile_4'!$C$25=\"\",\"\",'Segregation Density Profile_4'!$C$25)","v":"DENSITY READINGS"},{"$f":"IF('Segregation Density Profile_4'!$F$26=\"\",\"\",'Segregation Density Profile_4'!$F$26)","v":4}]
[250,{"$f":"IF('Segregation Density Profile_4'!$G$31=\"\",\"\",'Segregation Density Profile_4'!$G$31)","v":""},{"$f":"IF('Segregation Density Profile_3'!$B$5=\"\",\"\",'Segregation Density Profile_3'!$B$5)","v":"TEX-207-F, PART V"},{"$f":"IF('Segregation Density Profile_4'!$B$4=\"\",\"\",'Segregation Density Profile_4'!$B$4)","v":"SEGREGATION PROFILE_4"},{"$f":"IF('Segregation Density Profile_4'!$B$25=\"\",\"\",'Segregation Density Profile_4'!$B$25)","v":"LOCATION"},{"$f":"IF('Segregation Density Profile_4'!$B$31=\"\",\"\",'Segregation Density Profile_4'!$B$31)","v":"20'"},{"$f":"IF('Segregation Density Profile_4'!$C$25=\"\",\"\",'Segregation Density Profile_4'!$C$25)","v":"DENSITY READINGS"},{"$f":"IF('Segregation Density Profile_4'!$G$26=\"\",\"\",'Segregation Density Profile_4'!$G$26)","v":5}]
[251,{"$f":"IF('Segregation Density Profile_4'!$H$31=\"\",\"\",'Segregation Density Profile_4'!$H$31)","v":""},{"$f":"IF('Segregation Density Profile_3'!$B$5=\"\",\"\",'Segregation Density Profile_3'!$B$5)","v":"TEX-207-F, PART V"},{"$f":"IF('Segregation Density Profile_4'!$B$4=\"\",\"\",'Segregation Density Profile_4'!$B$4)","v":"SEGREGATION PROFILE_4"},{"$f":"IF('Segregation Density Profile_4'!$B$25=\"\",\"\",'Segregation Density Profile_4'!$B$25)","v":"LOCATION"},{"$f":"IF('Segregation Density Profile_4'!$B$31=\"\",\"\",'Segregation Density Profile_4'!$B$31)","v":"20'"},{"$f":"IF('Segregation Density Profile_4'!$H$25=\"\",\"\",'Segregation Density Profile_4'!$H$25)","v":"AVERAGE"}]
[252,{"$f":"IF('Segregation Density Profile_4'!$C$32=\"\",\"\",'Segregation Density Profile_4'!$C$32)","v":""},{"$f":"IF('Segregation Density Profile_3'!$B$5=\"\",\"\",'Segregation Density Profile_3'!$B$5)","v":"TEX-207-F, PART V"},{"$f":"IF('Segregation Density Profile_4'!$B$4=\"\",\"\",'Segregation Density Profile_4'!$B$4)","v":"SEGREGATION PROFILE_4"},{"$f":"IF('Segregation Density Profile_4'!$B$25=\"\",\"\",'Segregation Density Profile_4'!$B$25)","v":"LOCATION"},{"$f":"IF('Segregation Density Profile_4'!$B$32=\"\",\"\",'Segregation Density Profile_4'!$B$32)","v":"25'"},{"$f":"IF('Segregation Density Profile_4'!$C$25=\"\",\"\",'Segregation Density Profile_4'!$C$25)","v":"DENSITY READINGS"},{"$f":"IF('Segregation Density Profile_4'!$C$26=\"\",\"\",'Segregation Density Profile_4'!$C$26)","v":1}]
[253,{"$f":"IF('Segregation Density Profile_4'!$D$32=\"\",\"\",'Segregation Density Profile_4'!$D$32)","v":""},{"$f":"IF('Segregation Density Profile_3'!$B$5=\"\",\"\",'Segregation Density Profile_3'!$B$5)","v":"TEX-207-F, PART V"},{"$f":"IF('Segregation Density Profile_4'!$B$4=\"\",\"\",'Segregation Density Profile_4'!$B$4)","v":"SEGREGATION PROFILE_4"},{"$f":"IF('Segregation Density Profile_4'!$B$25=\"\",\"\",'Segregation Density Profile_4'!$B$25)","v":"LOCATION"},{"$f":"IF('Segregation Density Profile_4'!$B$32=\"\",\"\",'Segregation Density Profile_4'!$B$32)","v":"25'"},{"$f":"IF('Segregation Density Profile_4'!$C$25=\"\",\"\",'Segregation Density Profile_4'!$C$25)","v":"DENSITY READINGS"},{"$f":"IF('Segregation Density Profile_4'!$D$26=\"\",\"\",'Segregation Density Profile_4'!$D$26)","v":2}]
[254,{"$f":"IF('Segregation Density Profile_4'!$E$32=\"\",\"\",'Segregation Density Profile_4'!$E$32)","v":""},{"$f":"IF('Segregation Density Profile_3'!$B$5=\"\",\"\",'Segregation Density Profile_3'!$B$5)","v":"TEX-207-F, PART V"},{"$f":"IF('Segregation Density Profile_4'!$B$4=\"\",\"\",'Segregation Density Profile_4'!$B$4)","v":"SEGREGATION PROFILE_4"},{"$f":"IF('Segregation Density Profile_4'!$B$25=\"\",\"\",'Segregation Density Profile_4'!$B$25)","v":"LOCATION"},{"$f":"IF('Segregation Density Profile_4'!$B$32=\"\",\"\",'Segregation Density Profile_4'!$B$32)","v":"25'"},{"$f":"IF('Segregation Density Profile_4'!$C$25=\"\",\"\",'Segregation Density Profile_4'!$C$25)","v":"DENSITY READINGS"},{"$f":"IF('Segregation Density Profile_4'!$E$26=\"\",\"\",'Segregation Density Profile_4'!$E$26)","v":3}]
[255,{"$f":"IF('Segregation Density Profile_4'!$F$32=\"\",\"\",'Segregation Density Profile_4'!$F$32)","v":""},{"$f":"IF('Segregation Density Profile_3'!$B$5=\"\",\"\",'Segregation Density Profile_3'!$B$5)","v":"TEX-207-F, PART V"},{"$f":"IF('Segregation Density Profile_4'!$B$4=\"\",\"\",'Segregation Density Profile_4'!$B$4)","v":"SEGREGATION PROFILE_4"},{"$f":"IF('Segregation Density Profile_4'!$B$25=\"\",\"\",'Segregation Density Profile_4'!$B$25)","v":"LOCATION"},{"$f":"IF('Segregation Density Profile_4'!$B$32=\"\",\"\",'Segregation Density Profile_4'!$B$32)","v":"25'"},{"$f":"IF('Segregation Density Profile_4'!$C$25=\"\",\"\",'Segregation Density Profile_4'!$C$25)","v":"DENSITY READINGS"},{"$f":"IF('Segregation Density Profile_4'!$F$26=\"\",\"\",'Segregation Density Profile_4'!$F$26)","v":4}]
[256,{"$f":"IF('Segregation Density Profile_4'!$G$32=\"\",\"\",'Segregation Density Profile_4'!$G$32)","v":""},{"$f":"IF('Segregation Density Profile_3'!$B$5=\"\",\"\",'Segregation Density Profile_3'!$B$5)","v":"TEX-207-F, PART V"},{"$f":"IF('Segregation Density Profile_4'!$B$4=\"\",\"\",'Segregation Density Profile_4'!$B$4)","v":"SEGREGATION PROFILE_4"},{"$f":"IF('Segregation Density Profile_4'!$B$25=\"\",\"\",'Segregation Density Profile_4'!$B$25)","v":"LOCATION"},{"$f":"IF('Segregation Density Profile_4'!$B$32=\"\",\"\",'Segregation Density Profile_4'!$B$32)","v":"25'"},{"$f":"IF('Segregation Density Profile_4'!$C$25=\"\",\"\",'Segregation Density Profile_4'!$C$25)","v":"DENSITY READINGS"},{"$f":"IF('Segregation Density Profile_4'!$G$26=\"\",\"\",'Segregation Density Profile_4'!$G$26)","v":5}]
[257,{"$f":"IF('Segregation Density Profile_4'!$H$32=\"\",\"\",'Segregation Density Profile_4'!$H$32)","v":""},{"$f":"IF('Segregation Density Profile_3'!$B$5=\"\",\"\",'Segregation Density Profile_3'!$B$5)","v":"TEX-207-F, PART V"},{"$f":"IF('Segregation Density Profile_4'!$B$4=\"\",\"\",'Segregation Density Profile_4'!$B$4)","v":"SEGREGATION PROFILE_4"},{"$f":"IF('Segregation Density Profile_4'!$B$25=\"\",\"\",'Segregation Density Profile_4'!$B$25)","v":"LOCATION"},{"$f":"IF('Segregation Density Profile_4'!$B$32=\"\",\"\",'Segregation Density Profile_4'!$B$32)","v":"25'"},{"$f":"IF('Segregation Density Profile_4'!$H$25=\"\",\"\",'Segregation Density Profile_4'!$H$25)","v":"AVERAGE"}]
[258,{"$f":"IF('Segregation Density Profile_4'!$C$33=\"\",\"\",'Segregation Density Profile_4'!$C$33)","v":""},{"$f":"IF('Segregation Density Profile_3'!$B$5=\"\",\"\",'Segregation Density Profile_3'!$B$5)","v":"TEX-207-F, PART V"},{"$f":"IF('Segregation Density Profile_4'!$B$4=\"\",\"\",'Segregation Density Profile_4'!$B$4)","v":"SEGREGATION PROFILE_4"},{"$f":"IF('Segregation Density Profile_4'!$B$25=\"\",\"\",'Segregation Density Profile_4'!$B$25)","v":"LOCATION"},{"$f":"IF('Segregation Density Profile_4'!$B$33=\"\",\"\",'Segregation Density Profile_4'!$B$33)","v":"30'"},{"$f":"IF('Segregation Density Profile_4'!$C$25=\"\",\"\",'Segregation Density Profile_4'!$C$25)","v":"DENSITY READINGS"},{"$f":"IF('Segregation Density Profile_4'!$C$26=\"\",\"\",'Segregation Density Profile_4'!$C$26)","v":1}]
[259,{"$f":"IF('Segregation Density Profile_4'!$D$33=\"\",\"\",'Segregation Density Profile_4'!$D$33)","v":""},{"$f":"IF('Segregation Density Profile_3'!$B$5=\"\",\"\",'Segregation Density Profile_3'!$B$5)","v":"TEX-207-F, PART V"},{"$f":"IF('Segregation Density Profile_4'!$B$4=\"\",\"\",'Segregation Density Profile_4'!$B$4)","v":"SEGREGATION PROFILE_4"},{"$f":"IF('Segregation Density Profile_4'!$B$25=\"\",\"\",'Segregation Density Profile_4'!$B$25)","v":"LOCATION"},{"$f":"IF('Segregation Density Profile_4'!$B$33=\"\",\"\",'Segregation Density Profile_4'!$B$33)","v":"30'"},{"$f":"IF('Segregation Density Profile_4'!$C$25=\"\",\"\",'Segregation Density Profile_4'!$C$25)","v":"DENSITY READINGS"},{"$f":"IF('Segregation Density Profile_4'!$D$26=\"\",\"\",'Segregation Density Profile_4'!$D$26)","v":2}]
[260,{"$f":"IF('Segregation Density Profile_4'!$E$33=\"\",\"\",'Segregation Density Profile_4'!$E$33)","v":""},{"$f":"IF('Segregation Density Profile_3'!$B$5=\"\",\"\",'Segregation Density Profile_3'!$B$5)","v":"TEX-207-F, PART V"},{"$f":"IF('Segregation Density Profile_4'!$B$4=\"\",\"\",'Segregation Density Profile_4'!$B$4)","v":"SEGREGATION PROFILE_4"},{"$f":"IF('Segregation Density Profile_4'!$B$25=\"\",\"\",'Segregation Density Profile_4'!$B$25)","v":"LOCATION"},{"$f":"IF('Segregation Density Profile_4'!$B$33=\"\",\"\",'Segregation Density Profile_4'!$B$33)","v":"30'"},{"$f":"IF('Segregation Density Profile_4'!$C$25=\"\",\"\",'Segregation Density Profile_4'!$C$25)","v":"DENSITY READINGS"},{"$f":"IF('Segregation Density Profile_4'!$E$26=\"\",\"\",'Segregation Density Profile_4'!$E$26)","v":3}]
[261,{"$f":"IF('Segregation Density Profile_4'!$F$33=\"\",\"\",'Segregation Density Profile_4'!$F$33)","v":""},{"$f":"IF('Segregation Density Profile_3'!$B$5=\"\",\"\",'Segregation Density Profile_3'!$B$5)","v":"TEX-207-F, PART V"},{"$f":"IF('Segregation Density Profile_4'!$B$4=\"\",\"\",'Segregation Density Profile_4'!$B$4)","v":"SEGREGATION PROFILE_4"},{"$f":"IF('Segregation Density Profile_4'!$B$25=\"\",\"\",'Segregation Density Profile_4'!$B$25)","v":"LOCATION"},{"$f":"IF('Segregation Density Profile_4'!$B$33=\"\",\"\",'Segregation Density Profile_4'!$B$33)","v":"30'"},{"$f":"IF('Segregation Density Profile_4'!$C$25=\"\",\"\",'Segregation Density Profile_4'!$C$25)","v":"DENSITY READINGS"},{"$f":"IF('Segregation Density Profile_4'!$F$26=\"\",\"\",'Segregation Density Profile_4'!$F$26)","v":4}]
[262,{"$f":"IF('Segregation Density Profile_4'!$G$33=\"\",\"\",'Segregation Density Profile_4'!$G$33)","v":""},{"$f":"IF('Segregation Density Profile_3'!$B$5=\"\",\"\",'Segregation Density Profile_3'!$B$5)","v":"TEX-207-F, PART V"},{"$f":"IF('Segregation Density Profile_4'!$B$4=\"\",\"\",'Segregation Density Profile_4'!$B$4)","v":"SEGREGATION PROFILE_4"},{"$f":"IF('Segregation Density Profile_4'!$B$25=\"\",\"\",'Segregation Density Profile_4'!$B$25)","v":"LOCATION"},{"$f":"IF('Segregation Density Profile_4'!$B$33=\"\",\"\",'Segregation Density Profile_4'!$B$33)","v":"30'"},{"$f":"IF('Segregation Density Profile_4'!$C$25=\"\",\"\",'Segregation Density Profile_4'!$C$25)","v":"DENSITY READINGS"},{"$f":"IF('Segregation Density Profile_4'!$G$26=\"\",\"\",'Segregation Density Profile_4'!$G$26)","v":5}]
[263,{"$f":"IF('Segregation Density Profile_4'!$H$33=\"\",\"\",'Segregation Density Profile_4'!$H$33)","v":""},{"$f":"IF('Segregation Density Profile_3'!$B$5=\"\",\"\",'Segregation Density Profile_3'!$B$5)","v":"TEX-207-F, PART V"},{"$f":"IF('Segregation Density Profile_4'!$B$4=\"\",\"\",'Segregation Density Profile_4'!$B$4)","v":"SEGREGATION PROFILE_4"},{"$f":"IF('Segregation Density Profile_4'!$B$25=\"\",\"\",'Segregation Density Profile_4'!$B$25)","v":"LOCATION"},{"$f":"IF('Segregation Density Profile_4'!$B$33=\"\",\"\",'Segregation Density Profile_4'!$B$33)","v":"30'"},{"$f":"IF('Segregation Density Profile_4'!$H$25=\"\",\"\",'Segregation Density Profile_4'!$H$25)","v":"AVERAGE"}]
[264,{"$f":"IF('Segregation Density Profile_4'!$C$34=\"\",\"\",'Segregation Density Profile_4'!$C$34)","v":""},{"$f":"IF('Segregation Density Profile_3'!$B$5=\"\",\"\",'Segregation Density Profile_3'!$B$5)","v":"TEX-207-F, PART V"},{"$f":"IF('Segregation Density Profile_4'!$B$4=\"\",\"\",'Segregation Density Profile_4'!$B$4)","v":"SEGREGATION PROFILE_4"},{"$f":"IF('Segregation Density Profile_4'!$B$25=\"\",\"\",'Segregation Density Profile_4'!$B$25)","v":"LOCATION"},{"$f":"IF('Segregation Density Profile_4'!$B$34=\"\",\"\",'Segregation Density Profile_4'!$B$34)","v":"35'"},{"$f":"IF('Segregation Density Profile_4'!$C$25=\"\",\"\",'Segregation Density Profile_4'!$C$25)","v":"DENSITY READINGS"},{"$f":"IF('Segregation Density Profile_4'!$C$26=\"\",\"\",'Segregation Density Profile_4'!$C$26)","v":1}]
[265,{"$f":"IF('Segregation Density Profile_4'!$D$34=\"\",\"\",'Segregation Density Profile_4'!$D$34)","v":""},{"$f":"IF('Segregation Density Profile_3'!$B$5=\"\",\"\",'Segregation Density Profile_3'!$B$5)","v":"TEX-207-F, PART V"},{"$f":"IF('Segregation Density Profile_4'!$B$4=\"\",\"\",'Segregation Density Profile_4'!$B$4)","v":"SEGREGATION PROFILE_4"},{"$f":"IF('Segregation Density Profile_4'!$B$25=\"\",\"\",'Segregation Density Profile_4'!$B$25)","v":"LOCATION"},{"$f":"IF('Segregation Density Profile_4'!$B$34=\"\",\"\",'Segregation Density Profile_4'!$B$34)","v":"35'"},{"$f":"IF('Segregation Density Profile_4'!$C$25=\"\",\"\",'Segregation Density Profile_4'!$C$25)","v":"DENSITY READINGS"},{"$f":"IF('Segregation Density Profile_4'!$D$26=\"\",\"\",'Segregation Density Profile_4'!$D$26)","v":2}]
[266,{"$f":"IF('Segregation Density Profile_4'!$E$34=\"\",\"\",'Segregation Density Profile_4'!$E$34)","v":""},{"$f":"IF('Segregation Density Profile_3'!$B$5=\"\",\"\",'Segregation Density Profile_3'!$B$5)","v":"TEX-207-F, PART V"},{"$f":"IF('Segregation Density Profile_4'!$B$4=\"\",\"\",'Segregation Density Profile_4'!$B$4)","v":"SEGREGATION PROFILE_4"},{"$f":"IF('Segregation Density Profile_4'!$B$25=\"\",\"\",'Segregation Density Profile_4'!$B$25)","v":"LOCATION"},{"$f":"IF('Segregation Density Profile_4'!$B$34=\"\",\"\",'Segregation Density Profile_4'!$B$34)","v":"35'"},{"$f":"IF('Segregation Density Profile_4'!$C$25=\"\",\"\",'Segregation Density Profile_4'!$C$25)","v":"DENSITY READINGS"},{"$f":"IF('Segregation Density Profile_4'!$E$26=\"\",\"\",'Segregation Density Profile_4'!$E$26)","v":3}]
[267,{"$f":"IF('Segregation Density Profile_4'!$F$34=\"\",\"\",'Segregation Density Profile_4'!$F$34)","v":""},{"$f":"IF('Segregation Density Profile_3'!$B$5=\"\",\"\",'Segregation Density Profile_3'!$B$5)","v":"TEX-207-F, PART V"},{"$f":"IF('Segregation Density Profile_4'!$B$4=\"\",\"\",'Segregation Density Profile_4'!$B$4)","v":"SEGREGATION PROFILE_4"},{"$f":"IF('Segregation Density Profile_4'!$B$25=\"\",\"\",'Segregation Density Profile_4'!$B$25)","v":"LOCATION"},{"$f":"IF('Segregation Density Profile_4'!$B$34=\"\",\"\",'Segregation Density Profile_4'!$B$34)","v":"35'"},{"$f":"IF('Segregation Density Profile_4'!$C$25=\"\",\"\",'Segregation Density Profile_4'!$C$25)","v":"DENSITY READINGS"},{"$f":"IF('Segregation Density Profile_4'!$F$26=\"\",\"\",'Segregation Density Profile_4'!$F$26)","v":4}]
[268,{"$f":"IF('Segregation Density Profile_4'!$G$34=\"\",\"\",'Segregation Density Profile_4'!$G$34)","v":""},{"$f":"IF('Segregation Density Profile_3'!$B$5=\"\",\"\",'Segregation Density Profile_3'!$B$5)","v":"TEX-207-F, PART V"},{"$f":"IF('Segregation Density Profile_4'!$B$4=\"\",\"\",'Segregation Density Profile_4'!$B$4)","v":"SEGREGATION PROFILE_4"},{"$f":"IF('Segregation Density Profile_4'!$B$25=\"\",\"\",'Segregation Density Profile_4'!$B$25)","v":"LOCATION"},{"$f":"IF('Segregation Density Profile_4'!$B$34=\"\",\"\",'Segregation Density Profile_4'!$B$34)","v":"35'"},{"$f":"IF('Segregation Density Profile_4'!$C$25=\"\",\"\",'Segregation Density Profile_4'!$C$25)","v":"DENSITY READINGS"},{"$f":"IF('Segregation Density Profile_4'!$G$26=\"\",\"\",'Segregation Density Profile_4'!$G$26)","v":5}]
[269,{"$f":"IF('Segregation Density Profile_4'!$H$34=\"\",\"\",'Segregation Density Profile_4'!$H$34)","v":""},{"$f":"IF('Segregation Density Profile_3'!$B$5=\"\",\"\",'Segregation Density Profile_3'!$B$5)","v":"TEX-207-F, PART V"},{"$f":"IF('Segregation Density Profile_4'!$B$4=\"\",\"\",'Segregation Density Profile_4'!$B$4)","v":"SEGREGATION PROFILE_4"},{"$f":"IF('Segregation Density Profile_4'!$B$25=\"\",\"\",'Segregation Density Profile_4'!$B$25)","v":"LOCATION"},{"$f":"IF('Segregation Density Profile_4'!$B$34=\"\",\"\",'Segregation Density Profile_4'!$B$34)","v":"35'"},{"$f":"IF('Segregation Density Profile_4'!$H$25=\"\",\"\",'Segregation Density Profile_4'!$H$25)","v":"AVERAGE"}]
[270,{"$f":"IF('Segregation Density Profile_4'!$C$35=\"\",\"\",'Segregation Density Profile_4'!$C$35)","v":""},{"$f":"IF('Segregation Density Profile_3'!$B$5=\"\",\"\",'Segregation Density Profile_3'!$B$5)","v":"TEX-207-F, PART V"},{"$f":"IF('Segregation Density Profile_4'!$B$4=\"\",\"\",'Segregation Density Profile_4'!$B$4)","v":"SEGREGATION PROFILE_4"},{"$f":"IF('Segregation Density Profile_4'!$B$25=\"\",\"\",'Segregation Density Profile_4'!$B$25)","v":"LOCATION"},{"$f":"IF('Segregation Density Profile_4'!$B$35=\"\",\"\",'Segregation Density Profile_4'!$B$35)","v":"40'"},{"$f":"IF('Segregation Density Profile_4'!$C$25=\"\",\"\",'Segregation Density Profile_4'!$C$25)","v":"DENSITY READINGS"},{"$f":"IF('Segregation Density Profile_4'!$C$26=\"\",\"\",'Segregation Density Profile_4'!$C$26)","v":1}]
[271,{"$f":"IF('Segregation Density Profile_4'!$D$35=\"\",\"\",'Segregation Density Profile_4'!$D$35)","v":""},{"$f":"IF('Segregation Density Profile_3'!$B$5=\"\",\"\",'Segregation Density Profile_3'!$B$5)","v":"TEX-207-F, PART V"},{"$f":"IF('Segregation Density Profile_4'!$B$4=\"\",\"\",'Segregation Density Profile_4'!$B$4)","v":"SEGREGATION PROFILE_4"},{"$f":"IF('Segregation Density Profile_4'!$B$25=\"\",\"\",'Segregation Density Profile_4'!$B$25)","v":"LOCATION"},{"$f":"IF('Segregation Density Profile_4'!$B$35=\"\",\"\",'Segregation Density Profile_4'!$B$35)","v":"40'"},{"$f":"IF('Segregation Density Profile_4'!$C$25=\"\",\"\",'Segregation Density Profile_4'!$C$25)","v":"DENSITY READINGS"},{"$f":"IF('Segregation Density Profile_4'!$D$26=\"\",\"\",'Segregation Density Profile_4'!$D$26)","v":2}]
[272,{"$f":"IF('Segregation Density Profile_4'!$E$35=\"\",\"\",'Segregation Density Profile_4'!$E$35)","v":""},{"$f":"IF('Segregation Density Profile_3'!$B$5=\"\",\"\",'Segregation Density Profile_3'!$B$5)","v":"TEX-207-F, PART V"},{"$f":"IF('Segregation Density Profile_4'!$B$4=\"\",\"\",'Segregation Density Profile_4'!$B$4)","v":"SEGREGATION PROFILE_4"},{"$f":"IF('Segregation Density Profile_4'!$B$25=\"\",\"\",'Segregation Density Profile_4'!$B$25)","v":"LOCATION"},{"$f":"IF('Segregation Density Profile_4'!$B$35=\"\",\"\",'Segregation Density Profile_4'!$B$35)","v":"40'"},{"$f":"IF('Segregation Density Profile_4'!$C$25=\"\",\"\",'Segregation Density Profile_4'!$C$25)","v":"DENSITY READINGS"},{"$f":"IF('Segregation Density Profile_4'!$E$26=\"\",\"\",'Segregation Density Profile_4'!$E$26)","v":3}]
[273,{"$f":"IF('Segregation Density Profile_4'!$F$35=\"\",\"\",'Segregation Density Profile_4'!$F$35)","v":""},{"$f":"IF('Segregation Density Profile_3'!$B$5=\"\",\"\",'Segregation Density Profile_3'!$B$5)","v":"TEX-207-F, PART V"},{"$f":"IF('Segregation Density Profile_4'!$B$4=\"\",\"\",'Segregation Density Profile_4'!$B$4)","v":"SEGREGATION PROFILE_4"},{"$f":"IF('Segregation Density Profile_4'!$B$25=\"\",\"\",'Segregation Density Profile_4'!$B$25)","v":"LOCATION"},{"$f":"IF('Segregation Density Profile_4'!$B$35=\"\",\"\",'Segregation Density Profile_4'!$B$35)","v":"40'"},{"$f":"IF('Segregation Density Profile_4'!$C$25=\"\",\"\",'Segregation Density Profile_4'!$C$25)","v":"DENSITY READINGS"},{"$f":"IF('Segregation Density Profile_4'!$F$26=\"\",\"\",'Segregation Density Profile_4'!$F$26)","v":4}]
[274,{"$f":"IF('Segregation Density Profile_4'!$G$35=\"\",\"\",'Segregation Density Profile_4'!$G$35)","v":""},{"$f":"IF('Segregation Density Profile_3'!$B$5=\"\",\"\",'Segregation Density Profile_3'!$B$5)","v":"TEX-207-F, PART V"},{"$f":"IF('Segregation Density Profile_4'!$B$4=\"\",\"\",'Segregation Density Profile_4'!$B$4)","v":"SEGREGATION PROFILE_4"},{"$f":"IF('Segregation Density Profile_4'!$B$25=\"\",\"\",'Segregation Density Profile_4'!$B$25)","v":"LOCATION"},{"$f":"IF('Segregation Density Profile_4'!$B$35=\"\",\"\",'Segregation Density Profile_4'!$B$35)","v":"40'"},{"$f":"IF('Segregation Density Profile_4'!$C$25=\"\",\"\",'Segregation Density Profile_4'!$C$25)","v":"DENSITY READINGS"},{"$f":"IF('Segregation Density Profile_4'!$G$26=\"\",\"\",'Segregation Density Profile_4'!$G$26)","v":5}]
[275,{"$f":"IF('Segregation Density Profile_4'!$H$35=\"\",\"\",'Segregation Density Profile_4'!$H$35)","v":""},{"$f":"IF('Segregation Density Profile_3'!$B$5=\"\",\"\",'Segregation Density Profile_3'!$B$5)","v":"TEX-207-F, PART V"},{"$f":"IF('Segregation Density Profile_4'!$B$4=\"\",\"\",'Segregation Density Profile_4'!$B$4)","v":"SEGREGATION PROFILE_4"},{"$f":"IF('Segregation Density Profile_4'!$B$25=\"\",\"\",'Segregation Density Profile_4'!$B$25)","v":"LOCATION"},{"$f":"IF('Segregation Density Profile_4'!$B$35=\"\",\"\",'Segregation Density Profile_4'!$B$35)","v":"40'"},{"$f":"IF('Segregation Density Profile_4'!$H$25=\"\",\"\",'Segregation Density Profile_4'!$H$25)","v":"AVERAGE"}]
[276,{"$f":"IF('Segregation Density Profile_4'!$C$36=\"\",\"\",'Segregation Density Profile_4'!$C$36)","v":""},{"$f":"IF('Segregation Density Profile_3'!$B$5=\"\",\"\",'Segregation Density Profile_3'!$B$5)","v":"TEX-207-F, PART V"},{"$f":"IF('Segregation Density Profile_4'!$B$4=\"\",\"\",'Segregation Density Profile_4'!$B$4)","v":"SEGREGATION PROFILE_4"},{"$f":"IF('Segregation Density Profile_4'!$B$25=\"\",\"\",'Segregation Density Profile_4'!$B$25)","v":"LOCATION"},{"$f":"IF('Segregation Density Profile_4'!$B$36=\"\",\"\",'Segregation Density Profile_4'!$B$36)","v":"45'"},{"$f":"IF('Segregation Density Profile_4'!$C$25=\"\",\"\",'Segregation Density Profile_4'!$C$25)","v":"DENSITY READINGS"},{"$f":"IF('Segregation Density Profile_4'!$C$26=\"\",\"\",'Segregation Density Profile_4'!$C$26)","v":1}]
[277,{"$f":"IF('Segregation Density Profile_4'!$D$36=\"\",\"\",'Segregation Density Profile_4'!$D$36)","v":""},{"$f":"IF('Segregation Density Profile_3'!$B$5=\"\",\"\",'Segregation Density Profile_3'!$B$5)","v":"TEX-207-F, PART V"},{"$f":"IF('Segregation Density Profile_4'!$B$4=\"\",\"\",'Segregation Density Profile_4'!$B$4)","v":"SEGREGATION PROFILE_4"},{"$f":"IF('Segregation Density Profile_4'!$B$25=\"\",\"\",'Segregation Density Profile_4'!$B$25)","v":"LOCATION"},{"$f":"IF('Segregation Density Profile_4'!$B$36=\"\",\"\",'Segregation Density Profile_4'!$B$36)","v":"45'"},{"$f":"IF('Segregation Density Profile_4'!$C$25=\"\",\"\",'Segregation Density Profile_4'!$C$25)","v":"DENSITY READINGS"},{"$f":"IF('Segregation Density Profile_4'!$D$26=\"\",\"\",'Segregation Density Profile_4'!$D$26)","v":2}]
[278,{"$f":"IF('Segregation Density Profile_4'!$E$36=\"\",\"\",'Segregation Density Profile_4'!$E$36)","v":""},{"$f":"IF('Segregation Density Profile_3'!$B$5=\"\",\"\",'Segregation Density Profile_3'!$B$5)","v":"TEX-207-F, PART V"},{"$f":"IF('Segregation Density Profile_4'!$B$4=\"\",\"\",'Segregation Density Profile_4'!$B$4)","v":"SEGREGATION PROFILE_4"},{"$f":"IF('Segregation Density Profile_4'!$B$25=\"\",\"\",'Segregation Density Profile_4'!$B$25)","v":"LOCATION"},{"$f":"IF('Segregation Density Profile_4'!$B$36=\"\",\"\",'Segregation Density Profile_4'!$B$36)","v":"45'"},{"$f":"IF('Segregation Density Profile_4'!$C$25=\"\",\"\",'Segregation Density Profile_4'!$C$25)","v":"DENSITY READINGS"},{"$f":"IF('Segregation Density Profile_4'!$E$26=\"\",\"\",'Segregation Density Profile_4'!$E$26)","v":3}]
[279,{"$f":"IF('Segregation Density Profile_4'!$F$36=\"\",\"\",'Segregation Density Profile_4'!$F$36)","v":""},{"$f":"IF('Segregation Density Profile_3'!$B$5=\"\",\"\",'Segregation Density Profile_3'!$B$5)","v":"TEX-207-F, PART V"},{"$f":"IF('Segregation Density Profile_4'!$B$4=\"\",\"\",'Segregation Density Profile_4'!$B$4)","v":"SEGREGATION PROFILE_4"},{"$f":"IF('Segregation Density Profile_4'!$B$25=\"\",\"\",'Segregation Density Profile_4'!$B$25)","v":"LOCATION"},{"$f":"IF('Segregation Density Profile_4'!$B$36=\"\",\"\",'Segregation Density Profile_4'!$B$36)","v":"45'"},{"$f":"IF('Segregation Density Profile_4'!$C$25=\"\",\"\",'Segregation Density Profile_4'!$C$25)","v":"DENSITY READINGS"},{"$f":"IF('Segregation Density Profile_4'!$F$26=\"\",\"\",'Segregation Density Profile_4'!$F$26)","v":4}]
[280,{"$f":"IF('Segregation Density Profile_4'!$G$36=\"\",\"\",'Segregation Density Profile_4'!$G$36)","v":""},{"$f":"IF('Segregation Density Profile_3'!$B$5=\"\",\"\",'Segregation Density Profile_3'!$B$5)","v":"TEX-207-F, PART V"},{"$f":"IF('Segregation Density Profile_4'!$B$4=\"\",\"\",'Segregation Density Profile_4'!$B$4)","v":"SEGREGATION PROFILE_4"},{"$f":"IF('Segregation Density Profile_4'!$B$25=\"\",\"\",'Segregation Density Profile_4'!$B$25)","v":"LOCATION"},{"$f":"IF('Segregation Density Profile_4'!$B$36=\"\",\"\",'Segregation Density Profile_4'!$B$36)","v":"45'"},{"$f":"IF('Segregation Density Profile_4'!$C$25=\"\",\"\",'Segregation Density Profile_4'!$C$25)","v":"DENSITY READINGS"},{"$f":"IF('Segregation Density Profile_4'!$G$26=\"\",\"\",'Segregation Density Profile_4'!$G$26)","v":5}]
[281,{"$f":"IF('Segregation Density Profile_4'!$H$36=\"\",\"\",'Segregation Density Profile_4'!$H$36)","v":""},{"$f":"IF('Segregation Density Profile_3'!$B$5=\"\",\"\",'Segregation Density Profile_3'!$B$5)","v":"TEX-207-F, PART V"},{"$f":"IF('Segregation Density Profile_4'!$B$4=\"\",\"\",'Segregation Density Profile_4'!$B$4)","v":"SEGREGATION PROFILE_4"},{"$f":"IF('Segregation Density Profile_4'!$B$25=\"\",\"\",'Segregation Density Profile_4'!$B$25)","v":"LOCATION"},{"$f":"IF('Segregation Density Profile_4'!$B$36=\"\",\"\",'Segregation Density Profile_4'!$B$36)","v":"45'"},{"$f":"IF('Segregation Density Profile_4'!$H$25=\"\",\"\",'Segregation Density Profile_4'!$H$25)","v":"AVERAGE"}]
[282,{"$f":"IF('Segregation Density Profile_4'!$C$37=\"\",\"\",'Segregation Density Profile_4'!$C$37)","v":""},{"$f":"IF('Segregation Density Profile_3'!$B$5=\"\",\"\",'Segregation Density Profile_3'!$B$5)","v":"TEX-207-F, PART V"},{"$f":"IF('Segregation Density Profile_4'!$B$4=\"\",\"\",'Segregation Density Profile_4'!$B$4)","v":"SEGREGATION PROFILE_4"},{"$f":"IF('Segregation Density Profile_4'!$B$25=\"\",\"\",'Segregation Density Profile_4'!$B$25)","v":"LOCATION"},{"$f":"IF('Segregation Density Profile_4'!$B$37=\"\",\"\",'Segregation Density Profile_4'!$B$37)","v":"50'"},{"$f":"IF('Segregation Density Profile_4'!$C$25=\"\",\"\",'Segregation Density Profile_4'!$C$25)","v":"DENSITY READINGS"},{"$f":"IF('Segregation Density Profile_4'!$C$26=\"\",\"\",'Segregation Density Profile_4'!$C$26)","v":1}]
[283,{"$f":"IF('Segregation Density Profile_4'!$D$37=\"\",\"\",'Segregation Density Profile_4'!$D$37)","v":""},{"$f":"IF('Segregation Density Profile_3'!$B$5=\"\",\"\",'Segregation Density Profile_3'!$B$5)","v":"TEX-207-F, PART V"},{"$f":"IF('Segregation Density Profile_4'!$B$4=\"\",\"\",'Segregation Density Profile_4'!$B$4)","v":"SEGREGATION PROFILE_4"},{"$f":"IF('Segregation Density Profile_4'!$B$25=\"\",\"\",'Segregation Density Profile_4'!$B$25)","v":"LOCATION"},{"$f":"IF('Segregation Density Profile_4'!$B$37=\"\",\"\",'Segregation Density Profile_4'!$B$37)","v":"50'"},{"$f":"IF('Segregation Density Profile_4'!$C$25=\"\",\"\",'Segregation Density Profile_4'!$C$25)","v":"DENSITY READINGS"},{"$f":"IF('Segregation Density Profile_4'!$D$26=\"\",\"\",'Segregation Density Profile_4'!$D$26)","v":2}]
[284,{"$f":"IF('Segregation Density Profile_4'!$E$37=\"\",\"\",'Segregation Density Profile_4'!$E$37)","v":""},{"$f":"IF('Segregation Density Profile_3'!$B$5=\"\",\"\",'Segregation Density Profile_3'!$B$5)","v":"TEX-207-F, PART V"},{"$f":"IF('Segregation Density Profile_4'!$B$4=\"\",\"\",'Segregation Density Profile_4'!$B$4)","v":"SEGREGATION PROFILE_4"},{"$f":"IF('Segregation Density Profile_4'!$B$25=\"\",\"\",'Segregation Density Profile_4'!$B$25)","v":"LOCATION"},{"$f":"IF('Segregation Density Profile_4'!$B$37=\"\",\"\",'Segregation Density Profile_4'!$B$37)","v":"50'"},{"$f":"IF('Segregation Density Profile_4'!$C$25=\"\",\"\",'Segregation Density Profile_4'!$C$25)","v":"DENSITY READINGS"},{"$f":"IF('Segregation Density Profile_4'!$E$26=\"\",\"\",'Segregation Density Profile_4'!$E$26)","v":3}]
[285,{"$f":"IF('Segregation Density Profile_4'!$F$37=\"\",\"\",'Segregation Density Profile_4'!$F$37)","v":""},{"$f":"IF('Segregation Density Profile_3'!$B$5=\"\",\"\",'Segregation Density Profile_3'!$B$5)","v":"TEX-207-F, PART V"},{"$f":"IF('Segregation Density Profile_4'!$B$4=\"\",\"\",'Segregation Density Profile_4'!$B$4)","v":"SEGREGATION PROFILE_4"},{"$f":"IF('Segregation Density Profile_4'!$B$25=\"\",\"\",'Segregation Density Profile_4'!$B$25)","v":"LOCATION"},{"$f":"IF('Segregation Density Profile_4'!$B$37=\"\",\"\",'Segregation Density Profile_4'!$B$37)","v":"50'"},{"$f":"IF('Segregation Density Profile_4'!$C$25=\"\",\"\",'Segregation Density Profile_4'!$C$25)","v":"DENSITY READINGS"},{"$f":"IF('Segregation Density Profile_4'!$F$26=\"\",\"\",'Segregation Density Profile_4'!$F$26)","v":4}]
[286,{"$f":"IF('Segregation Density Profile_4'!$G$37=\"\",\"\",'Segregation Density Profile_4'!$G$37)","v":""},{"$f":"IF('Segregation Density Profile_3'!$B$5=\"\",\"\",'Segregation Density Profile_3'!$B$5)","v":"TEX-207-F, PART V"},{"$f":"IF('Segregation Density Profile_4'!$B$4=\"\",\"\",'Segregation Density Profile_4'!$B$4)","v":"SEGREGATION PROFILE_4"},{"$f":"IF('Segregation Density Profile_4'!$B$25=\"\",\"\",'Segregation Density Profile_4'!$B$25)","v":"LOCATION"},{"$f":"IF('Segregation Density Profile_4'!$B$37=\"\",\"\",'Segregation Density Profile_4'!$B$37)","v":"50'"},{"$f":"IF('Segregation Density Profile_4'!$C$25=\"\",\"\",'Segregation Density Profile_4'!$C$25)","v":"DENSITY READINGS"},{"$f":"IF('Segregation Density Profile_4'!$G$26=\"\",\"\",'Segregation Density Profile_4'!$G$26)","v":5}]
[287,{"$f":"IF('Segregation Density Profile_4'!$H$37=\"\",\"\",'Segregation Density Profile_4'!$H$37)","v":""},{"$f":"IF('Segregation Density Profile_3'!$B$5=\"\",\"\",'Segregation Density Profile_3'!$B$5)","v":"TEX-207-F, PART V"},{"$f":"IF('Segregation Density Profile_4'!$B$4=\"\",\"\",'Segregation Density Profile_4'!$B$4)","v":"SEGREGATION PROFILE_4"},{"$f":"IF('Segregation Density Profile_4'!$B$25=\"\",\"\",'Segregation Density Profile_4'!$B$25)","v":"LOCATION"},{"$f":"IF('Segregation Density Profile_4'!$B$37=\"\",\"\",'Segregation Density Profile_4'!$B$37)","v":"50'"},{"$f":"IF('Segregation Density Profile_4'!$H$25=\"\",\"\",'Segregation Density Profile_4'!$H$25)","v":"AVERAGE"}]
[288,{"$f":"IF('Segregation Density Profile_4'!$D$39=\"\",\"\",'Segregation Density Profile_4'!$D$39)","v":""},{"$f":"IF('Segregation Density Profile_3'!$B$5=\"\",\"\",'Segregation Density Profile_3'!$B$5)","v":"TEX-207-F, PART V"},{"$f":"IF('Segregation Density Profile_4'!$B$4=\"\",\"\",'Segregation Density Profile_4'!$B$4)","v":"SEGREGATION PROFILE_4"},{"$f":"IF('Segregation Density Profile_4'!$B$39=\"\",\"\",'Segregation Density Profile_4'!$B$39)","v":"AVERAGE READING:"}]
[289,{"$f":"IF('Segregation Density Profile_4'!$D$40=\"\",\"\",'Segregation Density Profile_4'!$D$40)","v":""},{"$f":"IF('Segregation Density Profile_3'!$B$5=\"\",\"\",'Segregation Density Profile_3'!$B$5)","v":"TEX-207-F, PART V"},{"$f":"IF('Segregation Density Profile_4'!$B$4=\"\",\"\",'Segregation Density Profile_4'!$B$4)","v":"SEGREGATION PROFILE_4"},{"$f":"IF('Segregation Density Profile_4'!$B$40=\"\",\"\",'Segregation Density Profile_4'!$B$40)","v":"HIGH READING:"}]
[290,{"$f":"IF('Segregation Density Profile_4'!$D$41=\"\",\"\",'Segregation Density Profile_4'!$D$41)","v":""},{"$f":"IF('Segregation Density Profile_3'!$B$5=\"\",\"\",'Segregation Density Profile_3'!$B$5)","v":"TEX-207-F, PART V"},{"$f":"IF('Segregation Density Profile_4'!$B$4=\"\",\"\",'Segregation Density Profile_4'!$B$4)","v":"SEGREGATION PROFILE_4"},{"$f":"IF('Segregation Density Profile_4'!$B$41=\"\",\"\",'Segregation Density Profile_4'!$B$41)","v":"LOW READING:"}]
[291,{"$f":"IF('Segregation Density Profile_4'!$D$44=\"\",\"\",'Segregation Density Profile_4'!$D$44)","v":""},{"$f":"IF('Segregation Density Profile_3'!$B$5=\"\",\"\",'Segregation Density Profile_3'!$B$5)","v":"TEX-207-F, PART V"},{"$f":"IF('Segregation Density Profile_4'!$B$4=\"\",\"\",'Segregation Density Profile_4'!$B$4)","v":"SEGREGATION PROFILE_4"},{"$f":"IF('Segregation Density Profile_4'!$B$43=\"\",\"\",'Segregation Density Profile_4'!$B$43)","v":"MAX ALLOWABLE DENSITY RANGE"},{"$f":"IF('Segregation Density Profile_4'!$B$44=\"\",\"\",'Segregation Density Profile_4'!$B$44)","v":"HIGHEST TO LOWEST:"}]
[292,{"$f":"IF('Segregation Density Profile_4'!$D$45=\"\",\"\",'Segregation Density Profile_4'!$D$45)","v":""},{"$f":"IF('Segregation Density Profile_3'!$B$5=\"\",\"\",'Segregation Density Profile_3'!$B$5)","v":"TEX-207-F, PART V"},{"$f":"IF('Segregation Density Profile_4'!$B$4=\"\",\"\",'Segregation Density Profile_4'!$B$4)","v":"SEGREGATION PROFILE_4"},{"$f":"IF('Segregation Density Profile_4'!$B$43=\"\",\"\",'Segregation Density Profile_4'!$B$43)","v":"MAX ALLOWABLE DENSITY RANGE"},{"$f":"IF('Segregation Density Profile_4'!$B$45=\"\",\"\",'Segregation Density Profile_4'!$B$45)","v":"AVERAGE TO LOWEST:"}]
[293,{"$f":"IF('Segregation Density Profile_1'!$H$10=\"\",\"\",'Segregation Density Profile_1'!$H$10)","v":""},{"$f":"IF('Segregation Density Profile_1'!$B$5=\"\",\"\",'Segregation Density Profile_1'!$B$5)","v":"TEX-207-F, PART V"},{"$f":"IF('Segregation Density Profile_1'!$G$10=\"\",\"\",'Segregation Density Profile_1'!$G$10)","v":"SPEC YEAR:"}]
[294,{"$f":"IF('Segregation Density Profile_1'!$H$13=\"\",\"\",'Segregation Density Profile_1'!$H$13)","v":""},{"$f":"IF('Segregation Density Profile_1'!$B$5=\"\",\"\",'Segregation Density Profile_1'!$B$5)","v":"TEX-207-F, PART V"},{"$f":"IF('Segregation Density Profile_1'!$G$13=\"\",\"\",'Segregation Density Profile_1'!$G$13)","v":"MIX TYPE:"}]
[295,{"$f":"IF('Segregation Density Profile_1'!$F$20=\"\",\"\",'Segregation Density Profile_1'!$F$20)","v":""},{"$f":"IF('Segregation Density Profile_1'!$B$5=\"\",\"\",'Segregation Density Profile_1'!$B$5)","v":"TEX-207-F, PART V"},{"$f":"IF('Segregation Density Profile_1'!$E$20=\"\",\"\",'Segregation Density Profile_1'!$E$20)","v":"LOT:"}]
[296,{"$f":"IF('Segregation Density Profile_1'!$H$20=\"\",\"\",'Segregation Density Profile_1'!$H$20)","v":""},{"$f":"IF('Segregation Density Profile_1'!$B$5=\"\",\"\",'Segregation Density Profile_1'!$B$5)","v":"TEX-207-F, PART V"},{"$f":"IF('Segregation Density Profile_1'!$B$4=\"\",\"\",'Segregation Density Profile_1'!$B$4)","v":"SEGREGATION PROFILE_1"},{"$f":"IF('Segregation Density Profile_1'!$G$20=\"\",\"\",'Segregation Density Profile_1'!$G$20)","v":"SUBLOT:"}]
[297,{"$f":"IF('Segregation Density Profile_2'!$H$20=\"\",\"\",'Segregation Density Profile_2'!$H$20)","v":""},{"$f":"IF('Segregation Density Profile_2'!$B$5=\"\",\"\",'Segregation Density Profile_2'!$B$5)","v":"TEX-207-F, PART V"},{"$f":"IF('Segregation Density Profile_2'!$B$4=\"\",\"\",'Segregation Density Profile_2'!$B$4)","v":"SEGREGATION PROFILE_2"},{"$f":"IF('Segregation Density Profile_2'!$G$20=\"\",\"\",'Segregation Density Profile_2'!$G$20)","v":"SUBLOT:"}]
[298,{"$f":"IF('Segregation Density Profile_3'!$H$20=\"\",\"\",'Segregation Density Profile_3'!$H$20)","v":""},{"$f":"IF('Segregation Density Profile_3'!$B$5=\"\",\"\",'Segregation Density Profile_3'!$B$5)","v":"TEX-207-F, PART V"},{"$f":"IF('Segregation Density Profile_3'!$B$4=\"\",\"\",'Segregation Density Profile_3'!$B$4)","v":"SEGREGATION PROFILE_3"},{"$f":"IF('Segregation Density Profile_3'!$G$20=\"\",\"\",'Segregation Density Profile_3'!$G$20)","v":"SUBLOT:"}]
[299,{"$f":"IF('Segregation Density Profile_4'!$H$20=\"\",\"\",'Segregation Density Profile_4'!$H$20)","v":""},{"$f":"IF('Segregation Density Profile_4'!$B$5=\"\",\"\",'Segregation Density Profile_4'!$B$5)","v":"TEX-207-F, PART V"},{"$f":"IF('Segregation Density Profile_4'!$B$4=\"\",\"\",'Segregation Density Profile_4'!$B$4)","v":"SEGREGATION PROFILE_4"},{"$f":"IF('Segregation Density Profile_4'!$G$20=\"\",\"\",'Segregation Density Profile_4'!$G$20)","v":"SUBLOT:"}]
[300,{"$f":"IF('Segregation Density Profile_2'!$D$21=\"\",\"\",'Segregation Density Profile_2'!$D$21)","v":""},{"$f":"IF('Segregation Density Profile_2'!$B$5=\"\",\"\",'Segregation Density Profile_2'!$B$5)","v":"TEX-207-F, PART V"},{"$f":"IF('Segregation Density Profile_2'!$B$4=\"\",\"\",'Segregation Density Profile_2'!$B$4)","v":"SEGREGATION PROFILE_2"},{"$f":"IF('Segregation Density Profile_2'!$B$20=\"\",\"\",'Segregation Density Profile_2'!$B$20)","v":"TYPE OF DENSITY GAUGE:"}]
[301,{"$f":"IF('Segregation Density Profile_3'!$D$21=\"\",\"\",'Segregation Density Profile_3'!$D$21)","v":""},{"$f":"IF('Segregation Density Profile_3'!$B$5=\"\",\"\",'Segregation Density Profile_3'!$B$5)","v":"TEX-207-F, PART V"},{"$f":"IF('Segregation Density Profile_3'!$B$4=\"\",\"\",'Segregation Density Profile_3'!$B$4)","v":"SEGREGATION PROFILE_3"},{"$f":"IF('Segregation Density Profile_3'!$B$20=\"\",\"\",'Segregation Density Profile_3'!$B$20)","v":"TYPE OF DENSITY GAUGE:"}]
[303,{"$f":"IF('Segregation Density Profile_4'!$D$21=\"\",\"\",'Segregation Density Profile_4'!$D$21)","v":""},{"$f":"IF('Segregation Density Profile_4'!$B$5=\"\",\"\",'Segregation Density Profile_4'!$B$5)","v":"TEX-207-F, PART V"},{"$f":"IF('Segregation Density Profile_4'!$B$4=\"\",\"\",'Segregation Density Profile_4'!$B$4)","v":"SEGREGATION PROFILE_4"},{"$f":"IF('Segregation Density Profile_4'!$B$20=\"\",\"\",'Segregation Density Profile_4'!$B$20)","v":"TYPE OF DENSITY GAUGE:"}]
[304,{"$f":"IF('Segregation Density Profile_1'!$F$20=\"\",\"\",'Segregation Density Profile_1'!$F$20)","v":""},{"$f":"IF('Segregation Density Profile_1'!$B$5=\"\",\"\",'Segregation Density Profile_1'!$B$5)","v":"TEX-207-F, PART V"},{"$f":"IF('Segregation Density Profile_1'!$B$4=\"\",\"\",'Segregation Density Profile_1'!$B$4)","v":"SEGREGATION PROFILE_1"},{"$f":"IF('Segregation Density Profile_1'!$E$20=\"\",\"\",'Segregation Density Profile_1'!$E$20)","v":"LOT:"}]
[305,{"$f":"IF('Segregation Density Profile_2'!$F$21=\"\",\"\",'Segregation Density Profile_2'!$F$21)","v":""},{"$f":"IF('Segregation Density Profile_2'!$B$5=\"\",\"\",'Segregation Density Profile_2'!$B$5)","v":"TEX-207-F, PART V"},{"$f":"IF('Segregation Density Profile_2'!$B$4=\"\",\"\",'Segregation Density Profile_2'!$B$4)","v":"SEGREGATION PROFILE_2"},{"$f":"IF('Segregation Density Profile_2'!$E$20=\"\",\"\",'Segregation Density Profile_2'!$E$20)","v":"LOT:"}]
[306,{"$f":"IF('Segregation Density Profile_3'!$F$21=\"\",\"\",'Segregation Density Profile_3'!$F$21)","v":""},{"$f":"IF('Segregation Density Profile_3'!$B$5=\"\",\"\",'Segregation Density Profile_3'!$B$5)","v":"TEX-207-F, PART V"},{"$f":"IF('Segregation Density Profile_3'!$B$4=\"\",\"\",'Segregation Density Profile_3'!$B$4)","v":"SEGREGATION PROFILE_3"},{"$f":"IF('Segregation Density Profile_3'!$E$20=\"\",\"\",'Segregation Density Profile_1'!$E$20)","v":"LOT:"}]
[307,{"$f":"IF('Segregation Density Profile_4'!$F$21=\"\",\"\",'Segregation Density Profile_4'!$F$21)","v":""},{"$f":"IF('Segregation Density Profile_4'!$B$5=\"\",\"\",'Segregation Density Profile_4'!$B$5)","v":"TEX-207-F, PART V"},{"$f":"IF('Segregation Density Profile_4'!$B$4=\"\",\"\",'Segregation Density Profile_4'!$B$4)","v":"SEGREGATION PROFILE_4"},{"$f":"IF('Segregation Density Profile_4'!$E$20=\"\",\"\",'Segregation Density Profile_1'!$E$20)","v":"LOT:"}]
[308,{"$f":"IF('Segregation Density Profile_1'!$C$56=\"\",\"\",'Segregation Density Profile_1'!$C$56)","v":""},"Tested By ",{"$f":"IF('Segregation Density Profile_1'!$B$56=\"\",\"\",'Segregation Density Profile_1'!$B$56)","v":"TX207V"}]
[309,{"$f":"IF('Segregation Density Profile_1'!$F$56=\"\",\"\",'Segregation Density Profile_1'!$F$56)","v":""},"Tested Date ",{"$f":"IF('Segregation Density Profile_1'!$B$56=\"\",\"\",'Segregation Density Profile_1'!$B$56)","v":"TX207V"}]

{"sheet":"Revision","index":6,"n_rows":15,"n_cols":4,"rows_kept":15,"cut":false,"hidden":true,"merged":[[4,3,12,3],[4,1,6,1],[11,1,12,1],[4,0,12,0],[4,2,12,2],[7,1,9,1]]}
["Date","Changes","Change by","Comments"]
["2005-07-20","Remove comment from cell G25 and F25","Joe Liu","Requested by Richard Izzo"]
["2006-11-29","Adjust the conditional formatting for cells D43 & D44 to reference the \"Grade\" instead of the \"Course\\Lift\"","Corey Schwarz"]
["2008-08-04","Add worksheets for every sublot","Gisel Carrasco/Brett Haggerty","Requested by Richard Izzo"]
["2010-12-06","Change Gauge type cell on worksheets 2, 3, and 4 from an equation to a dropdown list as shown on the first worksheet, so that you will be able to select the gauge type on each worksheet.","Gisel Carrasco","Requested by Richard Izzo"]
[]
[]
[null,"Change Lot# cell on worksheets 2, 3, and 4 from an equation to a dropdown list as shown on the first worksheet, so that you will be able to select the Lot number on each worksheet."]
[]
[]
[null,"Using version #2 (December 6, 2010)"]
[null,"Flagging when not meeting segregation acceptance criteria in each worksheet and summary"]
[]
["2019-11-26","Add part number to the test method on Segregation Density Profile_1 worksheet","Syeda Rahman","Requested by Travis Patton"]
["2024-08-06","Add 2024 spec items","Syeda Rahman","Requested by Travis Patton"]

{"sheet":"Specs","index":7,"n_rows":21,"n_cols":4,"rows_kept":21,"cut":false,"hidden":true,"merged":[]}
[]
[]
[null,"Mix","Maximum","Maximum"]
[null,"Type","Highest - Lowest","Average - Lowest"]
[null,"CAM",6,3]
[null,"CMHB C",6,3]
[null,"CMHB F",6,3]
[null,"SMA C",8,5]
[null,"SMA D",6,3]
[null,"SMA F",6,3]
[null,"SMAR C",8,5]
[null,"SMAR F",6,3]
[null,"SP A",8,5]
[null,"SP B",8,5]
[null,"SP C",6,3]
[null,"SP D",6,3]
[null,"Type A",8,5]
[null,"Type B",8,5]
[null,"Type C",6,3]
[null,"Type D",6,3]
[null,"Type F",6,3]

{"sheet":"spcyr","index":8,"n_rows":18,"n_cols":4,"rows_kept":18,"cut":false,"hidden":true,"merged":[]}
["spec1993","spec1995","spec2004","spec2024"]
["CMHB C","CMHB C","CMHB C","SMA C"]
["CMHB F","CMHB F","CMHB F","SMA D"]
["SMA C","SMA C","SMA C","SMA F"]
["SMA D","SMA D","SMA D","SMAR F"]
["SMA F","SMA F","SMA F","SP B"]
["SMAR C","SMAR C","SMAR C","SP C"]
["SMAR F","SMAR F","SMAR F","SP D"]
["SP A","SP A","SP A","Type B"]
["SP B","SP B","SP B","Type C"]
["SP C","SP C","SP C","Type D"]
["SP D","SP D","SP D","Type F"]
["Type A","Type A","Type A","CAM"]
["Type B","Type B","Type B"]
["Type C","Type C","Type C"]
["Type D","Type D","Type D"]
["Type F","Type F","Type F"]
[null,null,"CAM"]